account_party,address,code,date,document_number,expense_code_name,expense_code_name_short,id,party_cell,party_cell_code,party_cell_geoobject,purpose,source_bank_account_number,source_bank_account_type,sum,target_legal_personality,target_legal_personality_code,target_type
УГП,"Львівська область, Львів, вулиця Стрийська, 35",62,2020-06-30,406,Сплата ЄСВ,Податкові платежі,257139,Львівська обласна організація,40014820,Львівська область,"*;101;40014820; 22,0% нарах. єдиного внеску на заробітну плату за 2 пол.червня 2020р., - 2178,00 грн.;;;",UA113252680000000002600477437,current,2178.00,ГОЛОВНЕ УПРАВЛІННЯ ДФС У ЛЬВІВСЬКІЙ ОБЛАСТІ,43143039,юридична особа
УГП,"Львівська область, Львів, вулиця Конотопська, 6",63,2020-06-30,405,Податок на доходи,Податкові платежі,257138,Львівська обласна організація,40014820,Львівська область,"*;101;40014820; податок на доходи фізичних осіб із заробітної плати за 2 пол.червня 2020р. , 18% - 1782,00 грн.;;;",UA113252680000000002600477437,current,1782.00,УДКСУ у Франківському районі м. Львова,37965138,юридична особа
УГП,"Львівська область, Львів, вулиця Конотопська, 6",61,2020-06-30,404,Військовий збір,Податкові платежі,257137,Львівська обласна організація,40014820,Львівська область,"*;101;40014820; утриманий військовий збір із заробітної плати за 2 пол.червня 2020р. , 1,5% - 148,50 грн.;;;",UA113252680000000002600477437,current,148.50,УДКСУ у Франківському районі м. Львова,37965138,юридична особа
УГП,"Львівська область, Львів, вулиця Сербська, 1",70,2020-06-30,740046,Банківські послуги,Інші витрати,257136,Львівська обласна організація,40014820,Львівська область,Комісія за ведення функціонуючого рахунку за період 01.06.20-30.06.20 зг. договору. №N40.00.002425/РКО вiд 17.09.2015.,UA113252680000000002600477437,current,100.00,"АТ ""АКБ ""Львів""",09801546,юридична особа
УГП,"Львівська область, Львів, вулиця Сербська, 1",70,2020-06-30,740051,Банківські послуги,Інші витрати,257135,Львівська обласна організація,40014820,Львівська область,"Комісія за pозрахункове обслуговування Клієнтів по системі ""Клієнт-Банк"" за період 01.06.20-30.06.20 зг. договору. №N40. 00.002425/РКО вiд17.09.2015",UA113252680000000002600477437,current,50.00,"АТ ""АКБ ""Львів""",09801546,юридична особа
УГП,"Львівська область, Львів, вулиця Сербська, 1",70,2020-06-30,722930,Банківські послуги,Інші витрати,257134,Львівська обласна організація,40014820,Львівська область,"Сплата комісії за зарахуванню коштів на рахунки фізичних осіб підприємства по зарплатному проекту по документу №722929, від 30.06.2020. Без ПДВ",UA113252680000000002600477437,current,47.82,"АТ ""АКБ ""Львів""",09801546,юридична особа
УГП,"Львівська область, Львів, вулиця Сербська, 1",70,2020-06-30,722578,Банківські послуги,Інші витрати,257133,Львівська обласна організація,40014820,Львівська область,"Сплата комісії за переказ коштів з поточного рахунку до 17:00 за межі Банку за допомогою системи Клієнт-Банк по документу №404, від 30.06.2020. Без ПДВ",UA113252680000000002600477437,current,5.00,"АТ ""АКБ ""Львів""",09801546,юридична особа
УГП,"Львівська область, Львів, вулиця Сербська, 1",70,2020-06-30,722580,Банківські послуги,Інші витрати,257132,Львівська обласна організація,40014820,Львівська область,"Сплата комісії за переказ коштів з поточного рахунку до 17:00 за межі Банку за допомогою системи Клієнт-Банк по документу №406, від 30.06.2020. Без ПДВ",UA113252680000000002600477437,current,5.00,"АТ ""АКБ ""Львів""",09801546,юридична особа
УГП,"Львівська область, Львів",84,2020-06-30,722931,"Заробітна плата, премії","Заробітна плата, лікарняні, вагітності, відрядження, компенсації",257049,Львівська обласна організація,40014820,Львівська область,Заробітна плата за 2 половину червня 2020р.,UA113252680000000002600477437,current,2978.50,Щурко Іван Петрович,,фізична особа
УГП,"Львівська область, Львів",84,2020-06-30,722933,"Заробітна плата, премії","Заробітна плата, лікарняні, вагітності, відрядження, компенсації",257048,Львівська обласна організація,40014820,Львівська область,Заробітна плата за 2 половину червня 2020р.,UA113252680000000002600477437,current,2495.50,Небельмес Аліна Михайлівна,,фізична особа
УГП,"Львівська область, Львів",84,2020-06-30,722932,"Заробітна плата, премії","Заробітна плата, лікарняні, вагітності, відрядження, компенсації",257047,Львівська обласна організація,40014820,Львівська область,Заробітна плата за 2 половину червня 2020р.,UA113252680000000002600477437,current,2495.50,Кузько Марʼяна Михайлівна,,фізична особа
УГП,"Івано-Франківська область, Івано-Франківськ, вулиця Січових стрільців, 15",70,2020-06-30,K6UO0QEH5U,Банківські послуги,Інші витрати,257024,Івано-Франківська обласна організація,40026836,Івано-Франківська область,Сплата комiсiї за касове обслуговування червень 2020,26005052517967,current,16.54,"ПАТ КБ ""Приватбанк""",14360570,юридична особа
УГП,"Івано-Франківська область, Івано-Франківськ, вулиця Незалежності, 20",62,2020-06-30,582,Сплата ЄСВ,Податкові платежі,257023,Івано-Франківська обласна організація,40026836,Івано-Франківська область,*;101;40026836;ЄСВ з зарплати за червень 2020р.;;;,26005052517967,current,1807.72,ДПІ в м.Івано-Франківськ,43142559,юридична особа
УГП,"Івано-Франківська область, Івано-Франківськ, вулиця Михайла Грушевського, 32",63,2020-06-30,583,Податок на доходи,Податкові платежі,257022,Івано-Франківська обласна організація,40026836,Івано-Франківська область,*;101;40026836;ПДФО з зарплати за червень 2020р.;;;,26005052517967,current,1479.04,УДКСУ у м. Івано-Франківську,37952250,юридична особа
УГП,"Івано-Франківська область, Івано-Франківськ, вулиця Михайла Грушевського, 32",61,2020-06-30,584,Військовий збір,Податкові платежі,257021,Івано-Франківська обласна організація,40026836,Івано-Франківська область,*;101;40026836;Вiйськовий збiр з зарплати за червень 2020 р.;;;,26005052517967,current,123.25,УДКСУ у м. Івано-Франківську,37952250,юридична особа
УГП,"Івано-Франківська область, Івано-Франківськ, вулиця Січових стрільців, 15",70,2020-06-30,6UO3GBNUYY,Банківські послуги,Інші витрати,257020,Івано-Франківська обласна організація,40026836,Івано-Франківська область,"Комiсiя за виконання платежiв в нацiональнiй валютi, згiдно з вiдкритою офертою банку N б/н вiд 29.09.2015 та тарифiв банку, без ПДВ",26005052517967,current,2.00,"ПАТ КБ ""Приватбанк""",14360570,юридична особа
УГП,"Івано-Франківська область, Івано-Франківськ, вулиця Січових стрільців, 15",70,2020-06-30,6UO3GBNTYY_1,Банківські послуги,Інші витрати,257019,Івано-Франківська обласна організація,40026836,Івано-Франківська область,"Комiсiя за виконання платежiв в нацiональнiй валютi, згiдно з вiдкритою офертою банку N б/н вiд 29.09.2015 та тарифiв банку, без ПДВ",26005052517967,current,2.00,"ПАТ КБ ""Приватбанк""",14360570,юридична особа
УГП,"Івано-Франківська область, Івано-Франківськ, вулиця Січових стрільців, 15",70,2020-06-30,6UO3GBNTYY,Банківські послуги,Інші витрати,257018,Івано-Франківська обласна організація,40026836,Івано-Франківська область,"Комiсiя за виконання платежiв в нацiональнiй валютi, згiдно з вiдкритою офертою банку N б/н вiд 29.09.2015 та тарифiв банку, без ПДВ",26005052517967,current,2.00,"ПАТ КБ ""Приватбанк""",14360570,юридична особа
УГП,"Львівська область, Львів",84,2020-06-30,1,"Заробітна плата, премії","Заробітна плата, лікарняні, вагітності, відрядження, компенсації",256942,Івано-Франківська обласна організація,40026836,Івано-Франківська область,Заробітна плата за червень 2020 р.,26005052517967,current,6614.60,Саїк Олег Ігорович,,фізична особа
УГП,"Львівська область, Львів, вулиця Стрийська, 35",62,2020-06-30,1005,Сплата ЄСВ,Податкові платежі,256892,Центральний офіс,39481037,Україна,"*;101;39481037; нарах.єдиного внеску на зароб.плату за 2 пол.червня 2020р. - 22,0%, 8.41% - 4392,81 грн.;;;",2600671275,current,4392.81,ГОЛОВНЕ УПРАВЛІННЯ ДФС У ЛЬВІВСЬКІЙ ОБЛАСТІ,43143039,юридична особа
УГП,"Львівська область, Львів, вулиця Конотопська, 6",63,2020-06-30,1004,Податок на доходи,Податкові платежі,256891,Центральний офіс,39481037,Україна,"*;101;39481037; податок на доходи фізичних осіб із зароб.плати за 2 пол.червня 2020р., 18% - 4050,00 грн.;;;",2600671275,current,4050.00,УДКСУ у Франківському районі м. Львова,37965138,юридична особа
УГП,"Львівська область, Львів, вулиця Кондукторська, 16",79,2020-06-30,1007,"Оренда будинків і приміщень та експлуатаційні витрати (прибирання, страхування орендованих будинків, охорона, сигналізація, ремонт, вивіз сміття, тощо)",Оренда нерухомості,256890,Центральний офіс,39481037,Україна,"Оплата за послуги охорони обʼєкта та ГШР за червень 2020р., зг. рах.-факт.№ СФ-0000423 від 30.06.20р., зг. дог. № ЦС010619 від 03.06.2019р., без ПДВ",2600671275,current,450.00,"ПП ""Приватна безпека""",33562906,юридична особа
УГП,"Львівська область, Львів, вулиця Конотопська, 6",61,2020-06-30,1003,Військовий збір,Податкові платежі,256889,Центральний офіс,39481037,Україна,"*;101;39481037; утриманий військовий збір із зароб.плати за 2 пол.червня 2020р., 1,5% - 337,50 грн.;;;",2600671275,current,337.50,УДКСУ у Франківському районі м. Львова,37965138,юридична особа
УГП,"Львівська область, Львів, вулиця Сербська, 1",70,2020-06-30,722424,Банківські послуги,Інші витрати,256888,Центральний офіс,39481037,Україна,"Сплата комісії за зарахуванню коштів на рахунки фізичних осіб підприємства по зарплатному проекту по документу №722423, від 30.06.2020. Без ПДВ",2600671275,current,108.68,"АТ ""АКБ ""Львів""",09801546,юридична особа
УГП,"Львівська область, Львів, вулиця Сербська, 1",70,2020-06-30,741261,Банківські послуги,Інші витрати,256887,Центральний офіс,39481037,Україна,Комісія за ведення функціонуючого рахунку за період 01.06.20-30.06.20 зг. Договору №N40.00.002175/РКО вiд 10.12.2014,2600671275,current,100.00,"АТ ""АКБ ""Львів""",09801546,юридична особа
УГП,"Львівська область, Львів, вулиця Сербська, 1",70,2020-06-30,741262,Банківські послуги,Інші витрати,256886,Центральний офіс,39481037,Україна,"Комісія за pозрахункове обслуговування Клієнтів по системі ""Клієнт-Банк"" за період 01.06.20-30.06.20 зг. договору. №N40. 00.002175/РКО вiд 10.12.2014.",2600671275,current,50.00,"АТ ""АКБ ""Львів""",09801546,юридична особа
УГП,"Львівська область, Львів, вулиця Сербська, 1",70,2020-06-30,722170,Банківські послуги,Інші витрати,256885,Центральний офіс,39481037,Україна,"Сплата комісії за переказ коштів з поточного рахунку до 17:00 за межі Банку за допомогою системи Клієнт-Банк по документу №1004, від 30.06.2020. Без ПДВ",2600671275,current,5.00,"АТ ""АКБ ""Львів""",09801546,юридична особа
УГП,"Львівська область, Львів, вулиця Сербська, 1",70,2020-06-30,725053,Банківські послуги,Інші витрати,256884,Центральний офіс,39481037,Україна,"Сплата комісії за переказ коштів з поточного рахунку до 17:00 за межі Банку за допомогою системи Клієнт-Банк по документу №1031, від 30.06.2020. Без ПДВ",2600671275,current,5.00,"АТ ""АКБ ""Львів""",09801546,юридична особа
УГП,"Львівська область, Львів, вулиця Сербська, 1",70,2020-06-30,722171,Банківські послуги,Інші витрати,256883,Центральний офіс,39481037,Україна,"Сплата комісії за переказ коштів з поточного рахунку до 17:00 за межі Банку за допомогою системи Клієнт-Банк по документу №1005, від 30.06.2020. Без ПДВ",2600671275,current,5.00,"АТ ""АКБ ""Львів""",09801546,юридична особа
УГП,"Львівська область, Львів, вулиця Сербська, 1",70,2020-06-30,722279,Банківські послуги,Інші витрати,256882,Центральний офіс,39481037,Україна,"Сплата комісії за переказ коштів з поточного рахунку до 17:00 за межі Банку за допомогою системи Клієнт-Банк по документу №1007, від 30.06.2020. Без ПДВ",2600671275,current,5.00,"АТ ""АКБ ""Львів""",09801546,юридична особа
УГП,"Львівська область, Львів, вулиця Сербська, 1",70,2020-06-30,722169,Банківські послуги,Інші витрати,256881,Центральний офіс,39481037,Україна,"Сплата комісії за переказ коштів з поточного рахунку до 17:00 за межі Банку за допомогою системи Клієнт-Банк по документу №1003, від 30.06.2020. Без ПДВ",2600671275,current,5.00,"АТ ""АКБ ""Львів""",09801546,юридична особа
УГП,"Львівська область, Львів, вулиця Сербська, 1",70,2020-06-30,722278,Банківські послуги,Інші витрати,256880,Центральний офіс,39481037,Україна,"Сплата комісії за переказ коштів з поточного рахунку до 17:00 в межах системи Банку за допомогою системи Клієнт-Банк по документу №1006, від 30.06.2020. Без ПДВ",2600671275,current,3.00,"АТ ""АКБ ""Львів""",09801546,юридична особа
УГП,Львівська область,84,2020-06-30,722425,"Заробітна плата, премії","Заробітна плата, лікарняні, вагітності, відрядження, компенсації",256716,Центральний офіс,39481037,Україна,Заробітна плата за 2 половину червня 2020р.,2600671275,current,4387.25,Моряк Ірина Миколаївна,,фізична особа
УГП,Тернопільська область,84,2020-06-30,722427,"Заробітна плата, премії","Заробітна плата, лікарняні, вагітності, відрядження, компенсації",256715,Центральний офіс,39481037,Україна,Заробітна плата за 2 половину червня 2020р.,2600671275,current,3381.00,Яремчук Ірина Романівна,,фізична особа
УГП,"Івано-Франківська область, Івано-Франківськ",84,2020-06-30,722430,"Заробітна плата, премії","Заробітна плата, лікарняні, вагітності, відрядження, компенсації",256714,Центральний офіс,39481037,Україна,Заробітна плата за 2 половину червня 2020р.,2600671275,current,3381.00,Романчук Любомир Петрович,,фізична особа
УГП,"Львівська область, Львів",84,2020-06-30,722426,"Заробітна плата, премії","Заробітна плата, лікарняні, вагітності, відрядження, компенсації",256713,Центральний офіс,39481037,Україна,Заробітна плата за 2 половину червня 2020р.,2600671275,current,3300.50,Дякович Ігор Володимирович,,фізична особа
УГП,"Львівська область, Львів",84,2020-06-30,722428,"Заробітна плата, премії","Заробітна плата, лікарняні, вагітності, відрядження, компенсації",256712,Центральний офіс,39481037,Україна,Заробітна плата за 2 половину червня 2020р.,2600671275,current,2616.25,Сало Ірина Володимирівна,,фізична особа
УГП,"Львівська область, Львів",84,2020-06-30,722429,"Заробітна плата, премії","Заробітна плата, лікарняні, вагітності, відрядження, компенсації",256711,Центральний офіс,39481037,Україна,Заробітна плата за 2 половину червня 2020р.,2600671275,current,1046.50,Хрущак Світлана Іванівна,,фізична особа
УГП,"Львівська область, Львів, вулиця Стрийська, 35",62,2020-06-26,403,Сплата ЄСВ,Податкові платежі,257130,Львівська обласна організація,40014820,Львівська область,"*;101;40014820; 22,0% нарах. єдиного внеску на відпускні за липень 2020р., - 735,15 грн.;;;",UA113252680000000002600477437,current,735.15,ГОЛОВНЕ УПРАВЛІННЯ ДФС У ЛЬВІВСЬКІЙ ОБЛАСТІ,43143039,юридична особа
УГП,"Львівська область, Львів, вулиця Конотопська, 6",63,2020-06-26,402,Податок на доходи,Податкові платежі,257129,Львівська обласна організація,40014820,Львівська область,"*;101;40014820; податок на доходи фізичних осіб із відпускних за липень 2020р. , 18% - 601,49 грн.;;;",UA113252680000000002600477437,current,601.49,УДКСУ у Франківському районі м. Львова,37965138,юридична особа
УГП,"Львівська область, Львів, вулиця Конотопська, 6",61,2020-06-26,401,Військовий збір,Податкові платежі,257128,Львівська обласна організація,40014820,Львівська область,"*;101;40014820; утриманий військовий збір із відпускних за липень 2020р. , 1,5% - 50,12 грн.;;;",UA113252680000000002600477437,current,50.12,УДКСУ у Франківському районі м. Львова,37965138,юридична особа
УГП,"Львівська область, Львів, вулиця Сербська, 1",70,2020-06-26,648769,Банківські послуги,Інші витрати,257127,Львівська обласна організація,40014820,Львівська область,"Сплата комісії за зарахуванню коштів на рахунки фізичних осіб підприємства по зарплатному проекту по документу №648768, від 26.06.2020. Без ПДВ",UA113252680000000002600477437,current,16.14,"АТ ""АКБ ""Львів""",09801546,юридична особа
УГП,"Львівська область, Львів, вулиця Сербська, 1",70,2020-06-26,648599,Банківські послуги,Інші витрати,257126,Львівська обласна організація,40014820,Львівська область,"Сплата комісії за переказ коштів з поточного рахунку до 17:00 за межі Банку за допомогою системи Клієнт Банк по документу №401, від 26.06.2020. Без ПДВ",UA113252680000000002600477437,current,5.00,"АТ ""АКБ ""Львів""",09801546,юридична особа
УГП,"Львівська область, Львів, вулиця Сербська, 1",70,2020-06-26,648601,Банківські послуги,Інші витрати,257125,Львівська обласна організація,40014820,Львівська область,"Сплата комісії за переказ коштів з поточного рахунку до 17:00 за межі Банку за допомогою системи Клієнт-Банк по документу №403, від 26.06.2020. Без ПДВ",UA113252680000000002600477437,current,5.00,"АТ ""АКБ ""Львів""",09801546,юридична особа
УГП,"Львівська область, Львів, вулиця Сербська, 1",70,2020-06-26,648600,Банківські послуги,Інші витрати,257124,Львівська обласна організація,40014820,Львівська область,"Сплата комісії за переказ коштів з поточного рахунку до 17:00 за межі Банку за допомогою системи Клієнт-Банк по документу №402, від 26.06.2020. Без ПДВ",UA113252680000000002600477437,current,5.00,"АТ ""АКБ ""Львів""",09801546,юридична особа
УГП,"Львівська область, Львів",83,2020-06-26,648770,"Виплати працівникам (не зарплата): лікарняні, вагітності, відрядження, компенсації ","Заробітна плата, лікарняні, вагітності, відрядження, компенсації",257046,Львівська обласна організація,40014820,Львівська область,Виплата відпускних за липень 2020 року,UA113252680000000002600477437,current,2689.99,Небельмес Аліна Михайлівна,,фізична особа
УГП,"Тернопільська область, Тернопіль, вулиця Анатолія Живова, 15А",53,2020-06-25,523,Витрати на розміщення зовнішньої реклами,Зовнішня реклама,257255,Тернопільська обласна організація,40011526,Тернопільська область,Оплата за оренду рекламних площин згiдно рах. № 17-06 вiд 01.06.2020р. Без ПДВ,UA263387830000026006055117228,current,1200.00,"ТОВ ""Торговий комплекс ""Кристал""",39504970,юридична особа
УГП,"Тернопільська область, Тернопіль, проспект Степана Бандери, 38",70,2020-06-25,6PO3FT68LY,Банківські послуги,Інші витрати,257254,Тернопільська обласна організація,40011526,Тернопільська область,"Комiсiя за виконання платежiв в нацiональнiй валютi, згiдно з вiдкритою офертою банку N б/н вiд 21.09.2015 та тарифiв банку, без ПДВ",UA263387830000026006055117228,current,2.00,"ПАТ КБ ""Приватбанк""",14360570,юридична особа
УГП,"Київ, вулиця Юрія Іллєнка, 12",53,2020-06-25,1024,Витрати на розміщення зовнішньої реклами,Зовнішня реклама,256879,Центральний офіс,39481037,Україна,"Попередня оплата за розміщення зовнішньої реклами згідно рахунку-фактури № СФ-0000002 від 16.06.2020р., згідно договору від 16.06.2020р,в т.ч.ПДВ- 19645.40 грн.",2600671275,current,117872.40,"ПП ""АРТКОМ""",32711215,юридична особа
УГП,"Львівська область, Львів, вулиця Гуцульська, 9",53,2020-06-25,1030,Витрати на розміщення зовнішньої реклами,Зовнішня реклама,256878,Центральний офіс,39481037,Україна,"Оплата за розміщення зовн.реклами з 01.06.2020 по 30.06.2020 згід.рах. факт. №СФ-00242 від 24.06.2020р., згід. договору від 30.07.2018р., в т.ч. ПДВ 1944,50грн",2600671275,current,11667.00,"ТОВ ’Телерадіокомпанія ""Львівська хвиля""",13824151,юридична особа
УГП,"Львівська область, Львів, вулиця Сербська, 1",70,2020-06-25,613794,Банківські послуги,Інші витрати,256877,Центральний офіс,39481037,Україна,"Сплата комісії за переказ коштів з поточного рахунку до 17:00 за межі Банку за допомогою системи Клієнт-Банк по документу №1024, від 19.06.2020. Без ПДВ",2600671275,current,5.00,"АТ ""АКБ ""Львів""",09801546,юридична особа
УГП,"Львівська область, Львів, вулиця Сербська, 1",70,2020-06-25,613090,Банківські послуги,Інші витрати,256876,Центральний офіс,39481037,Україна,"Сплата комісії за переказ коштів з поточного рахунку до 17:00 в межах системи Банку за допомогою системи Клієнт-Банк по документу №1030, від 25.06.2020. Без ПДВ",2600671275,current,3.00,"АТ ""АКБ ""Львів""",09801546,юридична особа
УГП,"Львівська область, Львів, вулиця Братів Рогатинців, 26, 8",79,2020-06-24,1028,"Оренда будинків і приміщень та експлуатаційні витрати (прибирання, страхування орендованих будинків, охорона, сигналізація, ремонт, вивіз сміття, тощо)",Оренда нерухомості,256875,Центральний офіс,39481037,Україна,"Оплата за питну воду ""Кришталь"" 18,9 л згід. догов. № 145 від 01.10.2019р., згідно рахунку № 4742 від 23.06.2020р., в т.ч. ПДВ 225.00 грн",2600671275,current,1350.00,"ТОВ ""Українські джерела""",25230161,юридична особа
УГП,"Львівська область, Львів, вулиця Братів Рогатинців, 26, 8",79,2020-06-24,1029,"Оренда будинків і приміщень та експлуатаційні витрати (прибирання, страхування орендованих будинків, охорона, сигналізація, ремонт, вивіз сміття, тощо)",Оренда нерухомості,256874,Центральний офіс,39481037,Україна,"Оплата за оренду кипʼятил. в березні згід. догов. № 164 від 02.12.2019р., згідно рахунку № 4743 від 23.06.2020р., в т.ч. ПДВ 15.00 грн.",2600671275,current,90.00,"ТОВ ""Українські джерела""",25230161,юридична особа
УГП,"Львівська область, Львів, вулиця Сербська, 1",70,2020-06-24,588555,Банківські послуги,Інші витрати,256873,Центральний офіс,39481037,Україна,"Сплата комісії за переказ коштів з поточного рахунку до 17:00 в межах системи Банку за допомогою системи Клієнт-Банк по документу №1029, від 24.06.2020. Без ПДВ",2600671275,current,3.00,"АТ ""АКБ ""Львів""",09801546,юридична особа
УГП,"Львівська область, Львів, вулиця Сербська, 1",70,2020-06-24,588375,Банківські послуги,Інші витрати,256872,Центральний офіс,39481037,Україна,"Сплата комісії за переказ коштів з поточного рахунку до 17:00 в межах системи Банку за допомогою системи Клієнт-Банк по документу №1028, від 24.06.2020. Без ПДВ",2600671275,current,3.00,"АТ ""АКБ ""Львів""",09801546,юридична особа
УГП,"Львівська область, Львів, вулиця Сербська, 1",70,2020-06-23,555271,Банківські послуги,Інші витрати,256871,Центральний офіс,39481037,Україна,"Сплата комісії за переказ коштів з поточного рахунку до 17:00 за межі Банку за допомогою системи Клієнт-Банк по документу №1001, від 23.06.2020. Без ПДВ",2600671275,current,5.00,"АТ ""АКБ ""Львів""",09801546,юридична особа
УГП,"Львівська область, Львів, вулиця Сербська, 1",70,2020-06-23,325268,Банківські послуги,Інші витрати,256870,Центральний офіс,39481037,Україна,"Сплата комісії за переказ коштів з поточного рахунку до 17:00 за межі Банку за допомогою системи Клієнт-Банк по документу №1027, від 23.06.2020. Без ПДВ",2600671275,current,5.00,"АТ ""АКБ ""Львів""",09801546,юридична особа
УГП,"Львівська область, Львів, вулиця Сербська, 1",70,2020-06-23,555272,Банківські послуги,Інші витрати,256869,Центральний офіс,39481037,Україна,"Сплата комісії за переказ коштів з поточного рахунку до 17:00 за межі Банку за допомогою системи Клієнт-Банк по документу №1002, від 23.06.2020. Без ПДВ",2600671275,current,5.00,"АТ ""АКБ ""Львів""",09801546,юридична особа
УГП,"Львівська область, Пустомитівський район",53,2020-06-23,1027,Витрати на розміщення зовнішньої реклами,Зовнішня реклама,256710,Центральний офіс,39481037,Україна,"Оплата за оренду рекламних площин у червні 2020 року згідно рахунку-фактури № СФ-0000095 від 12.06.2020 р., без ПДВ",2600671275,current,138000.00,Біб Юрій Мирославович,,фізична особа
УГП,"Тернопільська область, Тернопіль",58,2020-06-23,1001,"Виготовлення друкованих матеріалів (плакатів, листівок, буклетів та інших агітаційних матеріалів)",Друкована агітація,256709,Центральний офіс,39481037,Україна,"Оплата за друк газети ""Наша Галичина"" згідно рахунку №118 від 23.06.2020р.,зг договору №П-18 від 26.11.2019р., без ПДВ",2600671275,current,28535.00,Перець Вадим Григорович,,фізична особа
УГП,"Тернопільська область, Тернопіль",58,2020-06-23,1002,"Виготовлення друкованих матеріалів (плакатів, листівок, буклетів та інших агітаційних матеріалів)",Друкована агітація,256708,Центральний офіс,39481037,Україна,"Оплата за друк газети ""Наша Галичина"" згідно рахунку №119 від 23.06.2020р.,зг договору №П-18 від 26.11.2019р., без ПДВ",2600671275,current,14890.00,Перець Вадим Григорович,,фізична особа
УГП,"Тернопільська область, Тернопіль, проспект Степана Бандери, 38",70,2020-06-22,DT06MCE22P,Банківські послуги,Інші витрати,257253,Тернопільська обласна організація,40011526,Тернопільська область,"Комiсiя за проведення платежу вiд 22.06.2020, згiдно договору банкiвського рахунку вiд 21.09.2015, без ПДВ",UA263387830000026006055117228,current,6.00,"ПАТ КБ ""Приватбанк""",14360570,юридична особа
УГП,"Тернопільська область, Тернопіль, вулиця Чорновола, 1",79,2020-06-22,521,"Оренда будинків і приміщень та експлуатаційні витрати (прибирання, страхування орендованих будинків, охорона, сигналізація, ремонт, вивіз сміття, тощо)",Оренда нерухомості,257252,Тернопільська обласна організація,40011526,Тернопільська область,"Опл. зг. рах.№24 вiд 29.05.2020р., №559 вiд 31.05.2020р. за оренду та ком послуги за 05.2020. У сумi 960.44 грн., ПДВ - 20 % 192.09 грн.",UA263387830000026006055117228,current,1152.53,"Тернопільська дирекція ПАТ ""Укрпошта""",01192220,юридична особа
УГП,"Тернопільська область, Тернопіль, проспект Степана Бандери, 38",70,2020-06-22,6MO3FEQF3Y,Банківські послуги,Інші витрати,257251,Тернопільська обласна організація,40011526,Тернопільська область,"Комiсiя за виконання платежiв в нацiональнiй валютi, згiдно з вiдкритою офертою банку N б/н вiд 21.09.2015 та тарифiв банку, без ПДВ",UA263387830000026006055117228,current,2.00,"ПАТ КБ ""Приватбанк""",14360570,юридична особа
УГП,"Тернопільська область, Тернопіль, вулиця Микулинецька, 3А, 1003",79,2020-06-22,522,"Оренда будинків і приміщень та експлуатаційні витрати (прибирання, страхування орендованих будинків, охорона, сигналізація, ремонт, вивіз сміття, тощо)",Оренда нерухомості,257250,Тернопільська обласна організація,40011526,Тернопільська область,Оплата згiдно рахунку № 3407 вiд 02.06.2020р. За охорону офiсу за червень 2020р.,UA263387830000026006055117228,current,400.00,"ТОВ ""Спеціалізований підрозділ охорони ""Дозор-Тернопіль""",38427230,юридична особа
УГП,"Тернопільська область, Тернопіль, вулиця Білецька, 1",62,2020-06-22,K6MO0Q6Q4Y,Сплата ЄСВ,Податкові платежі,257249,Тернопільська обласна організація,40011526,Тернопільська область,ЄСВ за червень 2020,UA263387830000026006055117228,current,3872.00,ГУ ДПС у Тернопільській області,43142763,юридична особа
УГП,"Тернопільська область, Тернопіль, вулиця Листопадова, 3",61,2020-06-22,K6MO0Q6Q4Z,Військовий збір,Податкові платежі,257248,Тернопільська обласна організація,40011526,Тернопільська область,Вiйськовий збiр за червень 2020,UA263387830000026006055117228,current,264.00,УДКСУ у м. Тернопіль,37977726,юридична особа
УГП,"Тернопільська область, Тернопіль, вулиця Листопадова, 3",63,2020-06-22,K6MO0Q6Q50,Податок на доходи,Податкові платежі,257247,Тернопільська обласна організація,40011526,Тернопільська область,ПДФО за червень 2020,UA263387830000026006055117228,current,3168.00,УДКСУ у м. Тернопіль,37977726,юридична особа
УГП,"Тернопільська область, Тернопіль, проспект Степана Бандери, 38",70,2020-06-22,K6MO0Q6Q51,Банківські послуги,Інші витрати,257246,Тернопільська обласна організація,40011526,Тернопільська область,Сплата комiсiї за касове обслуговування червень 2020р.,UA263387830000026006055117228,current,35.42,"ПАТ КБ ""Приватбанк""",14360570,юридична особа
УГП,"Тернопільська область, Тернопіль",84,2020-06-22,1,"Заробітна плата, премії","Заробітна плата, лікарняні, вагітності, відрядження, компенсації",257179,Тернопільська обласна організація,40011526,Тернопільська область,"Заробітна плата,за червень 2020р.",UA263387830000026006055117228,current,2012.50,Фірман Ольга Ярославівна,,фізична особа
УГП,"Тернопільська область, Тернопіль",84,2020-06-22,1,"Заробітна плата, премії","Заробітна плата, лікарняні, вагітності, відрядження, компенсації",257178,Тернопільська обласна організація,40011526,Тернопільська область,"Заробітна плата,за червень 2020р.",UA263387830000026006055117228,current,2616.25,Сукач Анастасія Святославівна,,фізична особа
УГП,"Тернопільська область, Бучацький район",84,2020-06-22,1,"Заробітна плата, премії","Заробітна плата, лікарняні, вагітності, відрядження, компенсації",257177,Тернопільська обласна організація,40011526,Тернопільська область,"Заробітна плата,за червень 2020р.",UA263387830000026006055117228,current,3018.75,Кізюк Іван Йосипович,,фізична особа
УГП,"Тернопільська область, Тернопіль",84,2020-06-22,1,"Заробітна плата, премії","Заробітна плата, лікарняні, вагітності, відрядження, компенсації",257176,Тернопільська обласна організація,40011526,Тернопільська область,"Заробітна плата,за червень 2020р.",UA263387830000026006055117228,current,1288.00,Войтович Анна Вʼячеславівна,,фізична особа
УГП,"Тернопільська область, Теребовлянський район",84,2020-06-22,1,"Заробітна плата, премії","Заробітна плата, лікарняні, вагітності, відрядження, компенсації",257175,Тернопільська обласна організація,40011526,Тернопільська область,"Заробітна плата,за червень 2020р.",UA263387830000026006055117228,current,3018.75,Вітвіцький Олег Іванович,,фізична особа
УГП,"Тернопільська область, Тернопіль",84,2020-06-22,1,"Заробітна плата, премії","Заробітна плата, лікарняні, вагітності, відрядження, компенсації",257174,Тернопільська обласна організація,40011526,Тернопільська область,"Заробітна плата,за червень 2020р.",UA263387830000026006055117228,current,2213.75,Богун Андрій Ігорович,,фізична особа
УГП,"Львівська область, Львів, вулиця Сербська, 1",70,2020-06-22,518530,Банківські послуги,Інші витрати,256868,Центральний офіс,39481037,Україна,"Сплата комісії за переказ коштів з поточного рахунку до 17:00 за межі Банку за допомогою системи Клієнт-Банк по документу №1026, від 22.06.2020. Без ПДВ",2600671275,current,5.00,"АТ ""АКБ ""Львів""",09801546,юридична особа
УГП,Львівська область,43,2020-06-22,1026,Інші витрати,Інші витрати,256707,Центральний офіс,39481037,Україна,"Оплата за послуги згідно рахунку №СФ-0000005 від 10.06.2020р., зг.договору №2020/05-1 від 20.05.2020р., без ПДВ",2600671275,current,15000.00,Коваль Ростислав Мирославович,,фізична особа
УГП,"Івано-Франківська область, Івано-Франківськ, вулиця Січових стрільців, 15",70,2020-06-19,K6JO0Q51M7,Банківські послуги,Інші витрати,257017,Івано-Франківська обласна організація,40026836,Івано-Франківська область,Сплата комiсiї за касове обслуговування червень 2020,26005052517967,current,33.12,"ПАТ КБ ""Приватбанк""",14360570,юридична особа
УГП,"Івано-Франківська область, Івано-Франківськ, вулиця Незалежності, 20",62,2020-06-19,579,Сплата ЄСВ,Податкові платежі,257016,Івано-Франківська обласна організація,40026836,Івано-Франківська область,*;101;40026836;ЄСВ з зарплати за червень 2020р.;;;,26005052517967,current,3620.10,ДПІ в м.Івано-Франківськ,43142559,юридична особа
УГП,"Івано-Франківська область, Івано-Франківськ, вулиця Михайла Грушевського, 32",63,2020-06-19,580,Податок на доходи,Податкові платежі,257015,Івано-Франківська обласна організація,40026836,Івано-Франківська область,*;101;40026836;ПДФО з зарплати за червень 2020р.;;;,26005052517967,current,2961.90,УДКСУ у м. Івано-Франківську,37952250,юридична особа
УГП,"Івано-Франківська область, Івано-Франківськ, вулиця Михайла Грушевського, 32",61,2020-06-19,581,Військовий збір,Податкові платежі,257014,Івано-Франківська обласна організація,40026836,Івано-Франківська область,*;101;40026836;Вiйськовий збiр з зарплати за червень 2020 р.;;;,26005052517967,current,246.83,УДКСУ у м. Івано-Франківську,37952250,юридична особа
УГП,"Івано-Франківська область, Івано-Франківськ, вулиця Січових стрільців, 15",70,2020-06-19,6JO3F3P6JY,Банківські послуги,Інші витрати,257013,Івано-Франківська обласна організація,40026836,Івано-Франківська область,"Комiсiя за виконання платежiв в нацiональнiй валютi, згiдно з вiдкритою офертою банку N б/н вiд 29.09.2015 та тарифiв банку, без ПДВ",26005052517967,current,2.00,"ПАТ КБ ""Приватбанк""",14360570,юридична особа
УГП,"Івано-Франківська область, Івано-Франківськ, вулиця Січових стрільців, 15",70,2020-06-19,6JO3F3P7PY,Банківські послуги,Інші витрати,257012,Івано-Франківська обласна організація,40026836,Івано-Франківська область,"Комiсiя за виконання платежiв в нацiональнiй валютi, згiдно з вiдкритою офертою банку N б/н вiд 29.09.2015 та тарифiв банку, без ПДВ",26005052517967,current,2.00,"ПАТ КБ ""Приватбанк""",14360570,юридична особа
УГП,"Івано-Франківська область, Івано-Франківськ, вулиця Січових стрільців, 15",70,2020-06-19,6JO3F3P7KY,Банківські послуги,Інші витрати,257011,Івано-Франківська обласна організація,40026836,Івано-Франківська область,"Комiсiя за виконання платежiв в нацiональнiй валютi, згiдно з вiдкритою офертою банку N б/н вiд 29.09.2015 та тарифiв банку, без ПДВ",26005052517967,current,2.00,"ПАТ КБ ""Приватбанк""",14360570,юридична особа
УГП,"Львівська область, Львів",84,2020-06-19,1,"Заробітна плата, премії","Заробітна плата, лікарняні, вагітності, відрядження, компенсації",256941,Івано-Франківська обласна організація,40026836,Івано-Франківська область,Заробітна плата за червень 2020 р.,26005052517967,current,295.84,Саїк Олег Ігорович,,фізична особа
УГП,"Івано-Франківська область, Тисменицький район",84,2020-06-19,1,"Заробітна плата, премії","Заробітна плата, лікарняні, вагітності, відрядження, компенсації",256940,Івано-Франківська обласна організація,40026836,Івано-Франківська область,Заробітна плата за червень 2020 р.,26005052517967,current,2258.02,Бабак Віталій Михайлович,,фізична особа
УГП,"Івано-Франківська область, Івано-Франківськ",84,2020-06-19,1,"Заробітна плата, премії","Заробітна плата, лікарняні, вагітності, відрядження, компенсації",256939,Івано-Франківська обласна організація,40026836,Івано-Франківська область,Заробітна плата за червень 2020 р.,26005052517967,current,2213.75,Кучерак-Зоря Анна Володимирівна,,фізична особа
УГП,"Івано-Франківська область, Івано-Франківськ",84,2020-06-19,1,"Заробітна плата, премії","Заробітна плата, лікарняні, вагітності, відрядження, компенсації",256938,Івано-Франківська обласна організація,40026836,Івано-Франківська область,Заробітна плата за червень 2020 р.,26005052517967,current,2258.02,Бондарчук Андрій Михайлович,,фізична особа
УГП,Івано-Франківська область,84,2020-06-19,1,"Заробітна плата, премії","Заробітна плата, лікарняні, вагітності, відрядження, компенсації",256937,Івано-Франківська обласна організація,40026836,Івано-Франківська область,Заробітна плата за червень 2020 р.,26005052517967,current,2966.42,Сербин Наталія Зіновіївна,,фізична особа
УГП,Івано-Франківська область,84,2020-06-19,1,"Заробітна плата, премії","Заробітна плата, лікарняні, вагітності, відрядження, компенсації",256936,Івано-Франківська обласна організація,40026836,Івано-Франківська область,Заробітна плата за червень 2020 р.,26005052517967,current,3254.21,Івасишин Світлана Ярославівна,,фізична особа
УГП,"Львівська область, Львів, вулиця Сербська, 1",70,2020-06-19,474780,Банківські послуги,Інші витрати,256866,Центральний офіс,39481037,Україна,"Сплата комісії за переказ коштів з поточного рахунку після 17:00 за межі Банку за допомогою системи Клієнт-Банк по документу №1025, від 19.06.2020. Без ПДВ",2600671275,current,105.00,"АТ ""АКБ ""Львів""",09801546,юридична особа
УГП,"Тернопільська область, Тернопіль, проспект Степана Бандери, 38",70,2020-06-17,6HO3ESW7YY,Банківські послуги,Інші витрати,257244,Тернопільська обласна організація,40011526,Тернопільська область,"Комiсiя за виконання платежiв в нацiональнiй валютi, згiдно з вiдкритою офертою банку N б/н вiд 21.09.2015 та тарифiв банку, без ПДВ.",UA263387830000026006055117228,current,2.00,"ПАТ КБ ""Приватбанк""",14360570,юридична особа
УГП,"Львівська область, Борислав, вулиця Данила Галицького, 34",79,2020-06-17,398,"Оренда будинків і приміщень та експлуатаційні витрати (прибирання, страхування орендованих будинків, охорона, сигналізація, ремонт, вивіз сміття, тощо)",Оренда нерухомості,257123,Львівська обласна організація,40014820,Львівська область,"Оплата за оренду приміщення 24,4кв.м. за червень 2020р. та відшкодув. земел. подат 2020р зг. рах. №82 від 16.06.2020р., зг.дог. оренди №1 від 01.10.2018р., без ПДВ",UA113252680000000002600477437,current,504.64,Бориславський міський Палац культ.,25261121,юридична особа
УГП,"Львівська область, Борислав, вулиця Івасюка, 12",79,2020-06-17,399,"Оренда будинків і приміщень та експлуатаційні витрати (прибирання, страхування орендованих будинків, охорона, сигналізація, ремонт, вивіз сміття, тощо)",Оренда нерухомості,257122,Львівська обласна організація,40014820,Львівська область,"Оплата за оренду приміщення 24,4кв.м. за червень 2020р., згідно рах. №83 від 16.06.2020р., згідно договору оренди №1 від 01.10.2018р., без ПДВ",UA113252680000000002600477437,current,468.71,УДКСУ у м. Бориславі,37942974,юридична особа
УГП,"Львівська область, Борислав, вулиця Данила Галицького, 34",79,2020-06-17,400,"Оренда будинків і приміщень та експлуатаційні витрати (прибирання, страхування орендованих будинків, охорона, сигналізація, ремонт, вивіз сміття, тощо)",Оренда нерухомості,257121,Львівська обласна організація,40014820,Львівська область,"Оплата відшкодування за водопостачання та водовідведення за червень 2020р. зг. рах.№84 від 16.06.2020р., зг. дог.оренди №1 від 01.10.2018р., без ПДВ",UA113252680000000002600477437,current,17.94,Бориславський міський Палац культ.,25261121,юридична особа
УГП,"Львівська область, Львів, вулиця Сербська, 1",70,2020-06-17,398982,Банківські послуги,Інші витрати,257120,Львівська обласна організація,40014820,Львівська область,"Сплата комісії за переказ коштів з поточного рахунку до 17:00 за межі Банку за допомогою системи Клієнт-Банк по документу №400, від 17.06.2020. Без ПДВ",UA113252680000000002600477437,current,5.00,"АТ ""АКБ ""Львів""",09801546,юридична особа
УГП,"Львівська область, Львів, вулиця Сербська, 1",70,2020-06-17,398980,Банківські послуги,Інші витрати,257119,Львівська обласна організація,40014820,Львівська область,"Сплата комісії за переказ коштів з поточного рахунку до 17:00 за межі Банку за допомогою системи Клієнт-Банк по документу №398, від 17.06.2020. Без ПДВ",UA113252680000000002600477437,current,5.00,"АТ ""АКБ ""Львів""",09801546,юридична особа
УГП,"Львівська область, Львів, вулиця Сербська, 1",70,2020-06-17,398981,Банківські послуги,Інші витрати,257118,Львівська обласна організація,40014820,Львівська область,"Сплата комісії за переказ коштів з поточного рахунку до 17:00 за межі Банку за допомогою системи Клієнт-Банк по документу №399, від 17.06.2020. Без ПДВ",UA113252680000000002600477437,current,5.00,"АТ ""АКБ ""Львів""",09801546,юридична особа
УГП,"Київ, вулиця Юрія Іллєнка, 12",53,2020-06-17,1023,Витрати на розміщення зовнішньої реклами,Зовнішня реклама,256865,Центральний офіс,39481037,Україна,"Попередня оплата за розміщення зовнішньої реклами згідно рахунку-фактури № СФ-0000002 від 16.06.2020р., згідно договору від 16.06.2020р,в т.ч.ПДВ- 10000,00 грн.",2600671275,current,60000.00,"ПП ""АРТКОМ""",32711215,юридична особа
УГП,"Львівська область, Львів, вулиця Сербська, 1",70,2020-06-17,405486,Банківські послуги,Інші витрати,256862,Центральний офіс,39481037,Україна,"Сплата комісії за переказ коштів з поточного рахунку до 17:00 за межі Банку за допомогою системи Клієнт-Банк по документу №1021, від 17.06.2020. Без ПДВ",2600671275,current,5.00,"АТ ""АКБ ""Львів""",09801546,юридична особа
УГП,"Львівська область, Львів, вулиця Сербська, 1",70,2020-06-17,409162,Банківські послуги,Інші витрати,256861,Центральний офіс,39481037,Україна,"Сплата комісії за переказ коштів з поточного рахунку до 17:00 за межі Банку за допомогою системи Клієнт-Банк по документу №1022, від 17.06.2020. Без ПДВ",2600671275,current,5.00,"АТ ""АКБ ""Львів""",09801546,юридична особа
УГП,"Львівська область, Львів, вулиця Сербська, 1",70,2020-06-17,417534,Банківські послуги,Інші витрати,256860,Центральний офіс,39481037,Україна,"Сплата комісії за переказ коштів з поточного рахунку до 17:00 за межі Банку за допомогою системи Клієнт-Банк по документу №1023, від 17.06.2020. Без ПДВ",2600671275,current,5.00,"АТ ""АКБ ""Львів""",09801546,юридична особа
УГП,"Львівська область, Львів, вулиця Стрийська, 35",62,2020-06-16,396,Сплата ЄСВ,Податкові платежі,257117,Львівська обласна організація,40014820,Львівська область,"*;101;40014820; 22,0% нарах. єдиного внеску на заробітну плату за 1 пол.червня 2020р., - 2178,00 грн.;;;",UA113252680000000002600477437,current,2178.00,ГОЛОВНЕ УПРАВЛІННЯ ДФС У ЛЬВІВСЬКІЙ ОБЛАСТІ,43143039,юридична особа
УГП,"Львівська область, Львів, вулиця Конотопська, 6",63,2020-06-16,395,Податок на доходи,Податкові платежі,257116,Львівська обласна організація,40014820,Львівська область,"*;101;40014820; податок на доходи фізичних осіб із заробітної плати за 1 пол.червня 2020р. , 18% - 1782,00 грн.;;;",UA113252680000000002600477437,current,1782.00,УДКСУ у Франківському районі м. Львова,37965138,юридична особа
УГП,"Львівська область, Львів, вулиця Конотопська, 6",61,2020-06-16,394,Військовий збір,Податкові платежі,257115,Львівська обласна організація,40014820,Львівська область,"*;101;40014820; утриманий військовий збір із заробітної плати за 1 пол.червня 2020р. , 1,5% - 148,50 грн.;;;",UA113252680000000002600477437,current,148.50,УДКСУ у Франківському районі м. Львова,37965138,юридична особа
УГП,"Львівська область, Львів, вулиця Сербська, 1",70,2020-06-16,388693,Банківські послуги,Інші витрати,257114,Львівська обласна організація,40014820,Львівська область,"Сплата комісії за зарахуванню коштів на рахунки фізичних осіб підприємства по зарплатному проекту по документу №388692, від 16.06.2020. Без ПДВ",UA113252680000000002600477437,current,47.82,"АТ ""АКБ ""Львів""",09801546,юридична особа
УГП,"Львівська область, Львів, вулиця Сербська, 1",70,2020-06-16,367966,Банківські послуги,Інші витрати,257113,Львівська обласна організація,40014820,Львівська область,"Сплата комісії за переказ коштів з поточного рахунку до 17:00 за межі Банку за допомогою системи Клієнт-Банк по документу №394, від 16.06.2020. Без ПДВ",UA113252680000000002600477437,current,5.00,"АТ ""АКБ ""Львів""",09801546,юридична особа
УГП,"Львівська область, Львів, вулиця Сербська, 1",70,2020-06-16,367968,Банківські послуги,Інші витрати,257112,Львівська обласна організація,40014820,Львівська область,"Сплата комісії за переказ коштів з поточного рахунку до 17:00 за межі Банку за допомогою системи Клієнт-Банк по документу №395, від 16.06.2020. Без ПДВ",UA113252680000000002600477437,current,5.00,"АТ ""АКБ ""Львів""",09801546,юридична особа
УГП,"Львівська область, Львів, вулиця Сербська, 1",70,2020-06-16,387943,Банківські послуги,Інші витрати,257111,Львівська обласна організація,40014820,Львівська область,"Сплата комісії за переказ коштів з поточного рахунку до 17:00 за межі Банку за допомогою системи Клієнт-Банк по документу №397, від 16.06.2020. Без ПДВ",UA113252680000000002600477437,current,5.00,"АТ ""АКБ ""Львів""",09801546,юридична особа
УГП,"Львівська область, Львів, вулиця Сербська, 1",70,2020-06-16,367969,Банківські послуги,Інші витрати,257110,Львівська обласна організація,40014820,Львівська область,"Сплата комісії за переказ коштів з поточного рахунку до 17:00 за межі Банку за допомогою системи Клієнт-Банк по документу №396, від 16.06.2020. Без ПДВ",UA113252680000000002600477437,current,5.00,"АТ ""АКБ ""Львів""",09801546,юридична особа
УГП,"Львівська область, Львів",84,2020-06-16,388694,"Заробітна плата, премії","Заробітна плата, лікарняні, вагітності, відрядження, компенсації",257045,Львівська обласна організація,40014820,Львівська область,Заробітна плата за 1 половину червня 2020р.,UA113252680000000002600477437,current,2978.50,Щурко Іван Петрович,,фізична особа
УГП,"Львівська область, Львів",84,2020-06-16,388696,"Заробітна плата, премії","Заробітна плата, лікарняні, вагітності, відрядження, компенсації",257044,Львівська обласна організація,40014820,Львівська область,Заробітна плата за 1 половину червня 2020р.,UA113252680000000002600477437,current,2495.50,Небельмес Аліна Михайлівна,,фізична особа
УГП,"Львівська область, Львів",84,2020-06-16,388695,"Заробітна плата, премії","Заробітна плата, лікарняні, вагітності, відрядження, компенсації",257043,Львівська обласна організація,40014820,Львівська область,Заробітна плата за 1 половину червня 2020р.,UA113252680000000002600477437,current,2495.50,Кузько Марʼяна Михайлівна,,фізична особа
УГП,"Львівська область, Яворівський район, Яворів",53,2020-06-16,397,Витрати на розміщення зовнішньої реклами,Зовнішня реклама,257042,Львівська обласна організація,40014820,Львівська область,"Оплата за розміщення інформаційного матеріалу на рекламних конструкціях згідно рахунку-фактури № 1 від 29.04.2020р., без ПДВ",UA113252680000000002600477437,current,16000.00,Бачинська Роксолана Володимирівна,,фізична особа
УГП,"Львівська область, Львів, вулиця Стрийська, 35",62,2020-06-16,1018,Сплата ЄСВ,Податкові платежі,256858,Центральний офіс,39481037,Україна,"*;101;39481037; нарах.єдиного внеску на зароб.плату за 1 пол.червня 2020р. - 22,0%, 8.41% - 4678,81 грн.;;;",2600671275,current,4678.81,ГОЛОВНЕ УПРАВЛІННЯ ДФС У ЛЬВІВСЬКІЙ ОБЛАСТІ,43143039,юридична особа
УГП,"Львівська область, Львів, вулиця Конотопська, 6",63,2020-06-16,1017,Податок на доходи,Податкові платежі,256857,Центральний офіс,39481037,Україна,"*;101;39481037; податок на доходи фізичних осіб із зароб.плати за 1 пол.червня 2020р., 18% - 4284,00 грн.;;;",2600671275,current,4284.00,УДКСУ у Франківському районі м. Львова,37965138,юридична особа
УГП,"Львівська область, Львів, вулиця Іларіона Свєнціцького, 1",76,2020-06-16,1019,Послуги зв’язку,Послуги зв’язку,256856,Центральний офіс,39481037,Україна,"181691; попередня оплата за телекомунікац.послуги за Липень 2020 р., згід.рахунку №2837193 від 15.06.2020 зг. дог. №181691 від 01.04.2018, в т.ч.ПДВ 20% 165.50 грн.",2600671275,current,993.00,"ДП ""НТЦ ""Українська академічна і дослідницька мережа"" Інституту фізики конденсованих систем НАН України""",30275262,юридична особа
УГП,"Львівська область, Львів, вулиця Конотопська, 6",61,2020-06-16,1016,Військовий збір,Податкові платежі,256855,Центральний офіс,39481037,Україна,"*;101;39481037; утриманий військовий збір із зароб.плати за 1 пол.червня 2020р., 1,5% - 357,00 грн.;;;",2600671275,current,357.00,УДКСУ у Франківському районі м. Львова,37965138,юридична особа
УГП,"Львівська область, Львів, вулиця Сербська, 1",70,2020-06-16,365876,Банківські послуги,Інші витрати,256854,Центральний офіс,39481037,Україна,"Сплата комісії за зарахуванню коштів на рахунки фізичних осіб підприємства по зарплатному проекту по документу №365875, від 16.06.2020. Без ПДВ",2600671275,current,114.95,"АТ ""АКБ ""Львів""",09801546,юридична особа
УГП,"Львівська область, Львів, вулиця Сербська, 1",70,2020-06-16,362229,Банківські послуги,Інші витрати,256853,Центральний офіс,39481037,Україна,"Сплата комісії за переказ коштів з поточного рахунку до 17:00 за межі Банку за допомогою системи Клієнт-Банк по документу №1016, від 16.06.2020. Без ПДВ",2600671275,current,5.00,"АТ ""АКБ ""Львів""",09801546,юридична особа
УГП,"Львівська область, Львів, вулиця Сербська, 1",70,2020-06-16,362259,Банківські послуги,Інші витрати,256852,Центральний офіс,39481037,Україна,"Сплата комісії за переказ коштів з поточного рахунку до 17:00 за межі Банку за допомогою системи Клієнт-Банк по документу №1018, від 16.06.2020. Без ПДВ",2600671275,current,5.00,"АТ ""АКБ ""Львів""",09801546,юридична особа
УГП,"Львівська область, Львів, вулиця Сербська, 1",70,2020-06-16,362246,Банківські послуги,Інші витрати,256851,Центральний офіс,39481037,Україна,"Сплата комісії за переказ коштів з поточного рахунку до 17:00 за межі Банку за допомогою системи Клієнт-Банк по документу №1017, від 16.06.2020. Без ПДВ",2600671275,current,5.00,"АТ ""АКБ ""Львів""",09801546,юридична особа
УГП,"Львівська область, Львів, вулиця Сербська, 1",70,2020-06-16,367045,Банківські послуги,Інші витрати,256850,Центральний офіс,39481037,Україна,"Сплата комісії за переказ коштів з поточного рахунку до 17:00 в межах системи Банку за допомогою системи Клієнт-Банк по документу №1019, від 16.06.2020. Без ПДВ",2600671275,current,3.00,"АТ ""АКБ ""Львів""",09801546,юридична особа
УГП,"Львівська область, Львів, вулиця Сербська, 1",70,2020-06-16,387874,Банківські послуги,Інші витрати,256849,Центральний офіс,39481037,Україна,"Сплата комісії за переказ коштів з поточного рахунку до 17:00 в межах системи Банку за допомогою системи Клієнт-Банк по документу №1020, від 16.06.2020. Без ПДВ",2600671275,current,3.00,"АТ ""АКБ ""Львів""",09801546,юридична особа
УГП,Львівська область,84,2020-06-16,365877,"Заробітна плата, премії","Заробітна плата, лікарняні, вагітності, відрядження, компенсації",256706,Центральний офіс,39481037,Україна,Заробітна плата за 1 половину червня 2020р.,2600671275,current,4387.25,Моряк Ірина Миколаївна,,фізична особа
УГП,Тернопільська область,84,2020-06-16,365879,"Заробітна плата, премії","Заробітна плата, лікарняні, вагітності, відрядження, компенсації",256705,Центральний офіс,39481037,Україна,Заробітна плата за 1 половину червня 2020р.,2600671275,current,3381.00,Яремчук Ірина Романівна,,фізична особа
УГП,"Івано-Франківська область, Івано-Франківськ",84,2020-06-16,365882,"Заробітна плата, премії","Заробітна плата, лікарняні, вагітності, відрядження, компенсації",256704,Центральний офіс,39481037,Україна,Заробітна плата за 1 половину червня 2020р.,2600671275,current,3381.00,Романчук Любомир Петрович,,фізична особа
УГП,"Львівська область, Львів",84,2020-06-16,365878,"Заробітна плата, премії","Заробітна плата, лікарняні, вагітності, відрядження, компенсації",256703,Центральний офіс,39481037,Україна,Заробітна плата за 1 половину червня 2020р.,2600671275,current,3300.50,Дякович Ігор Володимирович,,фізична особа
УГП,"Львівська область, Львів",84,2020-06-16,365880,"Заробітна плата, премії","Заробітна плата, лікарняні, вагітності, відрядження, компенсації",256702,Центральний офіс,39481037,Україна,Заробітна плата за 1 половину червня 2020р.,2600671275,current,2616.25,Сало Ірина Володимирівна,,фізична особа
УГП,"Львівська область, Львів",84,2020-06-16,365881,"Заробітна плата, премії","Заробітна плата, лікарняні, вагітності, відрядження, компенсації",256701,Центральний офіс,39481037,Україна,Заробітна плата за 1 половину червня 2020р.,2600671275,current,2093.00,Хрущак Світлана Іванівна,,фізична особа
УГП,"Івано-Франківська область, Івано-Франківськ, вулиця Січових стрільців, 15",70,2020-06-15,6FO3EGVY1Y,Банківські послуги,Інші витрати,257010,Івано-Франківська обласна організація,40026836,Івано-Франківська область,"Комiсiя за виконання платежiв в нацiональнiй валютi, згiдно з вiдкритою офертою банку N б/н вiд 29.09.2015 та тарифiв банку, без ПДВ",26005052517967,current,2.00,"ПАТ КБ ""Приватбанк""",14360570,юридична особа
УГП,"Івано-Франківська область, Івано-Франківськ, вулиця Незалежності, 6",75,2020-06-15,578,Поштові послуги та поширення друкованих матеріалів,Поштові послуги та поширення друкованих матеріалів,257009,Івано-Франківська обласна організація,40026836,Івано-Франківська область,"Оплата за доставку рекламної продукції згідно рахунку №31 від 12.06.2020 р. У сумі 7400.00 грн., ПДВ - 20 % 1480.00 грн.",26005052517967,current,8880.00,Івано-Франківська дирекція АТ Укрпошта,22178632,юридична особа
УГП,"Львівська область, Львів, вулиця Сербська, 1",70,2020-06-15,352159,Банківські послуги,Інші витрати,256847,Центральний офіс,39481037,Україна,"Сплата комісії за переказ коштів з поточного рахунку до 17:00 за межі Банку за допомогою системи Клієнт-Банк по документу №1015, від 15.06.2020. Без ПДВ",2600671275,current,5.00,"АТ ""АКБ ""Львів""",09801546,юридична особа
УГП,"Київ, вулиця Велика Васильківська, 114/2",58,2020-06-12,1014,"Виготовлення друкованих матеріалів (плакатів, листівок, буклетів та інших агітаційних матеріалів)",Друкована агітація,256846,Центральний офіс,39481037,Україна,"Оплата за брошури згідно рахунку № 1869 від 11.06.2020р., в т.ч. ПДВ 7350,00 грн.",2600671275,current,44100.00,"ТОВ ""APT СТУДІЯ ДРУКУ""",37250375,юридична особа
УГП,"Львівська область, Львів, вулиця Сербська, 1",70,2020-06-12,303915,Банківські послуги,Інші витрати,256845,Центральний офіс,39481037,Україна,"Сплата комісії за переказ коштів з поточного рахунку до 17:00 за межі Банку за допомогою системи Клієнт-Банк по документу №1014, від 12.06.2020. Без ПДВ",2600671275,current,5.00,"АТ ""АКБ ""Львів""",09801546,юридична особа
УГП,"Львівська область, Львів, вулиця Нечуя-Левицького, 23, 4Б",79,2020-06-09,1013,"Оренда будинків і приміщень та експлуатаційні витрати (прибирання, страхування орендованих будинків, охорона, сигналізація, ремонт, вивіз сміття, тощо)",Оренда нерухомості,256844,Центральний офіс,39481037,Україна,"Оплата за оренду арок за червень 2020р. згідно рахунку №170 від 01.06.2020р., зг.дог. від 08.11.2019,в т.ч. ПДВ 20% 5400.00 грн.",2600671275,current,32400.00,"ТОВ ""Аврора Адвертайзінг""",38893253,юридична особа
УГП,"Львівська область, Львів, вулиця Сербська, 1",70,2020-06-09,226474,Банківські послуги,Інші витрати,256843,Центральний офіс,39481037,Україна,"Сплата комісії за переказ коштів з поточного рахунку до 17:00 за межі Банку за допомогою системи Клієнт-Банк по документу №1013, від 09.06.2020. Без ПДВ",2600671275,current,5.00,"АТ ""АКБ ""Львів""",09801546,юридична особа
УГП,"Тернопільська область, Тернопіль, проспект Степана Бандери, 38",70,2020-06-05,DT0659G7FP,Банківські послуги,Інші витрати,257243,Тернопільська обласна організація,40011526,Тернопільська область,"Комiсiя за проведення платежу вiд 05.06.2020, згiдно договору банкiвського рахунку вiд 21.09.2015, без ПДВ",UA263387830000026006055117228,current,6.00,"ПАТ КБ ""Приватбанк""",14360570,юридична особа
УГП,"Тернопільська область, Тернопіль, вулиця Листопадова, 3",63,2020-06-05,519,Податок на доходи,Податкові платежі,257242,Тернопільська обласна організація,40011526,Тернопільська область,*;101;40011526;11010400 / ПДФО з оренди офiсу згiдно договору вiд 22.02.2019 року за травень 2020р.;;;,UA263387830000026006055117228,current,1341.72,УДКСУ у м. Тернопіль,37977726,юридична особа
УГП,"Тернопільська область, Тернопіль, проспект Степана Бандери, 38",70,2020-06-05,65O3DGRA0Y,Банківські послуги,Інші витрати,257241,Тернопільська обласна організація,40011526,Тернопільська область,"Комiсiя за виконання платежiв в нацiональнiй валютi, згiдно з вiдкритою офертою банку N б/н вiд 21.09.2015 та тарифiв банку, без ПДВ",UA263387830000026006055117228,current,2.00,"ПАТ КБ ""Приватбанк""",14360570,юридична особа
УГП,"Тернопільська область, Тернопіль, вулиця Листопадова, 3",61,2020-06-05,518,Військовий збір,Податкові платежі,257240,Тернопільська обласна організація,40011526,Тернопільська область,*;101;40011526;11011000 / Вiйськовий збiр з оренди офiсу згiдно договору вiд 22.02.2019 року за травень 2020р.;;;,UA263387830000026006055117228,current,111.81,УДКСУ у м. Тернопіль,37977726,юридична особа
УГП,"Тернопільська область, Тернопіль, проспект Степана Бандери, 38",70,2020-06-05,65O3DGRA6Y,Банківські послуги,Інші витрати,257239,Тернопільська обласна організація,40011526,Тернопільська область,"Комiсiя за виконання платежiв в нацiональнiй валютi, згiдно з вiдкритою офертою банку N б/н вiд 21.09.2015 та тарифiв банку, без ПДВ",UA263387830000026006055117228,current,2.00,"ПАТ КБ ""Приватбанк""",14360570,юридична особа
УГП,"Тернопільська область, Тернопіль, вулиця Білецька, 1",62,2020-06-05,K65O0PSZ04,Сплата ЄСВ,Податкові платежі,257238,Тернопільська обласна організація,40011526,Тернопільська область,ЄСВ за травень 2020р.,UA263387830000026006055117228,current,4400.00,ГУ ДПС у Тернопільській області,43142763,юридична особа
УГП,"Тернопільська область, Тернопіль, вулиця Листопадова, 3",61,2020-06-05,K65O0PSZ07,Військовий збір,Податкові платежі,257237,Тернопільська обласна організація,40011526,Тернопільська область,Вiйськовий збiр за травень 2020р.,UA263387830000026006055117228,current,300.00,УДКСУ у м. Тернопіль,37977726,юридична особа
УГП,"Тернопільська область, Тернопіль, вулиця Листопадова, 3",63,2020-06-05,K65O0PSZ08,Податок на доходи,Податкові платежі,257236,Тернопільська обласна організація,40011526,Тернопільська область,ПДФО за травень 2020р.,UA263387830000026006055117228,current,3600.00,УДКСУ у м. Тернопіль,37977726,юридична особа
УГП,"Тернопільська область, Тернопіль, проспект Степана Бандери, 38",70,2020-06-05,K65O0PSZ09,Банківські послуги,Інші витрати,257235,Тернопільська обласна організація,40011526,Тернопільська область,Сплата комiсiї за касове обслуговування травень 2020р.,UA263387830000026006055117228,current,40.25,"ПАТ КБ ""Приватбанк""",14360570,юридична особа
УГП,"Тернопільська область, Збаразький район, Збараж",79,2020-06-05,520,"Оренда будинків і приміщень та експлуатаційні витрати (прибирання, страхування орендованих будинків, охорона, сигналізація, ремонт, вивіз сміття, тощо)",Оренда нерухомості,257173,Тернопільська обласна організація,40011526,Тернопільська область,Оплата за оренду офiсу згiдно договору вiд 22.02.2019року за травень 2020р.,UA263387830000026006055117228,current,6000.47,Лучка Андрій Володимирович,,фізична особа
УГП,"Тернопільська область, Тернопіль",84,2020-06-05,1,"Заробітна плата, премії","Заробітна плата, лікарняні, вагітності, відрядження, компенсації",257172,Тернопільська обласна організація,40011526,Тернопільська область,"Заробітна плата,за травень 2020р.",UA263387830000026006055117228,current,2012.50,Фірман Ольга Ярославівна,,фізична особа
УГП,"Тернопільська область, Тернопіль",84,2020-06-05,1,"Заробітна плата, премії","Заробітна плата, лікарняні, вагітності, відрядження, компенсації",257171,Тернопільська обласна організація,40011526,Тернопільська область,"Заробітна плата,за травень 2020р.",UA263387830000026006055117228,current,2616.25,Сукач Анастасія Святославівна,,фізична особа
УГП,"Тернопільська область, Бучацький район",84,2020-06-05,1,"Заробітна плата, премії","Заробітна плата, лікарняні, вагітності, відрядження, компенсації",257170,Тернопільська обласна організація,40011526,Тернопільська область,"Заробітна плата,за травень 2020р.",UA263387830000026006055117228,current,3018.75,Кізюк Іван Йосипович,,фізична особа
УГП,"Тернопільська область, Тернопіль",84,2020-06-05,1,"Заробітна плата, премії","Заробітна плата, лікарняні, вагітності, відрядження, компенсації",257169,Тернопільська обласна організація,40011526,Тернопільська область,"Заробітна плата,за травень 2020р.",UA263387830000026006055117228,current,3220.00,Войтович Анна Вʼячеславівна,,фізична особа
УГП,"Тернопільська область, Теребовлянський район",84,2020-06-05,1,"Заробітна плата, премії","Заробітна плата, лікарняні, вагітності, відрядження, компенсації",257168,Тернопільська обласна організація,40011526,Тернопільська область,"Заробітна плата,за травень 2020р.",UA263387830000026006055117228,current,3018.75,Вітвіцький Олег Іванович,,фізична особа
УГП,"Тернопільська область, Тернопіль",84,2020-06-05,1,"Заробітна плата, премії","Заробітна плата, лікарняні, вагітності, відрядження, компенсації",257167,Тернопільська обласна організація,40011526,Тернопільська область,"Заробітна плата,за травень 2020р.",UA263387830000026006055117228,current,2213.75,Богун Андрій Ігорович,,фізична особа
УГП,"Львівська область, Львів, вулиця Сербська, 1",70,2020-06-05,154867,Банківські послуги,Інші витрати,256842,Центральний офіс,39481037,Україна,"Сплата комісії за переказ коштів з поточного рахунку до 17:00 за межі Банку за допомогою системи Клієнт-Банк по документу №1012, від 05.06.2020. Без ПДВ",2600671275,current,5.00,"АТ ""АКБ ""Львів""",09801546,юридична особа
УГП,"Львівська область, Львів",53,2020-06-05,1012,Витрати на розміщення зовнішньої реклами,Зовнішня реклама,256700,Центральний офіс,39481037,Україна,"Оплата за послуги розміщ. реклами на рекламоносіях у травні зг. рах.-факт. №СФ-0000084 від 04.06.2020р., зг.договору№11-11-01 від 11.11.2019р., без ПДВ",2600671275,current,27000.00,Хома Віктор Ярославович,,фізична особа
УГП,"Харківська область, Харків, вулиця Космічна, 21А",79,2020-06-04,1008,"Оренда будинків і приміщень та експлуатаційні витрати (прибирання, страхування орендованих будинків, охорона, сигналізація, ремонт, вивіз сміття, тощо)",Оренда нерухомості,256841,Центральний офіс,39481037,Україна,"Оплата за оренду приміщення за червень зг. рах.№46 від 02.06.2020р. зг. договору суборенди №1-05/19 від 15.05.2019р.,без ПДВ",2600671275,current,52925.32,"ТОВ ""Елліко""",40310575,юридична особа
УГП,"Харківська область, Харків, вулиця Космічна, 21А",79,2020-06-04,1009,"Оренда будинків і приміщень та експлуатаційні витрати (прибирання, страхування орендованих будинків, охорона, сигналізація, ремонт, вивіз сміття, тощо)",Оренда нерухомості,256840,Центральний офіс,39481037,Україна,"Оплата за тех.обсл., електроенерг., водопостач. і газ за травень 2020р. зг. рах. №51 від 02.06.2020р.,зг. договору суборенди №1- 05/19 від 15.05.2019р,без ПДВ",2600671275,current,3326.54,"ТОВ ""Елліко""",40310575,юридична особа
УГП,"Львівська область, Львів, вулиця Петра Дорошенка, 43",76,2020-06-04,1010,Послуги зв’язку,Послуги зв’язку,256839,Центральний офіс,39481037,Україна,"Оплата за телеком.посл.за квітень-червень 2020р. зг. дог.№ 4600000000017884 від 26.10.16, зг. рах. №4600000000017884.5.2020 від 31.05.2020,в т.ч.ПДВ 70,07 грн.",2600671275,current,420.42,"ПАТ ""Укртелеком""",21560766,юридична особа
УГП,"Київ, вулиця Смоленська, 31/33",76,2020-06-04,1011,Послуги зв’язку,Послуги зв’язку,256838,Центральний офіс,39481037,Україна,"01002112851489; оплата за телекомун.послуги за травень 2020 зг. рах. №0800218956/А364*4292628 від 31.05.20, дог. №0800218956/А364 від 26.11.18,в т.ч. ПДВ 8.36 грн",2600671275,current,50.17,"ПрАТ ""Датагруп""",31720260,юридична особа
УГП,"Львівська область, Львів, вулиця Сербська, 1",70,2020-06-04,122444,Банківські послуги,Інші витрати,256837,Центральний офіс,39481037,Україна,"Сплата комісії за переказ коштів з поточного рахунку до 17:00 за межі Банку за допомогою системи Клієнт-Банк по документу №1008, від 04.06.2020. Без ПДВ",2600671275,current,5.00,"АТ ""АКБ ""Львів""",09801546,юридична особа
УГП,"Львівська область, Львів, вулиця Сербська, 1",70,2020-06-04,123038,Банківські послуги,Інші витрати,256836,Центральний офіс,39481037,Україна,"Сплата комісії за переказ коштів з поточного рахунку до 17:00 за межі Банку за допомогою системи Клієнт-Банк по документу №1011, від 04.06.2020. Без ПДВ",2600671275,current,5.00,"АТ ""АКБ ""Львів""",09801546,юридична особа
УГП,"Львівська область, Львів, вулиця Сербська, 1",70,2020-06-04,122783,Банківські послуги,Інші витрати,256835,Центральний офіс,39481037,Україна,"Сплата комісії за переказ коштів з поточного рахунку до 17:00 за межі Банку за допомогою системи Клієнт-Банк по документу №1010, від 04.06.2020. Без ПДВ",2600671275,current,5.00,"АТ ""АКБ ""Львів""",09801546,юридична особа
УГП,"Львівська область, Львів, вулиця Сербська, 1",70,2020-06-04,122599,Банківські послуги,Інші витрати,256834,Центральний офіс,39481037,Україна,"Сплата комісії за переказ коштів з поточного рахунку до 17:00 за межі Банку за допомогою системи Клієнт-Банк по документу №1009, від 04.06.2020. Без ПДВ",2600671275,current,5.00,"АТ ""АКБ ""Львів""",09801546,юридична особа
УГП,"Івано-Франківська область, Івано-Франківськ, вулиця Січових стрільців, 15",70,2020-06-03,K63O0PR5VC,Банківські послуги,Інші витрати,257008,Івано-Франківська обласна організація,40026836,Івано-Франківська область,Сплата комісії за касове обслуговування травень 2020р.,26005052517967,current,37.56,"ПАТ КБ ""Приватбанк""",14360570,юридична особа
УГП,"Івано-Франківська область, Івано-Франківськ, вулиця Січових стрільців, 15",70,2020-06-03,63O3D4SOBY,Банківські послуги,Інші витрати,257007,Івано-Франківська обласна організація,40026836,Івано-Франківська область,"Комiсiя за виконання платежiв в нацiональнiй валютi, згiдно з вiдкритою офертою банку N б/н вiд 29.09.2015 та тарифiв банку, без ПДВ",26005052517967,current,2.00,"ПАТ КБ ""Приватбанк""",14360570,юридична особа
УГП,"Івано-Франківська область, Івано-Франківськ, вулиця Незалежності, 20",62,2020-06-03,576,Сплата ЄСВ,Податкові платежі,257006,Івано-Франківська обласна організація,40026836,Івано-Франківська область,*;101;40026836;ЄСВ з зарплати за травень 2020р.;;;,26005052517967,current,4105.90,ДПІ в м.Івано-Франківськ,43142559,юридична особа
УГП,"Івано-Франківська область, Івано-Франківськ, вулиця Січових стрільців, 15",70,2020-06-03,63O3D4SO3Y,Банківські послуги,Інші витрати,257005,Івано-Франківська обласна організація,40026836,Івано-Франківська область,"Комiсiя за виконання платежiв в нацiональнiй валютi, згiдно з вiдкритою офертою банку N б/н вiд 29.09.2015 та тарифiв банку, без ПДВ",26005052517967,current,2.00,"ПАТ КБ ""Приватбанк""",14360570,юридична особа
УГП,"Івано-Франківська область, Івано-Франківськ, вулиця Михайла Грушевського, 32",63,2020-06-03,577,Податок на доходи,Податкові платежі,257004,Івано-Франківська обласна організація,40026836,Івано-Франківська область,*;101;40026836;ПДФО з зарплати за травень 2020р.;;;,26005052517967,current,3359.37,УДКСУ у м. Івано-Франківську,37952250,юридична особа
УГП,"Івано-Франківська область, Івано-Франківськ, вулиця Січових стрільців, 15",70,2020-06-03,63O3D4SO0Y,Банківські послуги,Інші витрати,257003,Івано-Франківська обласна організація,40026836,Івано-Франківська область,"Комiсiя за виконання платежiв в нацiональнiй валютi, згiдно з вiдкритою офертою банку N б/н вiд 29.09.2015 та тарифiв банку, без ПДВ",26005052517967,current,2.00,"ПАТ КБ ""Приватбанк""",14360570,юридична особа
УГП,"Івано-Франківська область, Івано-Франківськ, вулиця Михайла Грушевського, 32",61,2020-06-03,578,Військовий збір,Податкові платежі,257002,Івано-Франківська обласна організація,40026836,Івано-Франківська область,*;101;40026836;Військовий збір з зарплати за травень 2020 р.;;;,26005052517967,current,279.95,УДКСУ у м. Івано-Франківську,37952250,юридична особа
УГП,"Львівська область, Львів",84,2020-06-03,1,"Заробітна плата, премії","Заробітна плата, лікарняні, вагітності, відрядження, компенсації",256935,Івано-Франківська обласна організація,40026836,Івано-Франківська область,Заробітна плата за травень 2020р.,26005052517967,current,2802.68,Саїк Олег Ігорович,,фізична особа
УГП,"Івано-Франківська область, Тисменицький район",84,2020-06-03,1,"Заробітна плата, премії","Заробітна плата, лікарняні, вагітності, відрядження, компенсації",256934,Івано-Франківська обласна організація,40026836,Івано-Франківська область,Заробітна плата за травень 2020р.,26005052517967,current,1944.71,Бабак Віталій Михайлович,,фізична особа
УГП,"Івано-Франківська область, Івано-Франківськ",84,2020-06-03,1,"Заробітна плата, премії","Заробітна плата, лікарняні, вагітності, відрядження, компенсації",256933,Івано-Франківська обласна організація,40026836,Івано-Франківська область,Заробітна плата за травень 2020р.,26005052517967,current,1906.57,Кучерак-Зоря Анна Володимирівна,,фізична особа
УГП,Івано-Франківська область,84,2020-06-03,1,"Заробітна плата, премії","Заробітна плата, лікарняні, вагітності, відрядження, компенсації",256932,Івано-Франківська обласна організація,40026836,Івано-Франківська область,Заробітна плата за травень 2020р.,26005052517967,current,1067.68,Демяник Наталія Іванівна,,фізична особа
УГП,"Івано-Франківська область, Івано-Франківськ",84,2020-06-03,1,"Заробітна плата, премії","Заробітна плата, лікарняні, вагітності, відрядження, компенсації",256931,Івано-Франківська обласна організація,40026836,Івано-Франківська область,Заробітна плата за травень 2020р.,26005052517967,current,1944.71,Бондарчук Андрій Михайлович,,фізична особа
УГП,Івано-Франківська область,84,2020-06-03,1,"Заробітна плата, премії","Заробітна плата, лікарняні, вагітності, відрядження, компенсації",256930,Івано-Франківська обласна організація,40026836,Івано-Франківська область,Заробітна плата за травень 2020р.,26005052517967,current,2554.81,Сербин Наталія Зіновіївна,,фізична особа
УГП,Івано-Франківська область,84,2020-06-03,1,"Заробітна плата, премії","Заробітна плата, лікарняні, вагітності, відрядження, компенсації",256929,Івано-Франківська обласна організація,40026836,Івано-Франківська область,Заробітна плата за травень 2020р.,26005052517967,current,2802.68,Івасишин Світлана Ярославівна,,фізична особа
УГП,"Івано-Франківська область, Івано-Франківськ",79,2020-06-03,575,"Оренда будинків і приміщень та експлуатаційні витрати (прибирання, страхування орендованих будинків, охорона, сигналізація, ремонт, вивіз сміття, тощо)",Оренда нерухомості,256928,Івано-Франківська обласна організація,40026836,Івано-Франківська область,"За оренду офiсного примiщення за 06.2020р., згiдно рах.N6 вiд 02.06.2020р., без ПДВ",26005052517967,current,20000.00,Петровський Олександр Павлович,,фізична особа
УГП,"Тернопільська область, Тернопіль, проспект Степана Бандери, 38",70,2020-06-02,DT06283ZEP,Банківські послуги,Інші витрати,257234,Тернопільська обласна організація,40011526,Тернопільська область,"Комiсiя за проведення платежу вiд 02.06.2020, згiдно договору банкiвського рахунку вiд 21.09.2015, без ПДВ",UA263387830000026006055117228,current,6.00,"ПАТ КБ ""Приватбанк""",14360570,юридична особа
УГП,"Тернопільська область, Тернопіль, вулиця Чорновола, 1",79,2020-06-02,515,"Оренда будинків і приміщень та експлуатаційні витрати (прибирання, страхування орендованих будинків, охорона, сигналізація, ремонт, вивіз сміття, тощо)",Оренда нерухомості,257233,Тернопільська обласна організація,40011526,Тернопільська область,"Опл. зг. рах.№24 вiд 30.04.2020р. за оренду 04.2020. У сумi 825.00 грн., ПДВ - 20 % 165.00 грн.",UA263387830000026006055117228,current,990.00,"Тернопільська дирекція ПАТ ""Укрпошта""",01192220,юридична особа
УГП,"Тернопільська область, Тернопіль, проспект Степана Бандери, 38",70,2020-06-02,62O3D3D8LY,Банківські послуги,Інші витрати,257232,Тернопільська обласна організація,40011526,Тернопільська область,"Комiсiя за виконання платежiв в нацiональнiй валютi, згiдно з вiдкритою офертою банку N б/н вiд 21.09.2015 та тарифiв банку, без ПДВ",UA263387830000026006055117228,current,2.00,"ПАТ КБ ""Приватбанк""",14360570,юридична особа
УГП,"Київ, бульвар Тараса Шевченка, 18",76,2020-06-02,516,Послуги зв’язку,Послуги зв’язку,257231,Тернопільська обласна організація,40011526,Тернопільська область,"Оплата за iнтернет за травень 2020р. Особовий рахунок 6100120000003930 У сумi 200.83 грн., ПДВ - 20 % 40.17 грн.",UA263387830000026006055117228,current,241.00,"ПАТ ""Укртелеком""",21560766,юридична особа
УГП,"Тернопільська область, Тернопіль, проспект Степана Бандери, 38",70,2020-06-02,62O3D3D8SY,Банківські послуги,Інші витрати,257230,Тернопільська обласна організація,40011526,Тернопільська область,"Комiсiя за виконання платежiв в нацiональнiй валютi, згiдно з вiдкритою офертою банку N б/н вiд 21.09.2015 та тарифiв банку, без ПДВ",UA263387830000026006055117228,current,2.00,"ПАТ КБ ""Приватбанк""",14360570,юридична особа
УГП,"Тернопільська область, Тернопіль, вулиця Анатолія Живова, 15А",53,2020-06-02,517,Витрати на розміщення зовнішньої реклами,Зовнішня реклама,257229,Тернопільська обласна організація,40011526,Тернопільська область,Оплата за оренду рекламних площин згiдно рах. № 17-05 вiд 01.05.2020р. Без ПДВ,UA263387830000026006055117228,current,1200.00,"ТОВ ""Торговий комплекс ""Кристал""",39504970,юридична особа
УГП,"Тернопільська область, Тернопіль, проспект Степана Бандери, 38",70,2020-06-02,62O3D3D8XY,Банківські послуги,Інші витрати,257228,Тернопільська обласна організація,40011526,Тернопільська область,"Комiсiя за виконання платежiв в нацiональнiй валютi, згiдно з вiдкритою офертою банку N б/н вiд 21.09.2015 та тарифiв банку, без ПДВ",UA263387830000026006055117228,current,2.00,"ПАТ КБ ""Приватбанк""",14360570,юридична особа
УГП,"Тернопільська область, Тернопіль, вулиця Білецька, 1",62,2020-06-02,K62O0PQU07,Сплата ЄСВ,Податкові платежі,257227,Тернопільська обласна організація,40011526,Тернопільська область,ЄСВ за червень 2020р.,UA263387830000026006055117228,current,1415.57,ГУ ДПС у Тернопільській області,43142763,юридична особа
УГП,"Тернопільська область, Тернопіль, вулиця Листопадова, 3",61,2020-06-02,K62O0PQU08,Військовий збір,Податкові платежі,257226,Тернопільська обласна організація,40011526,Тернопільська область,Вiйськовий збiр за червень 2020р.,UA263387830000026006055117228,current,96.52,УДКСУ у м. Тернопіль,37977726,юридична особа
УГП,"Тернопільська область, Тернопіль, вулиця Листопадова, 3",63,2020-06-02,K62O0PQU09,Податок на доходи,Податкові платежі,257225,Тернопільська обласна організація,40011526,Тернопільська область,ПДФО за червень 2020р.,UA263387830000026006055117228,current,1158.19,УДКСУ у м. Тернопіль,37977726,юридична особа
УГП,"Тернопільська область, Тернопіль, проспект Степана Бандери, 38",70,2020-06-02,K62O0PQU0A,Банківські послуги,Інші витрати,257224,Тернопільська обласна організація,40011526,Тернопільська область,Сплата комiсiї за касове обслуговування червень 2020р.,UA263387830000026006055117228,current,12.95,"ПАТ КБ ""Приватбанк""",14360570,юридична особа
УГП,"Тернопільська область, Тернопіль",83,2020-06-02,1,"Виплати працівникам (не зарплата): лікарняні, вагітності, відрядження, компенсації ","Заробітна плата, лікарняні, вагітності, відрядження, компенсації",257166,Тернопільська обласна організація,40011526,Тернопільська область,"Відпускні,за червень 2020р.",UA263387830000026006055117228,current,5179.69,Войтович Анна Вʼячеславівна,,фізична особа
УГП,"Львівська область, Львів, вулиця Стрийська, 35",62,2020-06-02,393,Сплата ЄСВ,Податкові платежі,257109,Львівська обласна організація,40014820,Львівська область,"*;101;40014820; 22,0% нарах. єдиного внеску на заробітну плату за 2 пол.травня 2020р., - 2292,55 грн.;;;",UA113252680000000002600477437,current,2292.55,ГОЛОВНЕ УПРАВЛІННЯ ДФС У ЛЬВІВСЬКІЙ ОБЛАСТІ,43143039,юридична особа
УГП,"Львівська область, Львів, вулиця Конотопська, 6",63,2020-06-02,392,Податок на доходи,Податкові платежі,257108,Львівська обласна організація,40014820,Львівська область,"*;101;40014820; податок на доходи фізичних осіб із заробітної плати за 2 пол.травня 2020р. , 18% - 1875,79 грн.;;;",UA113252680000000002600477437,current,1875.79,УДКСУ у Франківському районі м. Львова,37965138,юридична особа
УГП,"Львівська область, Львів, вулиця Конотопська, 6",61,2020-06-02,391,Військовий збір,Податкові платежі,257107,Львівська обласна організація,40014820,Львівська область,"*;101;40014820; утриманий військовий збір із заробітної плати за 2 пол.травня 2020р. , 1,5% - 156,32 грн.;;;",UA113252680000000002600477437,current,156.32,УДКСУ у Франківському районі м. Львова,37965138,юридична особа
УГП,"Львівська область, Львів, вулиця Сербська, 1",70,2020-06-02,73228,Банківські послуги,Інші витрати,257106,Львівська обласна організація,40014820,Львівська область,"Сплата комісії за зарахуванню коштів на рахунки фізичних осіб підприємства по зарплатному проекту по документу №73227, від 02.06.2020. Без ПДВ",UA113252680000000002600477437,current,50.33,"АТ ""АКБ ""Львів""",09801546,юридична особа
УГП,"Львівська область, Львів, вулиця Сербська, 1",70,2020-06-02,72827,Банківські послуги,Інші витрати,257105,Львівська обласна організація,40014820,Львівська область,"Сплата комісії за переказ коштів з поточного рахунку до 17:00 за межі Банку за допомогою системи Клієнт-Банк по документу №392, від 02.06.2020. Без ПДВ",UA113252680000000002600477437,current,5.00,"АТ ""АКБ ""Львів""",09801546,юридична особа
УГП,"Львівська область, Львів, вулиця Сербська, 1",70,2020-06-02,72828,Банківські послуги,Інші витрати,257104,Львівська обласна організація,40014820,Львівська область,"Сплата комісії за переказ коштів з поточного рахунку до 17:00 за межі Банку за допомогою системи Клієнт-Банк по документу №393, від 02.06.2020. Без ПДВ",UA113252680000000002600477437,current,5.00,"АТ ""АКБ ""Львів""",09801546,юридична особа
УГП,"Львівська область, Львів, вулиця Сербська, 1",70,2020-06-02,72826,Банківські послуги,Інші витрати,257103,Львівська обласна організація,40014820,Львівська область,"Сплата комісії за переказ коштів з поточного рахунку до 17:00 за межі Банку за допомогою системи Клієнт-Банк по документу №391, від 02.06.2020. Без ПДВ",UA113252680000000002600477437,current,5.00,"АТ ""АКБ ""Львів""",09801546,юридична особа
УГП,"Львівська область, Львів",84,2020-06-02,73229,"Заробітна плата, премії","Заробітна плата, лікарняні, вагітності, відрядження, компенсації",257041,Львівська обласна організація,40014820,Львівська область,Заробітна плата за 2 половину травня 2020р.,UA113252680000000002600477437,current,3135.27,Щурко Іван Петрович,,фізична особа
УГП,"Львівська область, Львів",84,2020-06-02,73231,"Заробітна плата, премії","Заробітна плата, лікарняні, вагітності, відрядження, компенсації",257040,Львівська обласна організація,40014820,Львівська область,Заробітна плата за 2 половину травня 2020р.,UA113252680000000002600477437,current,2626.84,Небельмес Аліна Михайлівна,,фізична особа
УГП,"Львівська область, Львів",84,2020-06-02,73230,"Заробітна плата, премії","Заробітна плата, лікарняні, вагітності, відрядження, компенсації",257039,Львівська обласна організація,40014820,Львівська область,Заробітна плата за 2 половину травня 2020р.,UA113252680000000002600477437,current,2626.84,Кузько Марʼяна Михайлівна,,фізична особа
УГП,"Львівська область, Львів, вулиця Стрийська, 35",62,2020-06-02,1004,Сплата ЄСВ,Податкові платежі,256830,Центральний офіс,39481037,Україна,"*;101;39481037; нарах.єдиного внеску на зароб.плату за 2 пол.травня 2020р. - 22,0%, 8.41% - 4172,44 грн.;;;",2600671275,current,4172.44,ГОЛОВНЕ УПРАВЛІННЯ ДФС У ЛЬВІВСЬКІЙ ОБЛАСТІ,43143039,юридична особа
УГП,"Львівська область, Львів, вулиця Конотопська, 6",63,2020-06-02,1003,Податок на доходи,Податкові платежі,256829,Центральний офіс,39481037,Україна,"*;101;39481037; податок на доходи фізичних осіб із зароб.плати за за 2 пол.травня 2020р., 18% - 3893,68 грн.;;;",2600671275,current,3893.68,УДКСУ у Франківському районі м. Львова,37965138,юридична особа
УГП,"Львівська область, Львів, вулиця Конотопська, 6",61,2020-06-02,1002,Військовий збір,Податкові платежі,256828,Центральний офіс,39481037,Україна,"*;101;39481037; утриманий військовий збір із зароб.плати за 2 пол.травня 2020р., 1,5% - 324,47 грн.;;;",2600671275,current,324.47,УДКСУ у Франківському районі м. Львова,37965138,юридична особа
УГП,"Львівська область, Львів, вулиця Сербська, 1",70,2020-06-02,73769,Банківські послуги,Інші витрати,256827,Центральний офіс,39481037,Україна,"Сплата комісії за зарахуванню коштів на рахунки фізичних осіб підприємства по зарплатному проекту по документу №73768, від 02.06.2020. Без ПДВ",2600671275,current,104.48,"АТ ""АКБ ""Львів""",09801546,юридична особа
УГП,"Львівська область, Львів, вулиця Сербська, 1",70,2020-06-02,66584,Банківські послуги,Інші витрати,256826,Центральний офіс,39481037,Україна,"Сплата комісії за переказ коштів з поточного рахунку до 17:00 за межі Банку за допомогою системи Клієнт-Банк по документу №1003, від 02.06.2020. Без ПДВ",2600671275,current,5.00,"АТ ""АКБ ""Львів""",09801546,юридична особа
УГП,"Львівська область, Львів, вулиця Сербська, 1",70,2020-06-02,66607,Банківські послуги,Інші витрати,256825,Центральний офіс,39481037,Україна,"Сплата комісії за переказ коштів з поточного рахунку до 17:00 за межі Банку за допомогою системи Клієнт-Банк по документу №1004, від 02.06.2020. Без ПДВ",2600671275,current,5.00,"АТ ""АКБ ""Львів""",09801546,юридична особа
УГП,"Львівська область, Львів, вулиця Сербська, 1",70,2020-06-02,71638,Банківські послуги,Інші витрати,256824,Центральний офіс,39481037,Україна,"Сплата комісії за переказ коштів з поточного рахунку до 17:00 за межі Банку за допомогою системи Клієнт-Банк по документу №1005, від 02.06.2020. Без ПДВ",2600671275,current,5.00,"АТ ""АКБ ""Львів""",09801546,юридична особа
УГП,"Львівська область, Львів, вулиця Сербська, 1",70,2020-06-02,74981,Банківські послуги,Інші витрати,256823,Центральний офіс,39481037,Україна,"Сплата комісії за переказ коштів з поточного рахунку до 17:00 за межі Банку за допомогою системи Клієнт-Банк по документу №1006, від 02.06.2020. Без ПДВ",2600671275,current,5.00,"АТ ""АКБ ""Львів""",09801546,юридична особа
УГП,"Львівська область, Львів, вулиця Сербська, 1",70,2020-06-02,66535,Банківські послуги,Інші витрати,256822,Центральний офіс,39481037,Україна,"Сплата комісії за переказ коштів з поточного рахунку до 17:00 за межі Банку за допомогою системи Клієнт-Банк по документу №1002, від 02.06.2020. Без ПДВ",2600671275,current,5.00,"АТ ""АКБ ""Львів""",09801546,юридична особа
УГП,"Львівська область, Львів, вулиця Сербська, 1",70,2020-06-02,77342,Банківські послуги,Інші витрати,256821,Центральний офіс,39481037,Україна,Плата за переказ коштів з поточного рахунку до 17:00 в межах системи Банку за допомогою системи Клієнт-Банк за період 02.06.20-02.06.20 зг. договору. №N40.00.00,2600671275,current,3.00,"АТ ""АКБ ""Львів""",09801546,юридична особа
УГП,Львівська область,84,2020-06-02,73770,"Заробітна плата, премії","Заробітна плата, лікарняні, вагітності, відрядження, компенсації",256699,Центральний офіс,39481037,Україна,Заробітна плата за 2 половину травня 2020р.,2600671275,current,4618.16,Моряк Ірина Миколаївна,,фізична особа
УГП,"Івано-Франківська область, Івано-Франківськ",84,2020-06-02,73772,"Заробітна плата, премії","Заробітна плата, лікарняні, вагітності, відрядження, компенсації",256698,Центральний офіс,39481037,Україна,Заробітна плата за 2 половину травня 2020р.,2600671275,current,3558.94,Романчук Любомир Петрович,,фізична особа
УГП,Тернопільська область,84,2020-06-02,73771,"Заробітна плата, премії","Заробітна плата, лікарняні, вагітності, відрядження, компенсації",256697,Центральний офіс,39481037,Україна,Заробітна плата за 2 половину травня 2020р.,2600671275,current,3558.94,Яремчук Ірина Романівна,,фізична особа
УГП,"Львівська область, Львів",84,2020-06-02,73774,"Заробітна плата, премії","Заробітна плата, лікарняні, вагітності, відрядження, компенсації",256696,Центральний офіс,39481037,Україна,Заробітна плата за 2 половину травня 2020р.,2600671275,current,3474.21,Дякович Ігор Володимирович,,фізична особа
УГП,"Львівська область, Львів",84,2020-06-02,73773,"Заробітна плата, премії","Заробітна плата, лікарняні, вагітності, відрядження, компенсації",256695,Центральний офіс,39481037,Україна,Заробітна плата за 2 половину травня 2020р.,2600671275,current,2203.16,Хрущак Світлана Іванівна,,фізична особа
УГП,"Тернопільська область, Тернопіль, проспект Степана Бандери, 38",70,2020-06-01,AS05TCWEWP,Банківські послуги,Інші витрати,257223,Тернопільська обласна організація,40011526,Тернопільська область,"Комiсiя за обслуговування рахунку за травень 2020 р. згiдно договору банкiвського рахунку вiд 21.09.2015, без ПДВ",UA263387830000026006055117228,current,100.00,"ПАТ КБ ""Приватбанк""",14360570,юридична особа
УГП,"Івано-Франківська область, Івано-Франківськ, вулиця Січових стрільців, 15",70,2020-06-01,AS05tc4y7p,Банківські послуги,Інші витрати,257001,Івано-Франківська обласна організація,40026836,Івано-Франківська область,"Комісія за обслуговування рахунку за травень 2020 р. згідно договору банківського рахунку від 29.09.2015, без ПДВ",26005052517967,current,100.00,"ПАТ КБ ""Приватбанк""",14360570,юридична особа
УГП,"Львівська область, Львів, вулиця Нечуя-Левицького, 23, 4Б",53,2020-06-01,1025,Витрати на розміщення зовнішньої реклами,Зовнішня реклама,256867,Центральний офіс,39481037,Україна,"Попередня оплата рекламних площин за серпень 2020 р. згідно рахунку №190 від 19.06.2020р., зг.дог. від 08.11.2019,в т.ч. ПДВ 20% 17500.00 грн",2600671275,current,105000.00,"ТОВ ""Аврора Адвертайзінг""",38893253,юридична особа
УГП,"Львівська область, Львів, вулиця Стрийська, 35",62,2020-05-29,390,Сплата ЄСВ,Податкові платежі,257102,Львівська обласна організація,40014820,Львівська область,"*;101;40014820; 22,0% нарах. єдиного внеску на заробітну плату за 2 пол. травня 2020р. Та компенсацію невикор. відпустки при звільненні, - 1040,00 грн.;;;",UA113252680000000002600477437,current,1040.00,ГОЛОВНЕ УПРАВЛІННЯ ДФС У ЛЬВІВСЬКІЙ ОБЛАСТІ,43143039,юридична особа
УГП,"Львівська область, Львів, вулиця Конотопська, 6",63,2020-05-29,389,Податок на доходи,Податкові платежі,257101,Львівська обласна організація,40014820,Львівська область,"*;101;40014820; податок на доходи фізичних осіб із заробітної плати за 2 пол. травня 2020р. Та компенсації невикор. відпустки при звільненні, 18% - 850,86 грн.;;;",UA113252680000000002600477437,current,850.86,УДКСУ у Франківському районі м. Львова,37965138,юридична особа
УГП,"Львівська область, Львів, вулиця Сербська, 1",70,2020-05-29,704546,Банківські послуги,Інші витрати,257100,Львівська обласна організація,40014820,Львівська область,Комісія за ведення функціонуючого рахунку за період 01.05.20-31.05.20 зг. договору. №N40.00.002425/РКО вiд 17.09.2015,UA113252680000000002600477437,current,100.00,"АТ ""АКБ ""Львів""",09801546,юридична особа
УГП,"Львівська область, Львів, вулиця Конотопська, 6",61,2020-05-29,388,Військовий збір,Податкові платежі,257099,Львівська обласна організація,40014820,Львівська область,"*;101;40014820; утриманий військовий збір із заробітної плати за 2 пол. травня 2020р. Та компенсації невикор. відпустки при звільненні, 1,5% - 70,91 грн.;;;",UA113252680000000002600477437,current,70.91,УДКСУ у Франківському районі м. Львова,37965138,юридична особа
УГП,"Львівська область, Львів, вулиця Сербська, 1",70,2020-05-29,704547,Банківські послуги,Інші витрати,257098,Львівська обласна організація,40014820,Львівська область,"Комісія за pозрахункове обслуговування Клієнтів по системі ""Клієнт-Банк"" за період 01.05.20-31.05.20 зг. договору. №N40. 00.002425/РКО вiд 17.09.2015",UA113252680000000002600477437,current,50.00,"АТ ""АКБ ""Львів""",09801546,юридична особа
УГП,"Львівська область, Львів, вулиця Сербська, 1",70,2020-05-29,687594,Банківські послуги,Інші витрати,257097,Львівська обласна організація,40014820,Львівська область,"Сплата комісії за зарахуванню коштів на рахунки фізичних осіб підприємства по зарплатному проекту по документу №687590, від 29.05.2020. Без ПДВ",UA113252680000000002600477437,current,22.83,"АТ ""АКБ ""Львів""",09801546,юридична особа
УГП,"Львівська область, Львів, вулиця Сербська, 1",70,2020-05-29,687151,Банківські послуги,Інші витрати,257096,Львівська обласна організація,40014820,Львівська область,"Сплата комісії за переказ коштів з поточного рахунку до 17:00 за межі Банку за допомогою системи Клієнт-Банк по документу №390, від 29.05.2020. Без ПДВ",UA113252680000000002600477437,current,5.00,"АТ ""АКБ ""Львів""",09801546,юридична особа
УГП,"Львівська область, Львів, вулиця Сербська, 1",70,2020-05-29,687150,Банківські послуги,Інші витрати,257095,Львівська обласна організація,40014820,Львівська область,"Сплата комісії за переказ коштів з поточного рахунку до 17:00 за межі Банку за допомогою системи Клієнт-Банк по документу №389, від 29.05.2020. Без ПДВ",UA113252680000000002600477437,current,5.00,"АТ ""АКБ ""Львів""",09801546,юридична особа
УГП,"Львівська область, Львів, вулиця Сербська, 1",70,2020-05-29,687149,Банківські послуги,Інші витрати,257094,Львівська обласна організація,40014820,Львівська область,"Сплата комісії за переказ коштів з поточного рахунку до 17:00 за межі Банку за допомогою системи Клієнт-Банк по документу №388, від 29.05.2020. Без ПДВ",UA113252680000000002600477437,current,5.00,"АТ ""АКБ ""Львів""",09801546,юридична особа
УГП,"Львівська область, Львів",84,2020-05-29,687595,"Заробітна плата, премії","Заробітна плата, лікарняні, вагітності, відрядження, компенсації",257038,Львівська обласна організація,40014820,Львівська область,Заробітна плата за 2 половину травня 2020р. та компенсація невикористаної відпустки при звільненні,UA113252680000000002600477437,current,3805.23,Сало Ірина Володимирівна,,фізична особа
УГП,"Львівська область, Львів, вулиця Кондукторська, 16",79,2020-05-29,997,"Оренда будинків і приміщень та експлуатаційні витрати (прибирання, страхування орендованих будинків, охорона, сигналізація, ремонт, вивіз сміття, тощо)",Оренда нерухомості,256819,Центральний офіс,39481037,Україна,"Оплата за послуги охорони обʼєкта та ГШР за травень 2020р., зг. рах.-факт.№ СФ-0000352 від 29.05.20р., зг. дог. № ЦС010619 від 03.06.2019р., без ПДВ",2600671275,current,450.00,"ПП ""Приватна безпека""",33562906,юридична особа
УГП,"Львівська область, Львів, вулиця Стрийська, 35",62,2020-05-29,1000,Сплата ЄСВ,Податкові платежі,256818,Центральний офіс,39481037,Україна,"*;101;39481037; нарах.єдиного внеску на відпускні за червень 2020р. - 22,0%, 8.41% - 192,64 грн.;;;",2600671275,current,192.64,ГОЛОВНЕ УПРАВЛІННЯ ДФС У ЛЬВІВСЬКІЙ ОБЛАСТІ,43143039,юридична особа
УГП,"Львівська область, Львів, вулиця Конотопська, 6",63,2020-05-29,999,Податок на доходи,Податкові платежі,256817,Центральний офіс,39481037,Україна,"*;101;39481037; податок на доходи фізичних осіб із відпускних за червень 2020р., 18% - 157,62 грн.;;;",2600671275,current,157.62,УДКСУ у Франківському районі м. Львова,37965138,юридична особа
УГП,"Львівська область, Львів, вулиця Сербська, 1",70,2020-05-29,704145,Банківські послуги,Інші витрати,256816,Центральний офіс,39481037,Україна,Комісія за ведення функціонуючого рахунку за період 01.05.20-31.05.20 зг. договору. №N40.00.002175/РКО вiд 10.12.2014,2600671275,current,100.00,"АТ ""АКБ ""Львів""",09801546,юридична особа
УГП,"Львівська область, Львів, вулиця Сербська, 1",70,2020-05-29,704147,Банківські послуги,Інші витрати,256815,Центральний офіс,39481037,Україна,"Комісія за pозрахункове обслуговування Клієнтів по системі ""Клієнт-Банк"" за період 01.05.20-31.05.20 зг. договору. №N40. 00.002175/РКО вiд 10.12.2014",2600671275,current,50.00,"АТ ""АКБ ""Львів""",09801546,юридична особа
УГП,"Львівська область, Львів, вулиця Конотопська, 6",61,2020-05-29,998,Військовий збір,Податкові платежі,256814,Центральний офіс,39481037,Україна,"*;101;39481037; утриманий військовий збір із відпускних за червень 2020р., 1,5% - 13,14 грн.;;;",2600671275,current,13.14,УДКСУ у Франківському районі м. Львова,37965138,юридична особа
УГП,"Львівська область, Львів, вулиця Сербська, 1",70,2020-05-29,685382,Банківські послуги,Інші витрати,256813,Центральний офіс,39481037,Україна,"Сплата комісії за переказ коштів з поточного рахунку до 17:00 за межі Банку за допомогою системи Клієнт-Банк по документу №998, від 29.05.2020. Без ПДВ",2600671275,current,5.00,"АТ ""АКБ ""Львів""",09801546,юридична особа
УГП,"Львівська область, Львів, вулиця Сербська, 1",70,2020-05-29,685384,Банківські послуги,Інші витрати,256812,Центральний офіс,39481037,Україна,"Сплата комісії за переказ коштів з поточного рахунку до 17:00 за межі Банку за допомогою системи Клієнт-Банк по документу №1000, від 29.05.2020. Без ПДВ",2600671275,current,5.00,"АТ ""АКБ ""Львів""",09801546,юридична особа
УГП,"Львівська область, Львів, вулиця Сербська, 1",70,2020-05-29,685383,Банківські послуги,Інші витрати,256811,Центральний офіс,39481037,Україна,"Сплата комісії за переказ коштів з поточного рахунку до 17:00 за межі Банку за допомогою системи Клієнт-Банк по документу №999, від 29.05.2020. Без ПДВ",2600671275,current,5.00,"АТ ""АКБ ""Львів""",09801546,юридична особа
УГП,"Львівська область, Львів, вулиця Сербська, 1",70,2020-05-29,683162,Банківські послуги,Інші витрати,256810,Центральний офіс,39481037,Україна,"Сплата комісії за переказ коштів з поточного рахунку до 17:00 за межі Банку за допомогою системи Клієнт-Банк по документу №997, від 29.05.2020. Без ПДВ",2600671275,current,5.00,"АТ ""АКБ ""Львів""",09801546,юридична особа
УГП,"Львівська область, Львів, вулиця Сербська, 1",70,2020-05-29,686575,Банківські послуги,Інші витрати,256809,Центральний офіс,39481037,Україна,"Сплата комісії за зарахуванню коштів на рахунки фізичних осіб підприємства по зарплатному проекту по документу №686574, від 29.05.2020. Без ПДВ",2600671275,current,4.23,"АТ ""АКБ ""Львів""",09801546,юридична особа
УГП,"Львівська область, Львів, вулиця Сербська, 1",70,2020-05-29,686032,Банківські послуги,Інші витрати,256808,Центральний офіс,39481037,Україна,"Сплата комісії за переказ коштів з поточного рахунку до 17:00 в межах системи Банку за допомогою системи Клієнт-Банк по документу №1001, від 29.05.2020. Без ПДВ",2600671275,current,3.00,"АТ ""АКБ ""Львів""",09801546,юридична особа
УГП,"Львівська область, Львів",83,2020-05-29,686576,"Виплати працівникам (не зарплата): лікарняні, вагітності, відрядження, компенсації ","Заробітна плата, лікарняні, вагітності, відрядження, компенсації",256694,Центральний офіс,39481037,Україна,Виплата відпускних за червень 2020 року,2600671275,current,704.90,Хрущак Світлана Іванівна,,фізична особа
УГП,"Івано-Франківська область, Івано-Франківськ, вулиця Січових стрільців, 15",70,2020-05-28,K5SO0PMSE4,Банківські послуги,Інші витрати,257000,Івано-Франківська обласна організація,40026836,Івано-Франківська область,Сплата комісії за касове обслуговування червень 2020р.,26005052517967,current,6.96,"ПАТ КБ ""Приватбанк""",14360570,юридична особа
УГП,"Івано-Франківська область, Івано-Франківськ, вулиця Січових стрільців, 15",70,2020-05-28,5SO3CKMIIY,Банківські послуги,Інші витрати,256999,Івано-Франківська обласна організація,40026836,Івано-Франківська область,"Комiсiя за виконання платежiв в нацiональнiй валютi, згiдно з вiдкритою офертою банку N б/н вiд 29.09.2015 та тарифiв банку, без ПДВ",26005052517967,current,2.00,"ПАТ КБ ""Приватбанк""",14360570,юридична особа
УГП,"Івано-Франківська область, Івано-Франківськ, вулиця Незалежності, 20",62,2020-05-28,574,Сплата ЄСВ,Податкові платежі,256998,Івано-Франківська обласна організація,40026836,Івано-Франківська область,*;101;40026836;ЄСВ з зарплати за червень 2020р.;;;,26005052517967,current,760.33,ДПІ в м.Івано-Франківськ,43142559,юридична особа
УГП,"Івано-Франківська область, Івано-Франківськ, вулиця Михайла Грушевського, 32",63,2020-05-28,573,Податок на доходи,Податкові платежі,256997,Івано-Франківська обласна організація,40026836,Івано-Франківська область,*;101;40026836;ПДФО з зарплати за червень 2020р.;;;,26005052517967,current,622.09,УДКСУ у м. Івано-Франківську,37952250,юридична особа
УГП,"Івано-Франківська область, Івано-Франківськ, вулиця Січових стрільців, 15",70,2020-05-28,5SO3CKMIEY,Банківські послуги,Інші витрати,256996,Івано-Франківська обласна організація,40026836,Івано-Франківська область,"Комiсiя за виконання платежiв в нацiональнiй валютi, згiдно з вiдкритою офертою банку N б/н вiд 29.09.2015 та тарифiв банку, без ПДВ",26005052517967,current,2.00,"ПАТ КБ ""Приватбанк""",14360570,юридична особа
УГП,"Івано-Франківська область, Івано-Франківськ, вулиця Січових стрільців, 15",70,2020-05-28,5SO3CKMICY,Банківські послуги,Інші витрати,256995,Івано-Франківська обласна організація,40026836,Івано-Франківська область,"Комiсiя за виконання платежiв в нацiональнiй валютi, згiдно з вiдкритою офертою банку N б/н вiд 29.09.2015 та тарифiв банку, без ПДВ",26005052517967,current,2.00,"ПАТ КБ ""Приватбанк""",14360570,юридична особа
УГП,"Івано-Франківська область, Івано-Франківськ, вулиця Михайла Грушевського, 32",61,2020-05-28,572,Військовий збір,Податкові платежі,256994,Івано-Франківська обласна організація,40026836,Івано-Франківська область,*;101;40026836;Військовий збір з зарплати за червень 2020 р.;;;,26005052517967,current,51.84,УДКСУ у м. Івано-Франківську,37952250,юридична особа
УГП,"Львівська область, Львів",84,2020-05-28,1,"Заробітна плата, премії","Заробітна плата, лікарняні, вагітності, відрядження, компенсації",256927,Івано-Франківська обласна організація,40026836,Івано-Франківська область,"Заробітна плата,за червень 2020 р.",26005052517967,current,2782.11,Саїк Олег Ігорович,,фізична особа
УГП,"Львівська область, Львів, вулиця Гуцульська, 9",53,2020-05-28,996,Витрати на розміщення зовнішньої реклами,Зовнішня реклама,256807,Центральний офіс,39481037,Україна,"Оплата за розміщення зовн. реклами з 01.05.2020 по 31.05.2020 згід. рах.-факт. №СФ-00206 від 28.05.2020р., згід. договору від 30.07.2018р., в т.ч. ПДВ 1944,50грн",2600671275,current,11667.00,"ТОВ ’Телерадіокомпанія ""Львівська хвиля""",13824151,юридична особа
УГП,"Львівська область, Львів, вулиця Сербська, 1",70,2020-05-28,657313,Банківські послуги,Інші витрати,256805,Центральний офіс,39481037,Україна,"Сплата комісії за переказ коштів з поточного рахунку до 17:00 за межі Банку за допомогою системи Клієнт-Банк по документу №995, від 28.05.2020. Без ПДВ",2600671275,current,5.00,"АТ ""АКБ ""Львів""",09801546,юридична особа
УГП,"Львівська область, Львів, вулиця Сербська, 1",70,2020-05-28,657575,Банківські послуги,Інші витрати,256804,Центральний офіс,39481037,Україна,"Сплата комісії за переказ коштів з поточного рахунку до 17:00 в межах системи Банку за допомогою системи Клієнт-Банк по документу №996, від 28.05.2020. Без ПДВ",2600671275,current,3.00,"АТ ""АКБ ""Львів""",09801546,юридична особа
УГП,"Івано-Франківська область, Івано-Франківськ, вулиця Михайла Грушевського, 32",61,2020-05-26,569,Військовий збір,Податкові платежі,256993,Івано-Франківська обласна організація,40026836,Івано-Франківська область,*;101;40026836;Військовий збір з зарплати за червень 2020 р.;;;,26005052517967,current,76.81,УДКСУ у м. Івано-Франківську,37952250,юридична особа
УГП,"Івано-Франківська область, Івано-Франківськ, вулиця Січових стрільців, 15",70,2020-05-26,5QO3CAZI8Y,Банківські послуги,Інші витрати,256992,Івано-Франківська обласна організація,40026836,Івано-Франківська область,"Комiсiя за виконання платежiв в нацiональнiй валютi, згiдно з вiдкритою офертою банку N б/н вiд 29.09.2015 та тарифiв банку, без ПДВ",26005052517967,current,2.00,"ПАТ КБ ""Приватбанк""",14360570,юридична особа
УГП,"Івано-Франківська область, Івано-Франківськ, вулиця Січових стрільців, 15",70,2020-05-26,5QO3CAZI4Y,Банківські послуги,Інші витрати,256991,Івано-Франківська обласна організація,40026836,Івано-Франківська область,"Комiсiя за виконання платежiв в нацiональнiй валютi, згiдно з вiдкритою офертою банку N б/н вiд 29.09.2015 та тарифiв банку, без ПДВ",26005052517967,current,2.00,"ПАТ КБ ""Приватбанк""",14360570,юридична особа
УГП,"Івано-Франківська область, Івано-Франківськ, вулиця Михайла Грушевського, 32",63,2020-05-26,570,Податок на доходи,Податкові платежі,256990,Івано-Франківська обласна організація,40026836,Івано-Франківська область,*;101;40026836;ПДФО з зарплати за червень 2020р.;;;,26005052517967,current,921.67,УДКСУ у м. Івано-Франківську,37952250,юридична особа
УГП,"Івано-Франківська область, Івано-Франківськ, вулиця Січових стрільців, 15",70,2020-05-26,5QO3CAZI2Y,Банківські послуги,Інші витрати,256989,Івано-Франківська обласна організація,40026836,Івано-Франківська область,"Комiсiя за виконання платежiв в нацiональнiй валютi, згiдно з вiдкритою офертою банку N б/н вiд 29.09.2015 та тарифiв банку, без ПДВ",26005052517967,current,2.00,"ПАТ КБ ""Приватбанк""",14360570,юридична особа
УГП,"Івано-Франківська область, Івано-Франківськ, вулиця Незалежності, 20",62,2020-05-26,571,Сплата ЄСВ,Податкові платежі,256988,Івано-Франківська обласна організація,40026836,Івано-Франківська область,*;101;40026836;ЄСВ з зарплати за червень 2020р.;;;,26005052517967,current,1126.49,ДПІ в м.Івано-Франківськ,43142559,юридична особа
УГП,"Івано-Франківська область, Івано-Франківськ, вулиця Січових стрільців, 15",70,2020-05-26,K5QO0PKSWD,Банківські послуги,Інші витрати,256987,Івано-Франківська обласна організація,40026836,Івано-Франківська область,Сплата комісії за касове обслуговування червень 2020р.,26005052517967,current,10.30,"ПАТ КБ ""Приватбанк""",14360570,юридична особа
УГП,Івано-Франківська область,84,2020-05-26,1,"Заробітна плата, премії","Заробітна плата, лікарняні, вагітності, відрядження, компенсації",256926,Івано-Франківська обласна організація,40026836,Івано-Франківська область,"Заробітна плата,за червень 2020 р.",26005052517967,current,4121.92,Демяник Наталія Іванівна,,фізична особа
УГП,"Львівська область, Львів, вулиця Сербська, 1",70,2020-05-25,534256,Банківські послуги,Інші витрати,256803,Центральний офіс,39481037,Україна,"Сплата комісії за переказ коштів з поточного рахунку до 17:00 за межі Банку за допомогою системи Клієнт-Банк по документу №994, від 25.05.2020. Без ПДВ",2600671275,current,5.00,"АТ ""АКБ ""Львів""",09801546,юридична особа
УГП,"Львівська область, Пустомитівський район",53,2020-05-25,994,Витрати на розміщення зовнішньої реклами,Зовнішня реклама,256693,Центральний офіс,39481037,Україна,"Оплата за оренду рекламних площин у травні 2020 року згідно рахунку-фактури № СФ-0000054 від 12.05.2020 р., без ПДВ",2600671275,current,50000.00,Біб Юрій Мирославович,,фізична особа
УГП,"Тернопільська область, Тернопіль, проспект Степана Бандери, 38",70,2020-05-22,DT05M7LR7P,Банківські послуги,Інші витрати,257222,Тернопільська обласна організація,40011526,Тернопільська область,"Комiсiя за проведення платежу вiд 22.05.2020, згiдно договору банкiвського рахунку вiд 21.09.2015, без ПДВ",UA263387830000026006055117228,current,6.00,"ПАТ КБ ""Приватбанк""",14360570,юридична особа
УГП,"Тернопільська область, Тернопіль, вулиця Микулинецька, 3А, 1003",79,2020-05-22,514,"Оренда будинків і приміщень та експлуатаційні витрати (прибирання, страхування орендованих будинків, охорона, сигналізація, ремонт, вивіз сміття, тощо)",Оренда нерухомості,257221,Тернопільська обласна організація,40011526,Тернопільська область,Оплата згiдно рахунку № 2757 вiд 05.05.2020р. За охорону офiсу за травень 2020р.,UA263387830000026006055117228,current,400.00,"ТОВ ""Спеціалізований підрозділ охорони ""Дозор-Тернопіль""",38427230,юридична особа
УГП,"Тернопільська область, Тернопіль, вулиця Білецька, 1",62,2020-05-22,K5MO0PHZKK,Сплата ЄСВ,Податкові платежі,257220,Тернопільська обласна організація,40011526,Тернопільська область,ЄСВ за травень 2020р.,UA263387830000026006055117228,current,4400.00,ГУ ДПС у Тернопільській області,43142763,юридична особа
УГП,"Тернопільська область, Тернопіль, вулиця Листопадова, 3",61,2020-05-22,K5MO0PHZKL,Військовий збір,Податкові платежі,257219,Тернопільська обласна організація,40011526,Тернопільська область,Вiйськовий збiр за травень 2020р.,UA263387830000026006055117228,current,300.00,УДКСУ у м. Тернопіль,37977726,юридична особа
УГП,"Тернопільська область, Тернопіль, вулиця Листопадова, 3",63,2020-05-22,K5MO0PHZKM,Податок на доходи,Податкові платежі,257218,Тернопільська обласна організація,40011526,Тернопільська область,ПДФО за травень 2020р.,UA263387830000026006055117228,current,3600.00,УДКСУ у м. Тернопіль,37977726,юридична особа
УГП,"Тернопільська область, Тернопіль, проспект Степана Бандери, 38",70,2020-05-22,K5MO0PHZKN,Банківські послуги,Інші витрати,257217,Тернопільська обласна організація,40011526,Тернопільська область,Сплата комiсiї за касове обслуговування травень 2020р.,UA263387830000026006055117228,current,40.25,"ПАТ КБ ""Приватбанк""",14360570,юридична особа
УГП,"Тернопільська область, Тернопіль",84,2020-05-22,1,"Заробітна плата, премії","Заробітна плата, лікарняні, вагітності, відрядження, компенсації",257165,Тернопільська обласна організація,40011526,Тернопільська область,"Заробітна плата,за травень 2020р.",UA263387830000026006055117228,current,2012.50,Фірман Ольга Ярославівна,,фізична особа
УГП,"Тернопільська область, Тернопіль",84,2020-05-22,1,"Заробітна плата, премії","Заробітна плата, лікарняні, вагітності, відрядження, компенсації",257164,Тернопільська обласна організація,40011526,Тернопільська область,"Заробітна плата,за травень 2020р.",UA263387830000026006055117228,current,2616.25,Сукач Анастасія Святославівна,,фізична особа
УГП,"Тернопільська область, Бучацький район",84,2020-05-22,1,"Заробітна плата, премії","Заробітна плата, лікарняні, вагітності, відрядження, компенсації",257163,Тернопільська обласна організація,40011526,Тернопільська область,"Заробітна плата,за травень 2020р.",UA263387830000026006055117228,current,3018.75,Кізюк Іван Йосипович,,фізична особа
УГП,"Тернопільська область, Теребовлянський район",84,2020-05-22,1,"Заробітна плата, премії","Заробітна плата, лікарняні, вагітності, відрядження, компенсації",257162,Тернопільська обласна організація,40011526,Тернопільська область,"Заробітна плата,за травень 2020р.",UA263387830000026006055117228,current,3018.75,Вітвіцький Олег Іванович,,фізична особа
УГП,"Тернопільська область, Тернопіль",84,2020-05-22,1,"Заробітна плата, премії","Заробітна плата, лікарняні, вагітності, відрядження, компенсації",257161,Тернопільська обласна організація,40011526,Тернопільська область,"Заробітна плата,за травень 2020р.",UA263387830000026006055117228,current,3220.00,Войтович Анна Вʼячеславівна,,фізична особа
УГП,"Тернопільська область, Тернопіль",84,2020-05-22,1,"Заробітна плата, премії","Заробітна плата, лікарняні, вагітності, відрядження, компенсації",257160,Тернопільська обласна організація,40011526,Тернопільська область,"Заробітна плата,за травень 2020р.",UA263387830000026006055117228,current,2213.75,Богун Андрій Ігорович,,фізична особа
УГП,"Львівська область, Львів, вулиця Нечуя-Левицького, 23, 4Б",79,2020-05-21,992,"Оренда будинків і приміщень та експлуатаційні витрати (прибирання, страхування орендованих будинків, охорона, сигналізація, ремонт, вивіз сміття, тощо)",Оренда нерухомості,256802,Центральний офіс,39481037,Україна,"Оплата за оренду арок за травень 2020р. згідно рахунку №135 від 04.05.2020р.,в т.ч. ПДВ 20% 5400.00 грн.",2600671275,current,32400.00,"ТОВ ""Аврора Адвертайзінг""",38893253,юридична особа
УГП,"Львівська область, Львів, вулиця Сербська, 1",70,2020-05-21,480537,Банківські послуги,Інші витрати,256801,Центральний офіс,39481037,Україна,"Сплата комісії за переказ коштів з поточного рахунку до 17:00 за межі Банку за допомогою системи Клієнт-Банк по документу №991, від 21.05.2020. Без ПДВ",2600671275,current,5.00,"АТ ""АКБ ""Львів""",09801546,юридична особа
УГП,"Львівська область, Львів, вулиця Сербська, 1",70,2020-05-21,483963,Банківські послуги,Інші витрати,256800,Центральний офіс,39481037,Україна,"Сплата комісії за переказ коштів з поточного рахунку до 17:00 за межі Банку за допомогою системи Клієнт-Банк по документу №993, від 21.05.2020. Без ПДВ",2600671275,current,5.00,"АТ ""АКБ ""Львів""",09801546,юридична особа
УГП,"Львівська область, Львів, вулиця Сербська, 1",70,2020-05-21,481108,Банківські послуги,Інші витрати,256799,Центральний офіс,39481037,Україна,"Сплата комісії за переказ коштів з поточного рахунку до 17:00 за межі Банку за допомогою системи Клієнт-Банк по документу №992, від 21.05.2020. Без ПДВ",2600671275,current,5.00,"АТ ""АКБ ""Львів""",09801546,юридична особа
УГП,"Львівська область, Пустомитівський район",53,2020-05-21,991,Витрати на розміщення зовнішньої реклами,Зовнішня реклама,256692,Центральний офіс,39481037,Україна,"Оплата за оренду рекламних площин у травні 2020 року згідно рахунку-фактури № СФ-0000054 від 12.05.2020 р., без ПДВ",2600671275,current,50000.00,Біб Юрій Мирославович,,фізична особа
УГП,"Львівська область, Львів",43,2020-05-21,993,Інші витрати,Інші витрати,256691,Центральний офіс,39481037,Україна,"Оплата за послуги згідно рахунку №СФ-0000002 від 20.05.2020р., зг.договору №2020/05-1 від 20.05.2020р., без ПДВ",2600671275,current,15000.00,Коваль Ростислав Мирославович,,фізична особа
УГП,"Івано-Франківська область, Івано-Франківськ, вулиця Січових стрільців, 15",70,2020-05-20,5KO3BPFQ2Y,Банківські послуги,Інші витрати,256986,Івано-Франківська обласна організація,40026836,Івано-Франківська область,"Комiсiя за виконання платежiв в нацiональнiй валютi, згiдно з вiдкритою офертою банку N б/н вiд 29.09.2015 та тарифiв банку, без ПДВ",26005052517967,current,2.00,"ПАТ КБ ""Приватбанк""",14360570,юридична особа
УГП,"Івано-Франківська область, Івано-Франківськ, вулиця Михайла Грушевського, 32",61,2020-05-20,568,Військовий збір,Податкові платежі,256985,Івано-Франківська обласна організація,40026836,Івано-Франківська область,*;101;40026836;Військовий збір з зарплати за травень 2020 р.;;;,26005052517967,current,32.03,УДКСУ у м. Івано-Франківську,37952250,юридична особа
УГП,"Івано-Франківська область, Івано-Франківськ, вулиця Січових стрільців, 15",70,2020-05-20,5KO3BPFPXY,Банківські послуги,Інші витрати,256984,Івано-Франківська обласна організація,40026836,Івано-Франківська область,"Комiсiя за виконання платежiв в нацiональнiй валютi, згiдно з вiдкритою офертою банку N б/н вiд 29.09.2015 та тарифiв банку, без ПДВ",26005052517967,current,2.00,"ПАТ КБ ""Приватбанк""",14360570,юридична особа
УГП,"Івано-Франківська область, Івано-Франківськ, вулиця Михайла Грушевського, 32",63,2020-05-20,567,Податок на доходи,Податкові платежі,256983,Івано-Франківська обласна організація,40026836,Івано-Франківська область,*;101;40026836;ПДФО з зарплати за травень 2020р.;;;,26005052517967,current,384.41,УДКСУ у м. Івано-Франківську,37952250,юридична особа
УГП,"Івано-Франківська область, Івано-Франківськ, вулиця Січових стрільців, 15",70,2020-05-20,5KO3BPFPIY,Банківські послуги,Інші витрати,256982,Івано-Франківська обласна організація,40026836,Івано-Франківська область,"Комiсiя за виконання платежiв в нацiональнiй валютi, згiдно з вiдкритою офертою банку N б/н вiд 29.09.2015 та тарифiв банку, без ПДВ",26005052517967,current,2.00,"ПАТ КБ ""Приватбанк""",14360570,юридична особа
УГП,"Івано-Франківська область, Івано-Франківськ, вулиця Незалежності, 20",62,2020-05-20,566,Сплата ЄСВ,Податкові платежі,256981,Івано-Франківська обласна організація,40026836,Івано-Франківська область,*;101;40026836;ЄСВ з зарплати за травень 2020р.;;;,26005052517967,current,469.83,ДПІ в м.Івано-Франківськ,43142559,юридична особа
УГП,"Івано-Франківська область, Івано-Франківськ, вулиця Січових стрільців, 15",70,2020-05-20,K5KO0PGF0H,Банківські послуги,Інші витрати,256980,Івано-Франківська обласна організація,40026836,Івано-Франківська область,Сплата комісії за касове обслуговуваннятравень 2020р.,26005052517967,current,4.30,"ПАТ КБ ""Приватбанк""",14360570,юридична особа
УГП,Івано-Франківська область,84,2020-05-20,1,"Заробітна плата, премії","Заробітна плата, лікарняні, вагітності, відрядження, компенсації",256925,Івано-Франківська обласна організація,40026836,Івано-Франківська область,Заробітна плата за травень 2020 р.,26005052517967,current,1719.16,Демяник Наталія Іванівна,,фізична особа
УГП,"Львівська область, Львів, вулиця Стрийська, 35",62,2020-05-19,383,Сплата ЄСВ,Податкові платежі,257093,Львівська обласна організація,40014820,Львівська область,"*;101;40014820; 22,0% нарах. єдиного внеску на заробітну плату за 1 пол.травня 2020р., - 2709,49 грн.;;;",UA113252680000000002600477437,current,2709.49,ГОЛОВНЕ УПРАВЛІННЯ ДФС У ЛЬВІВСЬКІЙ ОБЛАСТІ,43143039,юридична особа
УГП,"Львівська область, Львів, вулиця Конотопська, 6",63,2020-05-19,382,Податок на доходи,Податкові платежі,257092,Львівська обласна організація,40014820,Львівська область,"*;101;40014820; податок на доходи фізичних осіб із заробітної плати за 1 пол.травня 2020р. , 18% - 2216,84 грн.;;;",UA113252680000000002600477437,current,2216.84,УДКСУ у Франківському районі м. Львова,37965138,юридична особа
УГП,"Львівська область, Яворівський район, Новояворівськ, вулиця Січових Стрільців, 16",58,2020-05-19,387,"Виготовлення друкованих матеріалів (плакатів, листівок, буклетів та інших агітаційних матеріалів)",Друкована агітація,257091,Львівська обласна організація,40014820,Львівська область,"Оплата за постер згідно рахунку-фактури № СФ-0000206 від 15.05.2020р., в т.ч. ПДВ 200,00 грн.",UA113252680000000002600477437,current,1200.00,"ТОВ ""ПРОПЕТ Прінт""",38502244,юридична особа
УГП,"Львівська область, Борислав, вулиця Івасюка, 12",79,2020-05-19,385,"Оренда будинків і приміщень та експлуатаційні витрати (прибирання, страхування орендованих будинків, охорона, сигналізація, ремонт, вивіз сміття, тощо)",Оренда нерухомості,257090,Львівська обласна організація,40014820,Львівська область,"Оплата за оренду приміщення 24,4кв.м. за травень 2020р., згідно рах. №69 від 15.05.2020р., згідно договору оренди №1 від 01.10.2018р., без ПДВ",UA113252680000000002600477437,current,469.61,УДКСУ у м. Бориславі,37942974,юридична особа
УГП,"Львівська область, Борислав, вулиця Данила Галицького, 34",79,2020-05-19,384,"Оренда будинків і приміщень та експлуатаційні витрати (прибирання, страхування орендованих будинків, охорона, сигналізація, ремонт, вивіз сміття, тощо)",Оренда нерухомості,257089,Львівська обласна організація,40014820,Львівська область,"Оплата за оренду приміщення 24,4кв.м. за травень 2020р. згідно рах.№68 від 15.05.2020р., згідно договору оренди №1 від 01.10.2018р.,без ПДВ",UA113252680000000002600477437,current,469.61,Бориславський міський Палац культ.,25261121,юридична особа
УГП,"Львівська область, Львів, вулиця Конотопська, 6",61,2020-05-19,381,Військовий збір,Податкові платежі,257088,Львівська обласна організація,40014820,Львівська область,"*;101;40014820; утриманий військовий збір із заробітної плати за 1 пол.травня 2020р. , 1,5% - 184,73 грн.;;;",UA113252680000000002600477437,current,184.73,УДКСУ у Франківському районі м. Львова,37965138,юридична особа
УГП,"Львівська область, Львів, вулиця Сербська, 1",70,2020-05-19,422551,Банківські послуги,Інші витрати,257087,Львівська обласна організація,40014820,Львівська область,"Сплата комісії за зарахуванню коштів на рахунки фізичних осіб підприємства по зарплатному проекту по документу №422550, від 19.05.2020. Без ПДВ",UA113252680000000002600477437,current,59.49,"АТ ""АКБ ""Львів""",09801546,юридична особа
УГП,"Львівська область, Борислав, вулиця Данила Галицького, 34",79,2020-05-19,386,"Оренда будинків і приміщень та експлуатаційні витрати (прибирання, страхування орендованих будинків, охорона, сигналізація, ремонт, вивіз сміття, тощо)",Оренда нерухомості,257086,Львівська обласна організація,40014820,Львівська область,"Оплата відшкодування за водопостачання та водовідведення за травень 2020р. зг. рах.№70 від 15.05.2020р., зг. дог.оренди №1від 01.10.2018р.,без ПДВ",UA113252680000000002600477437,current,17.04,Бориславський міський Палац культ.,25261121,юридична особа
УГП,"Львівська область, Львів, вулиця Сербська, 1",70,2020-05-19,422348,Банківські послуги,Інші витрати,257085,Львівська обласна організація,40014820,Львівська область,"Сплата комісії за переказ коштів з поточного рахунку до 17:00 за межі Банку за допомогою системи Клієнт-Банк по документу №382, від 19.05.2020. Без ПДВ",UA113252680000000002600477437,current,5.00,"АТ ""АКБ ""Львів""",09801546,юридична особа
УГП,"Львівська область, Львів, вулиця Сербська, 1",70,2020-05-19,422566,Банківські послуги,Інші витрати,257084,Львівська обласна організація,40014820,Львівська область,"Сплата комісії за переказ коштів з поточного рахунку до 17:00 за межі Банку за допомогою системи Клієнт-Банк по документу №385, від 19.05.2020. Без ПДВ",UA113252680000000002600477437,current,5.00,"АТ ""АКБ ""Львів""",09801546,юридична особа
УГП,"Львівська область, Львів, вулиця Сербська, 1",70,2020-05-19,422567,Банківські послуги,Інші витрати,257083,Львівська обласна організація,40014820,Львівська область,"Сплата комісії за переказ коштів з поточного рахунку до 17:00 за межі Банку за допомогою системи Клієнт-Банк по документу №386, від 19.05.2020. Без ПДВ",UA113252680000000002600477437,current,5.00,"АТ ""АКБ ""Львів""",09801546,юридична особа
УГП,"Львівська область, Львів, вулиця Сербська, 1",70,2020-05-19,422349,Банківські послуги,Інші витрати,257082,Львівська обласна організація,40014820,Львівська область,"Сплата комісії за переказ коштів з поточного рахунку до 17:00 за межі Банку за допомогою системи Клієнт-Банк по документу №383, від 19.05.2020. Без ПДВ",UA113252680000000002600477437,current,5.00,"АТ ""АКБ ""Львів""",09801546,юридична особа
УГП,"Львівська область, Львів, вулиця Сербська, 1",70,2020-05-19,422568,Банківські послуги,Інші витрати,257081,Львівська обласна організація,40014820,Львівська область,"Сплата комісії за переказ коштів з поточного рахунку до 17:00 за межі Банку за допомогою системи Клієнт-Банк по документу №387, від 19.05.2020. Без ПДВ",UA113252680000000002600477437,current,5.00,"АТ ""АКБ ""Львів""",09801546,юридична особа
УГП,"Львівська область, Львів, вулиця Сербська, 1",70,2020-05-19,422347,Банківські послуги,Інші витрати,257080,Львівська обласна організація,40014820,Львівська область,"Сплата комісії за переказ коштів з поточного рахунку до 17:00 за межі Банку за допомогою системи Клієнт-Банк по документу №381, від 19.05.2020. Без ПДВ",UA113252680000000002600477437,current,5.00,"АТ ""АКБ ""Львів""",09801546,юридична особа
УГП,"Львівська область, Львів, вулиця Сербська, 1",70,2020-05-19,422565,Банківські послуги,Інші витрати,257079,Львівська обласна організація,40014820,Львівська область,"Сплата комісії за переказ коштів з поточного рахунку до 17:00 за межі Банку за допомогою системи Клієнт-Банк по документу №384, від 19.05.2020. Без ПДВ",UA113252680000000002600477437,current,5.00,"АТ ""АКБ ""Львів""",09801546,юридична особа
УГП,"Львівська область, Львів",84,2020-05-19,422552,"Заробітна плата, премії","Заробітна плата, лікарняні, вагітності, відрядження, компенсації",257037,Львівська обласна організація,40014820,Львівська область,Заробітна плата за 1 половину травня 2020р.,UA113252680000000002600477437,current,2821.73,Щурко Іван Петрович,,фізична особа
УГП,"Львівська область, Львів",84,2020-05-19,422555,"Заробітна плата, премії","Заробітна плата, лікарняні, вагітності, відрядження, компенсації",257036,Львівська обласна організація,40014820,Львівська область,Заробітна плата за 1 половину травня 2020р.,UA113252680000000002600477437,current,2364.16,Сало Ірина Володимирівна,,фізична особа
УГП,"Львівська область, Львів",84,2020-05-19,422554,"Заробітна плата, премії","Заробітна плата, лікарняні, вагітності, відрядження, компенсації",257035,Львівська обласна організація,40014820,Львівська область,Заробітна плата за 1 половину травня 2020р.,UA113252680000000002600477437,current,2364.16,Небельмес Аліна Михайлівна,,фізична особа
УГП,"Львівська область, Львів",84,2020-05-19,422553,"Заробітна плата, премії","Заробітна плата, лікарняні, вагітності, відрядження, компенсації",257034,Львівська обласна організація,40014820,Львівська область,Заробітна плата за 1 половину травня 2020р.,UA113252680000000002600477437,current,2364.16,Кузько Марʼяна Михайлівна,,фізична особа
УГП,"Івано-Франківська область, Івано-Франківськ, вулиця Січових стрільців, 15",70,2020-05-19,5JO3BH1WCY,Банківські послуги,Інші витрати,256979,Івано-Франківська обласна організація,40026836,Івано-Франківська область,"Комiсiя за виконання платежiв в нацiональнiй валютi, згiдно з вiдкритою офертою банку N б/н вiд 29.09.2015 та тарифiв банку, без ПДВ",26005052517967,current,2.00,"ПАТ КБ ""Приватбанк""",14360570,юридична особа
УГП,"Івано-Франківська область, Івано-Франківськ, вулиця Незалежності, 20",62,2020-05-19,563,Сплата ЄСВ,Податкові платежі,256978,Івано-Франківська обласна організація,40026836,Івано-Франківська область,*;101;40026836;ЄСВ з зарплати за травень 2020р.;;;,26005052517967,current,4967.38,ДПІ в м.Івано-Франківськ,43142559,юридична особа
УГП,"Івано-Франківська область, Івано-Франківськ, вулиця Січових стрільців, 15",70,2020-05-19,5JO3BH1W8Y,Банківські послуги,Інші витрати,256977,Івано-Франківська обласна організація,40026836,Івано-Франківська область,"Комiсiя за виконання платежiв в нацiональнiй валютi, згiдно з вiдкритою офертою банку N б/н вiд 29.09.2015 та тарифiв банку, без ПДВ",26005052517967,current,2.00,"ПАТ КБ ""Приватбанк""",14360570,юридична особа
УГП,"Івано-Франківська область, Івано-Франківськ, вулиця Михайла Грушевського, 32",63,2020-05-19,564,Податок на доходи,Податкові платежі,256976,Івано-Франківська обласна організація,40026836,Івано-Франківська область,*;101;40026836;ПДФО з зарплати за травень 2020р.;;;,26005052517967,current,4064.22,УДКСУ у м. Івано-Франківську,37952250,юридична особа
УГП,"Івано-Франківська область, Івано-Франківськ, вулиця Січових стрільців, 15",70,2020-05-19,5JO3BH1VVY,Банківські послуги,Інші витрати,256975,Івано-Франківська обласна організація,40026836,Івано-Франківська область,"Комiсiя за виконання платежiв в нацiональнiй валютi, згiдно з вiдкритою офертою банку N б/н вiд 29.09.2015 та тарифiв банку, без ПДВ",26005052517967,current,2.00,"ПАТ КБ ""Приватбанк""",14360570,юридична особа
УГП,"Івано-Франківська область, Івано-Франківськ, вулиця Михайла Грушевського, 32",61,2020-05-19,565,Військовий збір,Податкові платежі,256974,Івано-Франківська обласна організація,40026836,Івано-Франківська область,*;101;40026836;Військовий збір з зарплати за травень 2020 р.;;;,26005052517967,current,338.69,УДКСУ у м. Івано-Франківську,37952250,юридична особа
УГП,"Івано-Франківська область, Івано-Франківськ, вулиця Січових стрільців, 15",70,2020-05-19,K5JO0PEWBA,Банківські послуги,Інші витрати,256973,Івано-Франківська обласна організація,40026836,Івано-Франківська область,Сплата комісії за касове обслуговуваннятравень 2020р.,26005052517967,current,45.44,"ПАТ КБ ""Приватбанк""",14360570,юридична особа
УГП,"Львівська область, Львів",84,2020-05-19,1,"Заробітна плата, премії","Заробітна плата, лікарняні, вагітності, відрядження, компенсації",256924,Івано-Франківська обласна організація,40026836,Івано-Франківська область,Заробітна плата за травень 2020 р.,26005052517967,current,3114.07,Саїк Олег Ігорович,,фізична особа
УГП,"Івано-Франківська область, Тисменицький район",84,2020-05-19,1,"Заробітна плата, премії","Заробітна плата, лікарняні, вагітності, відрядження, компенсації",256923,Івано-Франківська обласна організація,40026836,Івано-Франківська область,Заробітна плата за травень 2020 р.,26005052517967,current,2160.79,Бабак Віталій Михайлович,,фізична особа
УГП,"Івано-Франківська область, Івано-Франківськ",84,2020-05-19,1,"Заробітна плата, премії","Заробітна плата, лікарняні, вагітності, відрядження, компенсації",256922,Івано-Франківська обласна організація,40026836,Івано-Франківська область,Заробітна плата за травень 2020 р.,26005052517967,current,2118.43,Кучерак-Зоря Анна Володимирівна,,фізична особа
УГП,Івано-Франківська область,84,2020-05-19,1,"Заробітна плата, премії","Заробітна плата, лікарняні, вагітності, відрядження, компенсації",256921,Івано-Франківська обласна організація,40026836,Івано-Франківська область,Заробітна плата за травень 2020 р.,26005052517967,current,2669.21,Демяник Наталія Іванівна,,фізична особа
УГП,"Івано-Франківська область, Івано-Франківськ",84,2020-05-19,1,"Заробітна плата, премії","Заробітна плата, лікарняні, вагітності, відрядження, компенсації",256920,Івано-Франківська обласна організація,40026836,Івано-Франківська область,Заробітна плата за травень 2020 р.,26005052517967,current,2160.79,Бондарчук Андрій Михайлович,,фізична особа
УГП,Івано-Франківська область,84,2020-05-19,1,"Заробітна плата, премії","Заробітна плата, лікарняні, вагітності, відрядження, компенсації",256919,Івано-Франківська обласна організація,40026836,Івано-Франківська область,Заробітна плата за травень 2020 р.,26005052517967,current,2838.69,Сербин Наталія Зіновіївна,,фізична особа
УГП,Івано-Франківська область,84,2020-05-19,1,"Заробітна плата, премії","Заробітна плата, лікарняні, вагітності, відрядження, компенсації",256918,Івано-Франківська обласна організація,40026836,Івано-Франківська область,Заробітна плата за травень 2020 р.,26005052517967,current,3114.07,Івасишин Світлана Ярославівна,,фізична особа
УГП,"Львівська область, Львів, вулиця Сербська, 1",70,2020-05-19,421890,Банківські послуги,Інші витрати,256795,Центральний офіс,39481037,Україна,"Сплата комісії за переказ коштів з поточного рахунку до 17:00 за межі Банку за допомогою системи Клієнт-Банк по документу №987, від 19.05.2020. Без ПДВ",2600671275,current,5.00,"АТ ""АКБ ""Львів""",09801546,юридична особа
УГП,"Львівська область, Львів, вулиця Сербська, 1",70,2020-05-19,422994,Банківські послуги,Інші витрати,256794,Центральний офіс,39481037,Україна,"Сплата комісії за переказ коштів з поточного рахунку до 17:00 за межі Банку за допомогою системи Клієнт-Банк по документу №990, від 19.05.2020. Без ПДВ",2600671275,current,5.00,"АТ ""АКБ ""Львів""",09801546,юридична особа
УГП,"Львівська область, Львів, вулиця Сербська, 1",70,2020-05-19,421926,Банківські послуги,Інші витрати,256793,Центральний офіс,39481037,Україна,"Сплата комісії за переказ коштів з поточного рахунку до 17:00 за межі Банку за допомогою системи Клієнт-Банк по документу №988, від 19.05.2020. Без ПДВ",2600671275,current,5.00,"АТ ""АКБ ""Львів""",09801546,юридична особа
УГП,"Львівська область, Львів, вулиця Сербська, 1",70,2020-05-19,422003,Банківські послуги,Інші витрати,256792,Центральний офіс,39481037,Україна,"Сплата комісії за переказ коштів з поточного рахунку до 17:00 в межах системи Банку за допомогою системи Клієнт-Банк по документу №989, від 19.05.2020. Без ПДВ",2600671275,current,3.00,"АТ ""АКБ ""Львів""",09801546,юридична особа
УГП,"Львівська область, Львів",53,2020-05-19,990,Витрати на розміщення зовнішньої реклами,Зовнішня реклама,256685,Центральний офіс,39481037,Україна,"Оплата за послуги розміщ. реклами на рекламоносіях у травні зг. рах.-факт. №СФ-0000072 від 05.05.2020р., зг.договору№11-11-01 від 11.11.2019р.,без ПДВ",2600671275,current,27000.00,Хома Віктор Ярославович,,фізична особа
УГП,"Львівська область, Львів, вулиця Стрийська, 35",62,2020-05-18,818,Сплата ЄСВ,Податкові платежі,256791,Центральний офіс,39481037,Україна,"*;101;39481037; нарах. єдиного внеску на зароб. плату за 1 пол.травня 2020р. - 22,0%, 8.41% - 3755,18 грн.;;;",2600671275,current,3755.18,ГОЛОВНЕ УПРАВЛІННЯ ДФС У ЛЬВІВСЬКІЙ ОБЛАСТІ,43143039,юридична особа
УГП,"Львівська область, Львів, вулиця Конотопська, 6",63,2020-05-18,817,Податок на доходи,Податкові платежі,256790,Центральний офіс,39481037,Україна,"*;101;39481037; податок на доходи фізичних осіб із зароб. плати за за 1 пол. травня 2020р., 18% - 3504,32 грн.;;;",2600671275,current,3504.32,УДКСУ у Франківському районі м. Львова,37965138,юридична особа
УГП,"Львівська область, Львів, вулиця Іларіона Свєнціцького, 1",76,2020-05-18,819,Послуги зв’язку,Послуги зв’язку,256789,Центральний офіс,39481037,Україна,"181691; попередня оплата за телекомунікац.послуги за Червень 2020 р., згід.рахунку №2829187 від 14.05.2020 зг. дог. №181691 від 01.04.2018, в т.ч.ПДВ 20% 165.50 грн.",2600671275,current,993.00,"ДП ""НТЦ ""Українська академічна і дослідницька мережа"" Інституту фізики конденсованих систем НАН України""",30275262,юридична особа
УГП,"Львівська область, Львів, вулиця Конотопська, 6",61,2020-05-18,816,Військовий збір,Податкові платежі,256788,Центральний офіс,39481037,Україна,"*;101;39481037; утриманий військовий збір із зароб.плати за 1 пол.травня 2020р., 1,5% - 292,02 грн.;;;",2600671275,current,292.02,УДКСУ у Франківському районі м. Львова,37965138,юридична особа
УГП,"Львівська область, Львів, вулиця Сербська, 1",70,2020-05-18,386064,Банківські послуги,Інші витрати,256787,Центральний офіс,39481037,Україна,"Сплата комісії за зарахуванню коштів на рахунки фізичних осіб підприємства по зарплатному проекту по документу №386063, від 18.05.2020. Без ПДВ",2600671275,current,94.03,"АТ ""АКБ ""Львів""",09801546,юридична особа
УГП,"Київ, вулиця Смоленська, 31/33",76,2020-05-18,820,Послуги зв’язку,Послуги зв’язку,256786,Центральний офіс,39481037,Україна,"01002112851489; оплата за телекомун.послуги за квітень 2020 зг. рах. №0800218956/А364*4279567 від 01.05.20, дог. №0800218956/А364 від 26.11.18,в т.ч. ПДВ 8.57 грн",2600671275,current,51.43,"ПрАТ ""Датагруп""",31720260,юридична особа
УГП,"Львівська область, Львів, вулиця Сербська, 1",70,2020-05-18,385884,Банківські послуги,Інші витрати,256785,Центральний офіс,39481037,Україна,"Сплата комісії за переказ коштів з поточного рахунку до 17:00 за межі Банку за допомогою системи Клієнт-Банк по документу №816, від 18.05.2020. Без ПДВ",2600671275,current,5.00,"АТ ""АКБ ""Львів""",09801546,юридична особа
УГП,"Львівська область, Львів, вулиця Сербська, 1",70,2020-05-18,385885,Банківські послуги,Інші витрати,256784,Центральний офіс,39481037,Україна,"Сплата комісії за переказ коштів з поточного рахунку до 17:00 за межі Банку за допомогою системи Клієнт-Банк по документу №817, від 18.05.2020. Без ПДВ",2600671275,current,5.00,"АТ ""АКБ ""Львів""",09801546,юридична особа
УГП,"Львівська область, Львів, вулиця Сербська, 1",70,2020-05-18,388316,Банківські послуги,Інші витрати,256783,Центральний офіс,39481037,Україна,"Сплата комісії за переказ коштів з поточного рахунку до 17:00 за межі Банку за допомогою системи Клієнт-Банк по документу №820, від 18.05.2020. Без ПДВ",2600671275,current,5.00,"АТ ""АКБ ""Львів""",09801546,юридична особа
УГП,"Львівська область, Львів, вулиця Сербська, 1",70,2020-05-18,385886,Банківські послуги,Інші витрати,256782,Центральний офіс,39481037,Україна,"Сплата комісії за переказ коштів з поточного рахунку до 17:00 за межі Банку за допомогою системи Клієнт-Банк по документу №818, від 18.05.2020. Без ПДВ",2600671275,current,5.00,"АТ ""АКБ ""Львів""",09801546,юридична особа
УГП,"Львівська область, Львів, вулиця Сербська, 1",70,2020-05-18,388315,Банківські послуги,Інші витрати,256781,Центральний офіс,39481037,Україна,"Сплата комісії за переказ коштів з поточного рахунку до 17:00 в межах системи Банку за допомогою системи Клієнт-Банк по документу №819, від 18.05.2020. Без ПДВ",2600671275,current,3.00,"АТ ""АКБ ""Львів""",09801546,юридична особа
УГП,Львівська область,84,2020-05-18,386065,"Заробітна плата, премії","Заробітна плата, лікарняні, вагітності, відрядження, компенсації",256690,Центральний офіс,39481037,Україна,Заробітна плата за 1 половину травня 2020р.,2600671275,current,4156.34,Моряк Ірина Миколаївна,,фізична особа
УГП,"Івано-Франківська область, Івано-Франківськ",84,2020-05-18,386069,"Заробітна плата, премії","Заробітна плата, лікарняні, вагітності, відрядження, компенсації",256689,Центральний офіс,39481037,Україна,Заробітна плата за 1 половину травня 2020р.,2600671275,current,3203.06,Романчук Любомир Петрович,,фізична особа
УГП,Тернопільська область,84,2020-05-18,386067,"Заробітна плата, премії","Заробітна плата, лікарняні, вагітності, відрядження, компенсації",256688,Центральний офіс,39481037,Україна,Заробітна плата за 1 половину травня 2020р.,2600671275,current,3203.06,Яремчук Ірина Романівна,,фізична особа
УГП,"Львівська область, Львів",84,2020-05-18,386072,"Заробітна плата, премії","Заробітна плата, лікарняні, вагітності, відрядження, компенсації",256687,Центральний офіс,39481037,Україна,Заробітна плата за 1 половину травня 2020р.,2600671275,current,3126.79,Дякович Ігор Володимирович,,фізична особа
УГП,"Львівська область, Львів",84,2020-05-18,386071,"Заробітна плата, премії","Заробітна плата, лікарняні, вагітності, відрядження, компенсації",256686,Центральний офіс,39481037,Україна,Заробітна плата за 1 половину травня 2020р.,2600671275,current,1982.84,Хрущак Світлана Іванівна,,фізична особа
УГП,"Харківська область, Харків, вулиця Космічна, 21А",79,2020-05-14,983,"Оренда будинків і приміщень та експлуатаційні витрати (прибирання, страхування орендованих будинків, охорона, сигналізація, ремонт, вивіз сміття, тощо)",Оренда нерухомості,256780,Центральний офіс,39481037,Україна,"Оплата за оренду приміщення за травень зг. рах.№38 від 13.05.2020р. зг. договору суборенди №1-05/19 від 15.05.2019р., без ПДВ",2600671275,current,26439.97,"ТОВ ""Елліко""",40310575,юридична особа
УГП,"Львівська область, Жовківський район, Жовква, вулиця Дорошенка, 11",52,2020-05-14,985,Інша реклама (без класифікації),Реклама (без класифікації),256779,Центральний офіс,39481037,Україна,"Оплата за послуги з розміщ. згідно рахунку-фактури №12-05-20-02 від 12.05.2020р., без ПДВ",2600671275,current,8408.00,ПП ʼГАРАНТʼ,31248287,юридична особа
УГП,"Харківська область, Харків, вулиця Космічна, 21А",79,2020-05-14,984,"Оренда будинків і приміщень та експлуатаційні витрати (прибирання, страхування орендованих будинків, охорона, сигналізація, ремонт, вивіз сміття, тощо)",Оренда нерухомості,256778,Центральний офіс,39481037,Україна,"Оплата за тех.обсл., електроенерг., водопостач. і газ за квітень 2020р. зг. рах. №43 від 13.05.2020р.,зг. договору суборенди №1- 05/19 від 15.05.2019р, без ПДВ",2600671275,current,2896.22,"ТОВ ""Елліко""",40310575,юридична особа
УГП,"Львівська область, Львів, вулиця Сербська, 1",70,2020-05-14,314827,Банківські послуги,Інші витрати,256777,Центральний офіс,39481037,Україна,"Сплата комісії за переказ коштів з поточного рахунку до 17:00 за межі Банку за допомогою системи Клієнт-Банк по документу №983, від 14.05.2020. Без ПДВ",2600671275,current,5.00,"АТ ""АКБ ""Львів""",09801546,юридична особа
УГП,"Львівська область, Львів, вулиця Сербська, 1",70,2020-05-14,315085,Банківські послуги,Інші витрати,256776,Центральний офіс,39481037,Україна,"Сплата комісії за переказ коштів з поточного рахунку до 17:00 за межі Банку за допомогою системи Клієнт-Банк по документу №986, від 14.05.2020. Без ПДВ",2600671275,current,5.00,"АТ ""АКБ ""Львів""",09801546,юридична особа
УГП,"Львівська область, Львів, вулиця Сербська, 1",70,2020-05-14,314969,Банківські послуги,Інші витрати,256775,Центральний офіс,39481037,Україна,"Сплата комісії за переказ коштів з поточного рахунку до 17:00 за межі Банку за допомогою системи Клієнт-Банк по документу №985, від 14.05.2020. Без ПДВ",2600671275,current,5.00,"АТ ""АКБ ""Львів""",09801546,юридична особа
УГП,"Львівська область, Львів, вулиця Сербська, 1",70,2020-05-14,314894,Банківські послуги,Інші витрати,256774,Центральний офіс,39481037,Україна,"Сплата комісії за переказ коштів з поточного рахунку до 17:00 за межі Банку за допомогою системи Клієнт-Банк по документу №984, від 14.05.2020. Без ПДВ",2600671275,current,5.00,"АТ ""АКБ ""Львів""",09801546,юридична особа
УГП,"Львівська область, Пустомитівський район",53,2020-05-14,986,Витрати на розміщення зовнішньої реклами,Зовнішня реклама,256684,Центральний офіс,39481037,Україна,"Оплата за оренду рекламних площин у травні 2020 року згідно рахунку-фактури № СФ-0000054 від 12.05.2020 р., без ПДВ",2600671275,current,38000.00,Біб Юрій Мирославович,,фізична особа
УГП,"Львівська область, Львів, вулиця Словацького, 1",75,2020-05-12,982,Поштові послуги та поширення друкованих матеріалів,Поштові послуги та поширення друкованих матеріалів,256773,Центральний офіс,39481037,Україна,"Попередня оплата за доставку рекл.-інформ. матеріалів згідно рахунку №845 від 12.05.2020, зг. догов. №10.7.1-915 від 19.03.2020 р., в т.ч. ПДВ 6464,00 грн.",2600671275,current,38784.00,"Львівська дирекція ПАТ ""Укрпошта""",22336769,юридична особа
УГП,"Львівська область, Львів, вулиця Сербська, 1",70,2020-05-12,260881,Банківські послуги,Інші витрати,256772,Центральний офіс,39481037,Україна,"Сплата комісії за переказ коштів з поточного рахунку до 17:00 за межі Банку за допомогою системи Клієнт-Банк по документу №982, від 12.05.2020. Без ПДВ",2600671275,current,5.00,"АТ ""АКБ ""Львів""",09801546,юридична особа
УГП,"Львівська область, Львів, вулиця Сербська, 1",70,2020-05-08,182092,Банківські послуги,Інші витрати,256771,Центральний офіс,39481037,Україна,"Сплата комісії за переказ коштів з поточного рахунку до 17:00 за межі Банку за допомогою системи Клієнт-Банк по документу №981, від 08.05.2020. Без ПДВ",2600671275,current,5.00,"АТ ""АКБ ""Львів""",09801546,юридична особа
УГП,"Тернопільська область, Тернопіль",58,2020-05-08,981,"Виготовлення друкованих матеріалів (плакатів, листівок, буклетів та інших агітаційних матеріалів)",Друкована агітація,256683,Центральний офіс,39481037,Україна,"Оплата за друк газети ""Наша Галичина"" згідно рахунку №87 від 08.05.2020р.,зг договору №П-18 від 26.11.2019р., без ПДВ.",2600671275,current,29070.00,Перець Вадим Григорович,,фізична особа
УГП,"Тернопільська область, Тернопіль, проспект Степана Бандери, 38",70,2020-05-07,DT0576T2VP,Банківські послуги,Інші витрати,257216,Тернопільська обласна організація,40011526,Тернопільська область,"Комiсiя за проведення платежу вiд 07.05.2020, згiдно договору банкiвського рахунку вiд 21.09.2015, без ПДВ",UA263387830000026006055117228,current,6.00,"ПАТ КБ ""Приватбанк""",14360570,юридична особа
УГП,"Тернопільська область, Тернопіль, вулиця Листопадова, 3",61,2020-05-07,512,Військовий збір,Податкові платежі,257215,Тернопільська обласна організація,40011526,Тернопільська область,*;101;40011526;11011000 / Вiйськовий збiр з оренди офiсу згiдно договору вiд 22.02.2019 року за квiтень 2020р.;;;,UA263387830000026006055117228,current,111.81,УДКСУ у м. Тернопіль,37977726,юридична особа
УГП,"Тернопільська область, Тернопіль, проспект Степана Бандери, 38",70,2020-05-07,57O3A9CBCY,Банківські послуги,Інші витрати,257214,Тернопільська обласна організація,40011526,Тернопільська область,"Комiсiя за виконання платежiв в нацiональнiй валютi, згiдно з вiдкритою офертою банку N б/н вiд 21.09.2015 та тарифiв банку, без ПДВ",UA263387830000026006055117228,current,2.00,"ПАТ КБ ""Приватбанк""",14360570,юридична особа
УГП,"Тернопільська область, Тернопіль, вулиця Листопадова, 3",63,2020-05-07,513,Податок на доходи,Податкові платежі,257213,Тернопільська обласна організація,40011526,Тернопільська область,*;101;40011526;11010400 / ПДФО з оренди офiсу згiдно договору вiд 22.02.2019 року за квiтень 2020р.;;;,UA263387830000026006055117228,current,1341.72,УДКСУ у м. Тернопіль,37977726,юридична особа
УГП,"Тернопільська область, Тернопіль, проспект Степана Бандери, 38",70,2020-05-07,57O3A9CBIY,Банківські послуги,Інші витрати,257212,Тернопільська обласна організація,40011526,Тернопільська область,"Комiсiя за виконання платежiв в нацiональнiй валютi, згiдно з вiдкритою офертою банку N б/н вiд 21.09.2015 та тарифiв банку, без ПДВ",UA263387830000026006055117228,current,2.00,"ПАТ КБ ""Приватбанк""",14360570,юридична особа
УГП,"Тернопільська область, Тернопіль, вулиця Білецька, 1",62,2020-05-07,K57O0P62F5,Сплата ЄСВ,Податкові платежі,257211,Тернопільська обласна організація,40011526,Тернопільська область,ЄСВ за квiтень 2020р.,UA263387830000026006055117228,current,3850.00,ГУ ДПС у Тернопільській області,43142763,юридична особа
УГП,"Тернопільська область, Тернопіль, вулиця Листопадова, 3",61,2020-05-07,K57O0P62F7,Військовий збір,Податкові платежі,257210,Тернопільська обласна організація,40011526,Тернопільська область,Вiйськовий збiр за квiтень 2020р.,UA263387830000026006055117228,current,262.50,УДКСУ у м. Тернопіль,37977726,юридична особа
УГП,"Тернопільська область, Тернопіль, вулиця Листопадова, 3",63,2020-05-07,K57O0P62F8,Податок на доходи,Податкові платежі,257209,Тернопільська обласна організація,40011526,Тернопільська область,ПДФО за квiтень 2020р.,UA263387830000026006055117228,current,3150.00,УДКСУ у м. Тернопіль,37977726,юридична особа
УГП,"Тернопільська область, Тернопіль, проспект Степана Бандери, 38",70,2020-05-07,K57O0P62F9,Банківські послуги,Інші витрати,257208,Тернопільська обласна організація,40011526,Тернопільська область,Сплата комiсiї за касове обслуговування квiтень 2020р.,UA263387830000026006055117228,current,35.22,"ПАТ КБ ""Приватбанк""",14360570,юридична особа
УГП,"Тернопільська область, Збаразький район, Збараж",79,2020-05-07,514,"Оренда будинків і приміщень та експлуатаційні витрати (прибирання, страхування орендованих будинків, охорона, сигналізація, ремонт, вивіз сміття, тощо)",Оренда нерухомості,257159,Тернопільська обласна організація,40011526,Тернопільська область,Оплата за оренду офiсу згiдно договору вiд 22.02.2019 року за квітень 2020р.,UA263387830000026006055117228,current,6000.47,Лучка Андрій Володимирович,,фізична особа
УГП,"Тернопільська область, Тернопіль",84,2020-05-07,1,"Заробітна плата, премії","Заробітна плата, лікарняні, вагітності, відрядження, компенсації",257158,Тернопільська обласна організація,40011526,Тернопільська область,Заробітна плата за квітень 2020р.,UA263387830000026006055117228,current,2616.25,Сукач Анастасія Святославівна,,фізична особа
УГП,"Тернопільська область, Бучацький район",84,2020-05-07,1,"Заробітна плата, премії","Заробітна плата, лікарняні, вагітності, відрядження, компенсації",257157,Тернопільська обласна організація,40011526,Тернопільська область,Заробітна плата за квітень 2020р.,UA263387830000026006055117228,current,3018.75,Кізюк Іван Йосипович,,фізична особа
УГП,"Тернопільська область, Теребовлянський район",84,2020-05-07,1,"Заробітна плата, премії","Заробітна плата, лікарняні, вагітності, відрядження, компенсації",257156,Тернопільська обласна організація,40011526,Тернопільська область,Заробітна плата за квітень 2020р.,UA263387830000026006055117228,current,3018.75,Вітвіцький Олег Іванович,,фізична особа
УГП,"Тернопільська область, Тернопіль",84,2020-05-07,1,"Заробітна плата, премії","Заробітна плата, лікарняні, вагітності, відрядження, компенсації",257155,Тернопільська обласна організація,40011526,Тернопільська область,Заробітна плата за квітень 2020р.,UA263387830000026006055117228,current,3220.00,Войтович Анна Вʼячеславівна,,фізична особа
УГП,"Тернопільська область, Тернопіль",84,2020-05-07,1,"Заробітна плата, премії","Заробітна плата, лікарняні, вагітності, відрядження, компенсації",257154,Тернопільська обласна організація,40011526,Тернопільська область,Заробітна плата за квітень 2020р.,UA263387830000026006055117228,current,2213.75,Богун Андрій Ігорович,,фізична особа
УГП,"Тернопільська область, Тернопіль, вулиця Чорновола, 1",79,2020-05-05,510,"Оренда будинків і приміщень та експлуатаційні витрати (прибирання, страхування орендованих будинків, охорона, сигналізація, ремонт, вивіз сміття, тощо)",Оренда нерухомості,257207,Тернопільська обласна організація,40011526,Тернопільська область,"Опл. зг. рах.№24 вiд 31.03.2020р., №401 вiд 31.03.2020р. за оренду та ком послуги за 03.2020. У сумi 1080.49 грн., ПДВ - 20 % 216.10 грн.",UA263387830000026006055117228,current,1296.59,"Тернопільська дирекція ПАТ ""Укрпошта""",01192220,юридична особа
УГП,"Тернопільська область, Тернопіль, проспект Степана Бандери, 38",70,2020-05-05,55O39X5Y9Y,Банківські послуги,Інші витрати,257206,Тернопільська обласна організація,40011526,Тернопільська область,"Комiсiя за виконання платежiв в нацiональнiй валютi, згiдно з вiдкритою офертою банку N б/н вiд 21.09.2015 та тарифiв банку, без ПДВ",UA263387830000026006055117228,current,2.00,"ПАТ КБ ""Приватбанк""",14360570,юридична особа
УГП,"Тернопільська область, Тернопіль, вулиця Анатолія Живова, 15А",53,2020-05-05,511,Витрати на розміщення зовнішньої реклами,Зовнішня реклама,257205,Тернопільська обласна організація,40011526,Тернопільська область,Оплата за оренду рекламних площин згiдно рах. № 13-04 вiд 01.04.2020р. Без ПДВ,UA263387830000026006055117228,current,1200.00,"ТОВ ""Торговий комплекс ""Кристал""",39504970,юридична особа
УГП,"Тернопільська область, Тернопіль, проспект Степана Бандери, 38",70,2020-05-05,55O39X5XZY,Банківські послуги,Інші витрати,257204,Тернопільська обласна організація,40011526,Тернопільська область,"Комiсiя за виконання платежiв в нацiональнiй валютi, згiдно з вiдкритою офертою банку N б/н вiд 21.09.2015 та тарифiв банку, без ПДВ",UA263387830000026006055117228,current,2.00,"ПАТ КБ ""Приватбанк""",14360570,юридична особа
УГП,"Івано-Франківська область, Івано-Франківськ, вулиця Січових стрільців, 15",70,2020-05-05,K55O0P46TD,Банківські послуги,Інші витрати,256972,Івано-Франківська обласна організація,40026836,Івано-Франківська область,Сплата комісії за касове обслуговування квітень 2020р.,26005052517967,current,31.22,"ПАТ КБ ""Приватбанк""",14360570,юридична особа
УГП,"Івано-Франківська область, Івано-Франківськ, вулиця Січових стрільців, 15",70,2020-05-05,55O39Z6AXY,Банківські послуги,Інші витрати,256971,Івано-Франківська обласна організація,40026836,Івано-Франківська область,"Комiсiя за виконання платежiв в нацiональнiй валютi, згiдно з вiдкритою офертою банку N б/н вiд 29.09.2015 та тарифiв банку, без ПДВ.",26005052517967,current,2.00,"ПАТ КБ ""Приватбанк""",14360570,юридична особа
УГП,"Івано-Франківська область, Івано-Франківськ, вулиця Незалежності, 20",62,2020-05-05,560,Сплата ЄСВ,Податкові платежі,256970,Івано-Франківська обласна організація,40026836,Івано-Франківська область,*;101;40026836;ЄСВ з зарплати за квітень 2020р.;;;,26005052517967,current,3413.15,ДПІ в м.Івано-Франківськ,43142559,юридична особа
УГП,"Івано-Франківська область, Івано-Франківськ, вулиця Січових стрільців, 15",70,2020-05-05,55O39Z6ATY,Банківські послуги,Інші витрати,256969,Івано-Франківська обласна організація,40026836,Івано-Франківська область,"Комiсiя за виконання платежiв в нацiональнiй валютi, згiдно з вiдкритою офертою банку N б/н вiд 29.09.2015 та тарифiв банку, без ПДВ",26005052517967,current,2.00,"ПАТ КБ ""Приватбанк""",14360570,юридична особа
УГП,"Івано-Франківська область, Івано-Франківськ, вулиця Михайла Грушевського, 32",63,2020-05-05,561,Податок на доходи,Податкові платежі,256968,Івано-Франківська обласна організація,40026836,Івано-Франківська область,*;101;40026836;ПДФО з зарплати за квітень 2020р.;;;,26005052517967,current,2792.57,УДКСУ у м. Івано-Франківську,37952250,юридична особа
УГП,"Івано-Франківська область, Івано-Франківськ, вулиця Січових стрільців, 15",70,2020-05-05,55O39Z6AQY,Банківські послуги,Інші витрати,256967,Івано-Франківська обласна організація,40026836,Івано-Франківська область,"Комiсiя за виконання платежiв в нацiональнiй валютi, згiдно з вiдкритою офертою банку N б/н вiд 29.09.2015 та тарифiв банку, без ПДВ",26005052517967,current,2.00,"ПАТ КБ ""Приватбанк""",14360570,юридична особа
УГП,"Івано-Франківська область, Івано-Франківськ, вулиця Михайла Грушевського, 32",61,2020-05-05,559,Військовий збір,Податкові платежі,256966,Івано-Франківська обласна організація,40026836,Івано-Франківська область,*;101;40026836;Військовий збір з зарплати за квітень 2020 р.;;;,26005052517967,current,232.72,УДКСУ у м. Івано-Франківську,37952250,юридична особа
УГП,"Івано-Франківська область, Івано-Франківськ",79,2020-05-05,562,"Оренда будинків і приміщень та експлуатаційні витрати (прибирання, страхування орендованих будинків, охорона, сигналізація, ремонт, вивіз сміття, тощо)",Оренда нерухомості,256917,Івано-Франківська обласна організація,40026836,Івано-Франківська область,"За оренду офiсного примiщення за 05.2020р., згiдно рах.N5 вiд 05.05.2020р., без ПДВ",26005052517967,current,10000.00,Петровський Олександр Павлович,,фізична особа
УГП,"Львівська область, Львів",84,2020-05-05,1,"Заробітна плата, премії","Заробітна плата, лікарняні, вагітності, відрядження, компенсації",256916,Івано-Франківська обласна організація,40026836,Івано-Франківська область,Заробітна плата за квітень 2020 р.,26005052517967,current,2535.75,Саїк Олег Ігорович,,фізична особа
УГП,"Івано-Франківська область, Тисменицький район",84,2020-05-05,1,"Заробітна плата, премії","Заробітна плата, лікарняні, вагітності, відрядження, компенсації",256915,Івано-Франківська обласна організація,40026836,Івано-Франківська область,Заробітна плата за квітень 2020 р.,26005052517967,current,1759.49,Бабак Віталій Михайлович,,фізична особа
УГП,"Івано-Франківська область, Івано-Франківськ",84,2020-05-05,1,"Заробітна плата, премії","Заробітна плата, лікарняні, вагітності, відрядження, компенсації",256914,Івано-Франківська обласна організація,40026836,Івано-Франківська область,Заробітна плата за квітень 2020 р.,26005052517967,current,1725.01,Кучерак-Зоря Анна Володимирівна,,фізична особа
УГП,Івано-Франківська область,84,2020-05-05,1,"Заробітна плата, премії","Заробітна плата, лікарняні, вагітності, відрядження, компенсації",256913,Івано-Франківська обласна організація,40026836,Івано-Франківська область,Заробітна плата за квітень 2020 р.,26005052517967,current,2173.50,Демяник Наталія Іванівна,,фізична особа
УГП,"Івано-Франківська область, Івано-Франківськ",84,2020-05-05,1,"Заробітна плата, премії","Заробітна плата, лікарняні, вагітності, відрядження, компенсації",256912,Івано-Франківська обласна організація,40026836,Івано-Франківська область,Заробітна плата за квітень 2020 р.,26005052517967,current,1759.49,Бондарчук Андрій Михайлович,,фізична особа
УГП,Івано-Франківська область,84,2020-05-05,1,"Заробітна плата, премії","Заробітна плата, лікарняні, вагітності, відрядження, компенсації",256911,Івано-Франківська обласна організація,40026836,Івано-Франківська область,Заробітна плата за квітень 2020 р.,26005052517967,current,2535.75,Івасишин Світлана Ярославівна,,фізична особа
УГП,"Львівська область, Львів, вулиця Сербська, 1",70,2020-05-05,89634,Банківські послуги,Інші витрати,256768,Центральний офіс,39481037,Україна,"Сплата комісії за переказ коштів з поточного рахунку до 17:00 за межі Банку за допомогою системи Клієнт-Банк по документу №980, від 05.05.2020. Без ПДВ",2600671275,current,5.00,"АТ ""АКБ ""Львів""",09801546,юридична особа
УГП,"Львівська область, Львів, вулиця Сербська, 1",70,2020-05-05,89633,Банківські послуги,Інші витрати,256767,Центральний офіс,39481037,Україна,"Сплата комісії за переказ коштів з поточного рахунку до 17:00 за межі Банку за допомогою системи Клієнт-Банк по документу №979, від 05.05.2020. Без ПДВ",2600671275,current,5.00,"АТ ""АКБ ""Львів""",09801546,юридична особа
УГП,"Тернопільська область, Тернопіль, проспект Степана Бандери, 38",70,2020-05-04,AS04U83S6P,Банківські послуги,Інші витрати,257203,Тернопільська обласна організація,40011526,Тернопільська область,"Комiсiя за обслуговування рахунку за квiтень 2020 р. згiдно договору банкiвського рахунку вiд 21.09.2015, без ПДВ",UA263387830000026006055117228,current,100.00,"ПАТ КБ ""Приватбанк""",14360570,юридична особа
УГП,"Івано-Франківська область, Івано-Франківськ, вулиця Січових стрільців, 15",70,2020-05-04,AS04u7irtp,Банківські послуги,Інші витрати,256965,Івано-Франківська обласна організація,40026836,Івано-Франківська область,"Комісія за обслуговування рахунку за квітень 2020 р. згідно договору банківського рахунку від 29.09.2015, без ПДВ",26005052517967,current,100.00,"ПАТ КБ ""Приватбанк""",14360570,юридична особа
УГП,"Львівська область, Львів, вулиця Стрийська, 35",62,2020-04-30,263,Сплата ЄСВ,Податкові платежі,257078,Львівська обласна організація,40014820,Львівська область,"*;101;40014820; 22,0% нарах. єдиного внеску на заробітну плату за 2 пол.квітня 2020р., - 2723,80 грн.;;;",UA113252680000000002600477437,current,2723.80,ГОЛОВНЕ УПРАВЛІННЯ ДФС У ЛЬВІВСЬКІЙ ОБЛАСТІ,43143039,юридична особа
УГП,"Львівська область, Львів, вулиця Конотопська, 6",63,2020-04-30,262,Податок на доходи,Податкові платежі,257077,Львівська обласна організація,40014820,Львівська область,"*;101;40014820; податок на доходи фізичних осіб із заробітної плати за 2 пол.квітня 2020р. , 18% - 2228,58 грн.;;;",UA113252680000000002600477437,current,2228.58,УДКСУ у Франківському районі м. Львова,37965138,юридична особа
УГП,"Львівська область, Львів, вулиця Конотопська, 6",61,2020-04-30,261,Військовий збір,Податкові платежі,257076,Львівська обласна організація,40014820,Львівська область,"*;101;40014820; утриманий військовий збір із заробітної плати за 2 пол.квітня 2020р. , 1,5% - 185,73 грн.;;;",UA113252680000000002600477437,current,185.73,УДКСУ у Франківському районі м. Львова,37965138,юридична особа
УГП,"Львівська область, Львів, вулиця Сербська, 1",70,2020-04-30,753438,Банківські послуги,Інші витрати,257075,Львівська обласна організація,40014820,Львівська область,Комісія за ведення функціонуючого рахунку за період 01.04.20-30.04.20 зг. договору. №N40.00.002425/РКО вiд 17.09.2015,UA113252680000000002600477437,current,100.00,"АТ ""АКБ ""Львів""",09801546,юридична особа
УГП,"Львівська область, Львів, вулиця Сербська, 1",70,2020-04-30,659057,Банківські послуги,Інші витрати,257074,Львівська обласна організація,40014820,Львівська область,"Сплата комісії за зарахуванню коштів на рахунки фізичних осіб підприємства по зарплатному проекту по документу №659056, від 30.04.2020. Без ПДВ",UA113252680000000002600477437,current,59.80,"АТ ""АКБ ""Львів""",09801546,юридична особа
УГП,"Львівська область, Львів, вулиця Сербська, 1",70,2020-04-30,753440,Банківські послуги,Інші витрати,257073,Львівська обласна організація,40014820,Львівська область,"Комісія за pозрахункове обслуговування Клієнтів по системі ""Клієнт-Банк"" за період 01.04.20-30.04.20 зг. договору. №N40. 00.002425/РКО вiд17.09.2015",UA113252680000000002600477437,current,50.00,"АТ ""АКБ ""Львів""",09801546,юридична особа
УГП,"Львівська область, Львів, вулиця Сербська, 1",70,2020-04-30,658927,Банківські послуги,Інші витрати,257072,Львівська обласна організація,40014820,Львівська область,"Сплата комісії за переказ коштів з поточного рахунку до 17:00 за межі Банку за допомогою системи Клієнт-Банк по документу №261, від 30.04.2020. Без ПДВ",UA113252680000000002600477437,current,5.00,"АТ ""АКБ ""Львів""",09801546,юридична особа
УГП,"Львівська область, Львів, вулиця Сербська, 1",70,2020-04-30,658929,Банківські послуги,Інші витрати,257071,Львівська обласна організація,40014820,Львівська область,"Сплата комісії за переказ коштів з поточного рахунку до 17:00 за межі Банку за допомогою системи Клієнт-Банк по документу №263, від 30.04.2020. Без ПДВ",UA113252680000000002600477437,current,5.00,"АТ ""АКБ ""Львів""",09801546,юридична особа
УГП,"Львівська область, Львів, вулиця Сербська, 1",70,2020-04-30,658928,Банківські послуги,Інші витрати,257070,Львівська обласна організація,40014820,Львівська область,"Сплата комісії за переказ коштів з поточного рахунку до 17:00 за межі Банку за допомогою системи Клієнт-Банк по документу №262, від 30.04.2020. Без ПДВ",UA113252680000000002600477437,current,5.00,"АТ ""АКБ ""Львів""",09801546,юридична особа
УГП,"Львівська область, Львів",84,2020-04-30,659058,"Заробітна плата, премії","Заробітна плата, лікарняні, вагітності, відрядження, компенсації",257033,Львівська обласна організація,40014820,Львівська область,Заробітна плата за 2 половину квітня 2020р.,UA113252680000000002600477437,current,2836.66,Щурко Іван Петрович,,фізична особа
УГП,"Львівська область, Львів",84,2020-04-30,659061,"Заробітна плата, премії","Заробітна плата, лікарняні, вагітності, відрядження, компенсації",257032,Львівська обласна організація,40014820,Львівська область,Заробітна плата за 2 половину квітня 2020р.,UA113252680000000002600477437,current,2376.66,Сало Ірина Володимирівна,,фізична особа
УГП,"Львівська область, Львів",84,2020-04-30,659060,"Заробітна плата, премії","Заробітна плата, лікарняні, вагітності, відрядження, компенсації",257031,Львівська обласна організація,40014820,Львівська область,Заробітна плата за 2 половину квітня 2020р.,UA113252680000000002600477437,current,2376.66,Небельмес Аліна Михайлівна,,фізична особа
УГП,"Львівська область, Львів",84,2020-04-30,659059,"Заробітна плата, премії","Заробітна плата, лікарняні, вагітності, відрядження, компенсації",257030,Львівська обласна організація,40014820,Львівська область,Заробітна плата за 2 половину квітня 2020р.,UA113252680000000002600477437,current,2376.66,Кузько Марʼяна Михайлівна,,фізична особа
УГП,"Львівська область, Львів, вулиця Стрийська, 35",62,2020-04-30,973,Сплата ЄСВ,Податкові платежі,256765,Центральний офіс,39481037,Україна,"*;101;39481037; нарах. єдиного внеску на зароб. плату за 2 пол.квітня 2020р. - 22,0%, 8.41% - 3775,06 грн.;;;",2600671275,current,3775.06,ГОЛОВНЕ УПРАВЛІННЯ ДФС У ЛЬВІВСЬКІЙ ОБЛАСТІ,43143039,юридична особа
УГП,"Львівська область, Львів, вулиця Конотопська, 6",63,2020-04-30,972,Податок на доходи,Податкові платежі,256764,Центральний офіс,39481037,Україна,"*;101;39481037; податок на доходи фізичних осіб із зароб.плати за за 2 пол.квітня 2020р., 18% - 3522,86 грн.;;;",2600671275,current,3522.86,УДКСУ у Франківському районі м. Львова,37965138,юридична особа
УГП,"Львівська область, Львів, вулиця Кондукторська, 16",79,2020-04-30,975,"Оренда будинків і приміщень та експлуатаційні витрати (прибирання, страхування орендованих будинків, охорона, сигналізація, ремонт, вивіз сміття, тощо)",Оренда нерухомості,256763,Центральний офіс,39481037,Україна,"Оплата за послуги охорони обʼєкта та ГШР за квітень 2020р., зг. дог. № ЦС010619 від 03.06.2019р., без ПДВ",2600671275,current,450.00,"ПП ""Приватна безпека""",33562906,юридична особа
УГП,"Львівська область, Львів, вулиця Конотопська, 6",61,2020-04-30,971,Військовий збір,Податкові платежі,256762,Центральний офіс,39481037,Україна,"*;101;39481037; утриманий військовий збір із зароб.плати за 2 пол.квітня 2020р., 1,5% - 293,57 грн.;;;",2600671275,current,293.57,УДКСУ у Франківському районі м. Львова,37965138,юридична особа
УГП,"Львівська область, Львів, вулиця Сербська, 1",70,2020-04-30,755030,Банківські послуги,Інші витрати,256761,Центральний офіс,39481037,Україна,Комісія за ведення функціонуючого рахунку за період 01.04.20-30.04.20 зг. Догов. №N40.00.002175/РКО вiд 10.12.2014,2600671275,current,100.00,"АТ ""АКБ ""Львів""",09801546,юридична особа
УГП,"Львівська область, Львів, вулиця Сербська, 1",70,2020-04-30,657844,Банківські послуги,Інші витрати,256760,Центральний офіс,39481037,Україна,"Сплата комісії за зарахуванню коштів на рахунки фізичних осіб підприємства по зарплатному проекту по документу №657842, від 30.04.2020. Без ПДВ",2600671275,current,94.53,"АТ ""АКБ ""Львів""",09801546,юридична особа
УГП,"Львівська область, Львів, вулиця Сербська, 1",70,2020-04-30,755033,Банківські послуги,Інші витрати,256759,Центральний офіс,39481037,Україна,"Комісія за pозрахункове обслуговування Клієнтів по системі ""Клієнт-Банк"" за період 01.04.20-30.04.20 зг. договору. №N40. 00.002175/РКО вiд 10.12.2014",2600671275,current,50.00,"АТ ""АКБ ""Львів""",09801546,юридична особа
УГП,"Львівська область, Львів, вулиця Сербська, 1",70,2020-04-30,656623,Банківські послуги,Інші витрати,256758,Центральний офіс,39481037,Україна,"Сплата комісії за переказ коштів з поточного рахунку до 17:00 за межі Банку за допомогою системи Клієнт-Банк по документу №973, від 30.04.2020. Без ПДВ",2600671275,current,5.00,"АТ ""АКБ ""Львів""",09801546,юридична особа
УГП,"Львівська область, Львів, вулиця Сербська, 1",70,2020-04-30,656622,Банківські послуги,Інші витрати,256757,Центральний офіс,39481037,Україна,"Сплата комісії за переказ коштів з поточного рахунку до 17:00 за межі Банку за допомогою системи Клієнт-Банк по документу №972, від 30.04.2020. Без ПДВ",2600671275,current,5.00,"АТ ""АКБ ""Львів""",09801546,юридична особа
УГП,"Львівська область, Львів, вулиця Сербська, 1",70,2020-04-30,656621,Банківські послуги,Інші витрати,256756,Центральний офіс,39481037,Україна,"Сплата комісії за переказ коштів з поточного рахунку до 17:00 за межі Банку за допомогою системи Клієнт-Банк по документу №971, від 30.04.2020. Без ПДВ",2600671275,current,5.00,"АТ ""АКБ ""Львів""",09801546,юридична особа
УГП,"Львівська область, Львів, вулиця Сербська, 1",70,2020-04-30,658759,Банківські послуги,Інші витрати,256755,Центральний офіс,39481037,Україна,"Сплата комісії за переказ коштів з поточного рахунку до 17:00 за межі Банку за допомогою системи Клієнт-Банк по документу №975, від 30.04.2020. Без ПДВ",2600671275,current,5.00,"АТ ""АКБ ""Львів""",09801546,юридична особа
УГП,"Львівська область, Львів, вулиця Сербська, 1",70,2020-04-30,658758,Банківські послуги,Інші витрати,256754,Центральний офіс,39481037,Україна,"Сплата комісії за переказ коштів з поточного рахунку до 17:00 в межах системи Банку за допомогою системи Клієнт-Банк по документу №974, від 30.04.2020. Без ПДВ",2600671275,current,3.00,"АТ ""АКБ ""Львів""",09801546,юридична особа
УГП,Львівська область,84,2020-04-30,657845,"Заробітна плата, премії","Заробітна плата, лікарняні, вагітності, відрядження, компенсації",256682,Центральний офіс,39481037,Україна,Заробітна плата за 2 половину квітня 2020р.,2600671275,current,4178.33,Моряк Ірина Миколаївна,,фізична особа
УГП,"Івано-Франківська область, Івано-Франківськ",84,2020-04-30,657848,"Заробітна плата, премії","Заробітна плата, лікарняні, вагітності, відрядження, компенсації",256681,Центральний офіс,39481037,Україна,Заробітна плата за 2 половину квітня 2020р.,2600671275,current,3220.00,Романчук Любомир Петрович,,фізична особа
УГП,Тернопільська область,84,2020-04-30,657847,"Заробітна плата, премії","Заробітна плата, лікарняні, вагітності, відрядження, компенсації",256680,Центральний офіс,39481037,Україна,Заробітна плата за 2 половину квітня 2020р.,2600671275,current,3220.00,Яремчук Ірина Романівна,,фізична особа
УГП,"Львівська область, Львів",84,2020-04-30,657853,"Заробітна плата, премії","Заробітна плата, лікарняні, вагітності, відрядження, компенсації",256679,Центральний офіс,39481037,Україна,Заробітна плата за 2 половину квітня 2020р.,2600671275,current,3143.33,Дякович Ігор Володимирович,,фізична особа
УГП,"Львівська область, Львів",84,2020-04-30,657851,"Заробітна плата, премії","Заробітна плата, лікарняні, вагітності, відрядження, компенсації",256678,Центральний офіс,39481037,Україна,Заробітна плата за 2 половину квітня 2020р.,2600671275,current,1993.34,Хрущак Світлана Іванівна,,фізична особа
УГП,"Львівська область, Львів, вулиця Гуцульська, 9",53,2020-04-28,978,Витрати на розміщення зовнішньої реклами,Зовнішня реклама,256753,Центральний офіс,39481037,Україна,"Оплата за розміщення зовн. реклами з 01.04.2020 по 30.04.2020 згід.рах.-факт. №СФ-00166 від 24.04.2020р., згід. договору від 30.07.2018р., в т.ч. ПДВ 1944,50грн",2600671275,current,11667.00,"ТОВ ’Телерадіокомпанія ""Львівська хвиля""",13824151,юридична особа
УГП,"Львівська область, Львів, вулиця Сербська, 1",70,2020-04-28,572683,Банківські послуги,Інші витрати,256752,Центральний офіс,39481037,Україна,"Сплата комісії за переказ коштів з поточного рахунку до 17:00 в межах системи Банку за допомогою системи Клієнт-Банк по документу №978, від 28.04.2020. Без ПДВ",2600671275,current,3.00,"АТ ""АКБ ""Львів""",09801546,юридична особа
УГП,"Львівська область, Львів, вулиця Нечуя-Левицького, 23, 4Б",79,2020-04-23,977,"Оренда будинків і приміщень та експлуатаційні витрати (прибирання, страхування орендованих будинків, охорона, сигналізація, ремонт, вивіз сміття, тощо)",Оренда нерухомості,256751,Центральний офіс,39481037,Україна,"Оплата за оренду арок за квітень 2020р. згідно рахунку №118 від 01.04.2020р.,в т.ч. ПДВ 20% 2000.00 грн.",2600671275,current,12000.00,"ТОВ ""Аврора Адвертайзінг""",38893253,юридична особа
УГП,"Львівська область, Львів, вулиця Сербська, 1",70,2020-04-23,486706,Банківські послуги,Інші витрати,256750,Центральний офіс,39481037,Україна,"Сплата комісії за переказ коштів з поточного рахунку до 17:00 за межі Банку за допомогою системи Клієнт-Банк по документу №977, від 23.04.2020. Без ПДВ",2600671275,current,5.00,"АТ ""АКБ ""Львів""",09801546,юридична особа
УГП,"Львівська область, Львів, вулиця Сербська, 1",70,2020-04-23,486665,Банківські послуги,Інші витрати,256749,Центральний офіс,39481037,Україна,"Сплата комісії за переказ коштів з поточного рахунку до 17:00 за межі Банку за допомогою системи Клієнт-Банк по документу №976, від 23.04.2020. Без ПДВ",2600671275,current,5.00,"АТ ""АКБ ""Львів""",09801546,юридична особа
УГП,"Львівська область, Пустомитівський район",53,2020-04-23,976,Витрати на розміщення зовнішньої реклами,Зовнішня реклама,256677,Центральний офіс,39481037,Україна,"Оплата за оренду рекламних площин у квітні 2020 року згідно рахунку-фактури № СФ-0000044 від 06.04.2020 р., без ПДВ",2600671275,current,30000.00,Біб Юрій Мирославович,,фізична особа
УГП,"Тернопільська область, Тернопіль, проспект Степана Бандери, 38",70,2020-04-22,DT04M3UGQP,Банківські послуги,Інші витрати,257202,Тернопільська обласна організація,40011526,Тернопільська область,"Комiсiя за проведення платежу вiд 22.04.2020, згiдно договору банкiвського рахунку вiд 21.09.2015, без ПДВ",UA263387830000026006055117228,current,6.00,"ПАТ КБ ""Приватбанк""",14360570,юридична особа
УГП,"Київ, бульвар Тараса Шевченка, 18",76,2020-04-22,509,Послуги зв’язку,Послуги зв’язку,257201,Тернопільська обласна організація,40011526,Тернопільська область,"Оплата за iнтернет за березень 2020р. Особовий рахунок 6100120000003930 У сумi 201.13 грн., ПДВ - 20 % 40.23 грн.",UA263387830000026006055117228,current,241.36,"ПАТ ""Укртелеком""",21560766,юридична особа
УГП,"Тернопільська область, Тернопіль, проспект Степана Бандери, 38",70,2020-04-22,4MO38S9OPY,Банківські послуги,Інші витрати,257200,Тернопільська обласна організація,40011526,Тернопільська область,"Комiсiя за виконання платежiв в нацiональнiй валютi, згiдно з вiдкритою офертою банку N б/н вiд 21.09.2015 та тарифiв банку, без ПДВ",UA263387830000026006055117228,current,2.00,"ПАТ КБ ""Приватбанк""",14360570,юридична особа
УГП,"Тернопільська область, Тернопіль, вулиця Микулинецька, 3А, 1003",79,2020-04-22,508,"Оренда будинків і приміщень та експлуатаційні витрати (прибирання, страхування орендованих будинків, охорона, сигналізація, ремонт, вивіз сміття, тощо)",Оренда нерухомості,257199,Тернопільська обласна організація,40011526,Тернопільська область,Оплата згiдно рахунку № 2112 вiд 02.04.2020р. За охорону офiсу за квiтень 2020р.,UA263387830000026006055117228,current,400.00,"ТОВ ""Спеціалізований підрозділ охорони ""Дозор-Тернопіль""",38427230,юридична особа
УГП,"Тернопільська область, Тернопіль, вулиця Білецька, 1",62,2020-04-22,K4MO0OUUUO,Сплата ЄСВ,Податкові платежі,257198,Тернопільська обласна організація,40011526,Тернопільська область,ЄСВ за квiтень 2020р.,UA263387830000026006055117228,current,4004.61,ГУ ДПС у Тернопільській області,43142763,юридична особа
УГП,"Тернопільська область, Тернопіль, вулиця Листопадова, 3",61,2020-04-22,K4MO0OUUUP,Військовий збір,Податкові платежі,257197,Тернопільська обласна організація,40011526,Тернопільська область,Вiйськовий збiр за квiтень 2020р.,UA263387830000026006055117228,current,273.04,УДКСУ у м. Тернопіль,37977726,юридична особа
УГП,"Тернопільська область, Тернопіль, вулиця Листопадова, 3",63,2020-04-22,K4MO0OUUUQ,Податок на доходи,Податкові платежі,257196,Тернопільська обласна організація,40011526,Тернопільська область,ПДФО за квiтень 2020р.,UA263387830000026006055117228,current,3276.50,УДКСУ у м. Тернопіль,37977726,юридична особа
УГП,"Тернопільська область, Тернопіль, проспект Степана Бандери, 38",70,2020-04-22,K4MO0OUUUR,Банківські послуги,Інші витрати,257195,Тернопільська обласна організація,40011526,Тернопільська область,Сплата комiсiї за касове обслуговування квiтень 2020р.,UA263387830000026006055117228,current,36.63,"ПАТ КБ ""Приватбанк""",14360570,юридична особа
УГП,"Тернопільська область, Тернопіль",84,2020-04-22,1,"Заробітна плата, премії","Заробітна плата, лікарняні, вагітності, відрядження, компенсації",257153,Тернопільська обласна організація,40011526,Тернопільська область,Заробітна плата за квітень 2020р.,UA263387830000026006055117228,current,2213.75,Богун Андрій Ігорович,,фізична особа
УГП,"Тернопільська область, Тернопіль",84,2020-04-22,1,"Заробітна плата, премії","Заробітна плата, лікарняні, вагітності, відрядження, компенсації",257152,Тернопільська обласна організація,40011526,Тернопільська область,Заробітна плата за квітень 2020р.,UA263387830000026006055117228,current,565.74,Фірман Ольга Ярославівна,,фізична особа
УГП,"Тернопільська область, Тернопіль",84,2020-04-22,1,"Заробітна плата, премії","Заробітна плата, лікарняні, вагітності, відрядження, компенсації",257151,Тернопільська обласна організація,40011526,Тернопільська область,Заробітна плата за квітень 2020р.,UA263387830000026006055117228,current,2616.25,Сукач Анастасія Святославівна,,фізична особа
УГП,"Тернопільська область, Бучацький район",84,2020-04-22,1,"Заробітна плата, премії","Заробітна плата, лікарняні, вагітності, відрядження, компенсації",257150,Тернопільська обласна організація,40011526,Тернопільська область,Заробітна плата за квітень 2020р.,UA263387830000026006055117228,current,3018.75,Кізюк Іван Йосипович,,фізична особа
УГП,"Тернопільська область, Теребовлянський район",84,2020-04-22,1,"Заробітна плата, премії","Заробітна плата, лікарняні, вагітності, відрядження, компенсації",257149,Тернопільська обласна організація,40011526,Тернопільська область,Заробітна плата за квітень 2020р.,UA263387830000026006055117228,current,3018.75,Вітвіцький Олег Іванович,,фізична особа
УГП,"Тернопільська область, Тернопіль",84,2020-04-22,1,"Заробітна плата, премії","Заробітна плата, лікарняні, вагітності, відрядження, компенсації",257148,Тернопільська обласна організація,40011526,Тернопільська область,Заробітна плата за квітень 2020р.,UA263387830000026006055117228,current,3220.00,Войтович Анна Вʼячеславівна,,фізична особа
УГП,"Львівська область, Львів, вулиця Сербська, 1",70,2020-04-21,438270,Банківські послуги,Інші витрати,257025,Львівська міська організація,43350118,Львівська область,Комісія за надання довідки стосовно наявності відкритого поточного рахунку та РКО зг.дог.№26005107244001/980/Р вiд 15.01.2020,UA023252680000026005107244001,current,100.00,"АТ ""АКБ ""Львів""",09801546,юридична особа
УГП,"Івано-Франківська область, Івано-Франківськ, вулиця Січових стрільців, 15",70,2020-04-21,K4LO0OTYBY,Банківські послуги,Інші витрати,256964,Івано-Франківська обласна організація,40026836,Івано-Франківська область,Сплата комісії за касове обслуговування квітень 2020р.,26005052517967,current,43.56,"ПАТ КБ ""Приватбанк""",14360570,юридична особа
УГП,"Івано-Франківська область, Івано-Франківськ, вулиця Незалежності, 20",62,2020-04-21,558,Сплата ЄСВ,Податкові платежі,256963,Івано-Франківська обласна організація,40026836,Івано-Франківська область,*;101;40026836;ЄСВ з зарплати за квітень 2020р.;;;,26005052517967,current,4761.42,ДПІ в м.Івано-Франківськ,43142559,юридична особа
УГП,"Івано-Франківська область, Івано-Франківськ, вулиця Січових стрільців, 15",70,2020-04-21,4LO38N7IXY,Банківські послуги,Інші витрати,256962,Івано-Франківська обласна організація,40026836,Івано-Франківська область,"Комiсiя за виконання платежiв в нацiональнiй валютi, згiдно з вiдкритою офертою банку N б/н вiд 29.09.2015 та тарифiв банку, без ПДВ",26005052517967,current,2.00,"ПАТ КБ ""Приватбанк""",14360570,юридична особа
УГП,"Івано-Франківська область, Івано-Франківськ, вулиця Січових стрільців, 15",70,2020-04-21,4LO38N7ISY,Банківські послуги,Інші витрати,256961,Івано-Франківська обласна організація,40026836,Івано-Франківська область,"Комiсiя за виконання платежiв в нацiональнiй валютi, згiдно з вiдкритою офертою банку N б/н вiд 29.09.2015 та тарифiв банку, без ПДВ",26005052517967,current,2.00,"ПАТ КБ ""Приватбанк""",14360570,юридична особа
УГП,"Івано-Франківська область, Івано-Франківськ, вулиця Михайла Грушевського, 32",63,2020-04-21,558,Податок на доходи,Податкові платежі,256960,Івано-Франківська обласна організація,40026836,Івано-Франківська область,*;101;40026836;ПДФО з зарплати за квітень 2020р.;;;,26005052517967,current,3895.71,УДКСУ у м. Івано-Франківську,37952250,юридична особа
УГП,"Івано-Франківська область, Івано-Франківськ, вулиця Михайла Грушевського, 32",61,2020-04-21,557,Військовий збір,Податкові платежі,256959,Івано-Франківська обласна організація,40026836,Івано-Франківська область,*;101;40026836;Військовий збір з зарплати за квітень 2020 р.;;;,26005052517967,current,324.64,УДКСУ у м. Івано-Франківську,37952250,юридична особа
УГП,"Івано-Франківська область, Івано-Франківськ, вулиця Січових стрільців, 15",70,2020-04-21,4LO38N7IMY,Банківські послуги,Інші витрати,256958,Івано-Франківська обласна організація,40026836,Івано-Франківська область,"Комiсiя за виконання платежiв в нацiональнiй валютi, згiдно з вiдкритою офертою банку N б/н вiд 29.09.2015 та тарифiв банку, без ПДВ",26005052517967,current,2.00,"ПАТ КБ ""Приватбанк""",14360570,юридична особа
УГП,"Львівська область, Львів",84,2020-04-21,1,"Заробітна плата, премії","Заробітна плата, лікарняні, вагітності, відрядження, компенсації",256910,Івано-Франківська обласна організація,40026836,Івано-Франківська область,Заробітна плата за квітень 2020 р.,26005052517967,current,3381.00,Саїк Олег Ігорович,,фізична особа
УГП,"Івано-Франківська область, Тисменицький район",84,2020-04-21,1,"Заробітна плата, премії","Заробітна плата, лікарняні, вагітності, відрядження, компенсації",256909,Івано-Франківська обласна організація,40026836,Івано-Франківська область,Заробітна плата за квітень 2020 р.,26005052517967,current,2346.01,Бабак Віталій Михайлович,,фізична особа
УГП,"Івано-Франківська область, Івано-Франківськ",84,2020-04-21,1,"Заробітна плата, премії","Заробітна плата, лікарняні, вагітності, відрядження, компенсації",256908,Івано-Франківська обласна організація,40026836,Івано-Франківська область,Заробітна плата за квітень 2020 р.,26005052517967,current,2299.99,Кучерак-Зоря Анна Володимирівна,,фізична особа
УГП,Івано-Франківська область,84,2020-04-21,1,"Заробітна плата, премії","Заробітна плата, лікарняні, вагітності, відрядження, компенсації",256907,Івано-Франківська обласна організація,40026836,Івано-Франківська область,Заробітна плата за квітень 2020 р.,26005052517967,current,2898.00,Демяник Наталія Іванівна,,фізична особа
УГП,"Івано-Франківська область, Івано-Франківськ",84,2020-04-21,1,"Заробітна плата, премії","Заробітна плата, лікарняні, вагітності, відрядження, компенсації",256906,Івано-Франківська обласна організація,40026836,Івано-Франківська область,Заробітна плата за квітень 2020 р.,26005052517967,current,2346.01,Бондарчук Андрій Михайлович,,фізична особа
УГП,Івано-Франківська область,84,2020-04-21,1,"Заробітна плата, премії","Заробітна плата, лікарняні, вагітності, відрядження, компенсації",256905,Івано-Франківська обласна організація,40026836,Івано-Франківська область,Заробітна плата за квітень 2020 р.,26005052517967,current,770.49,Сербин Наталія Зіновіївна,,фізична особа
УГП,Івано-Франківська область,84,2020-04-21,1,"Заробітна плата, премії","Заробітна плата, лікарняні, вагітності, відрядження, компенсації",256904,Івано-Франківська обласна організація,40026836,Івано-Франківська область,Заробітна плата за квітень 2020 р.,26005052517967,current,3381.00,Івасишин Світлана Ярославівна,,фізична особа
УГП,"Львівська область, Львів, вулиця Іларіона Свєнціцького, 1",76,2020-04-21,975,Послуги зв’язку,Послуги зв’язку,256746,Центральний офіс,39481037,Україна,"181691; попередня оплата за телекомунікац.послуги за Травень 2020 р., згід.рахунку №2821066 від 15.04.2020 зг.дог.№181691 від 01.04.2018, в т.ч.ПДВ 165,50грн.",2600671275,current,993.00,"ДП ""НТЦ ""Українська академічна і дослідницька мережа"" Інституту фізики конденсованих систем НАН України""",30275262,юридична особа
УГП,"Львівська область, Львів, вулиця Сербська, 1",70,2020-04-21,434337,Банківські послуги,Інші витрати,256745,Центральний офіс,39481037,Україна,"Сплата комісії за переказ коштів з поточного рахунку до 17:00 за межі Банку за допомогою системи Клієнт-Банк по документу №974, від 21.04.2020. Без ПДВ",2600671275,current,5.00,"АТ ""АКБ ""Львів""",09801546,юридична особа
УГП,"Львівська область, Львів, вулиця Сербська, 1",70,2020-04-21,434256,Банківські послуги,Інші витрати,256744,Центральний офіс,39481037,Україна,"Сплата комісії за переказ коштів з поточного рахунку до 17:00 за межі Банку за допомогою системи Клієнт-Банк по документу №973, від 21.04.2020. Без ПДВ",2600671275,current,5.00,"АТ ""АКБ ""Львів""",09801546,юридична особа
УГП,"Львівська область, Львів, вулиця Сербська, 1",70,2020-04-21,434405,Банківські послуги,Інші витрати,256743,Центральний офіс,39481037,Україна,"Сплата комісії за переказ коштів з поточного рахунку до 17:00 в межах системи Банку за допомогою системи Клієнт-Банк по документу №975, від 21.04.2020. Без ПДВ",2600671275,current,3.00,"АТ ""АКБ ""Львів""",09801546,юридична особа
УГП,"Львівська область, Львів, вулиця Сербська, 1",70,2020-04-17,375816,Банківські послуги,Інші витрати,257069,Львівська обласна організація,40014820,Львівська область,Ком-ія за надання довідки про рух коштів по поточному рахунку зг. дог. №N40.00.002425/РКО вiд 17.09.2015,UA113252680000000002600477437,current,100.00,"АТ ""АКБ ""Львів""",09801546,юридична особа
УГП,"Львівська область, Львів, вулиця Сербська, 1",70,2020-04-17,375895,Банківські послуги,Інші витрати,256742,Центральний офіс,39481037,Україна,Ком-ія за надання довідки про рух коштів по поточному рахунку зг.дог.№N40.00.002175/РКО вiд 10.12.2014,2600671275,current,100.00,"АТ ""АКБ ""Львів""",09801546,юридична особа
УГП,"Львівська область, Львів, вулиця Стрийська, 35",62,2020-04-16,423,Сплата ЄСВ,Податкові платежі,257068,Львівська обласна організація,40014820,Львівська область,"*;101;40014820; 22,0% нарах. єдиного внеску на заробітну плату за 1 пол.квітня 2020р., - 2996,20 грн.;;;",UA113252680000000002600477437,current,2996.20,ГОЛОВНЕ УПРАВЛІННЯ ДФС У ЛЬВІВСЬКІЙ ОБЛАСТІ,43143039,юридична особа
УГП,"Львівська область, Львів, вулиця Конотопська, 6",63,2020-04-16,422,Податок на доходи,Податкові платежі,257067,Львівська обласна організація,40014820,Львівська область,"*;101;40014820; податок на доходи фізичних осіб із заробітної плати за 1 пол.квітня 2020р. , 18% - 2451,42 грн.;;;",UA113252680000000002600477437,current,2451.42,УДКСУ у Франківському районі м. Львова,37965138,юридична особа
УГП,"Львівська область, Бродівський район, Броди, площа Ринок, 1",51,2020-04-16,424,Оплата ефірного часу на ТБ,Телереклама,257066,Львівська обласна організація,40014820,Львівська область,"Оплата за інформаційний матеріал згідно рахунку № 5 від 05.03.2020р., без ПДВ",UA113252680000000002600477437,current,1000.00,"Районна комунальна телерадіокомпанія ""Броди""",22338509,юридична особа
УГП,"Львівська область, Борислав, вулиця Івасюка, 12",79,2020-04-16,425,"Оренда будинків і приміщень та експлуатаційні витрати (прибирання, страхування орендованих будинків, охорона, сигналізація, ремонт, вивіз сміття, тощо)",Оренда нерухомості,257065,Львівська обласна організація,40014820,Львівська область,"Оплата за оренду приміщення 24,4кв.м. за квітень 2020р., згідно рах. №55 від 15.04.2020р., згідно договору оренди №1 від 01.10.2018р., без ПДВ",UA113252680000000002600477437,current,465.88,УДКСУ у м. Бориславі,37942974,юридична особа
УГП,"Львівська область, Борислав, вулиця Данила Галицького, 34",79,2020-04-16,426,"Оренда будинків і приміщень та експлуатаційні витрати (прибирання, страхування орендованих будинків, охорона, сигналізація, ремонт, вивіз сміття, тощо)",Оренда нерухомості,257064,Львівська обласна організація,40014820,Львівська область,"Оплата за оренду приміщення 24,4кв.м. за квітень 2020р. згідно рах.№54 від 15.04.2020р., згідно договору оренди №1 від 01.10.2018р., без ПДВ",UA113252680000000002600477437,current,465.88,Бориславський міський Палац культ.,25261121,юридична особа
УГП,"Львівська область, Львів, вулиця Конотопська, 6",61,2020-04-16,421,Військовий збір,Податкові платежі,257063,Львівська обласна організація,40014820,Львівська область,"*;101;40014820; утриманий військовий збір із заробітної плати за 1 пол.квітня 2020р. , 1,5% - 204,27 грн.;;;",UA113252680000000002600477437,current,204.27,УДКСУ у Франківському районі м. Львова,37965138,юридична особа
УГП,"Львівська область, Львів, вулиця Сербська, 1",70,2020-04-16,351973,Банківські послуги,Інші витрати,257062,Львівська обласна організація,40014820,Львівська область,"Сплата комісії за зарахуванню коштів на рахунки фізичних осіб підприємства по зарплатному проекту по документу №351972, від 16.04.2020. Без ПДВ",UA113252680000000002600477437,current,65.78,"АТ ""АКБ ""Львів""",09801546,юридична особа
УГП,"Львівська область, Борислав, вулиця Данила Галицького, 34",79,2020-04-16,427,"Оренда будинків і приміщень та експлуатаційні витрати (прибирання, страхування орендованих будинків, охорона, сигналізація, ремонт, вивіз сміття, тощо)",Оренда нерухомості,257061,Львівська обласна організація,40014820,Львівська область,"Оплата відшкодування за водопостачання та водовідведення за квітень 2020р. зг. рах.№56 від 15.04.2020р., зг. дог.оренди №1 від 01.10.2018р.,без ПДВ",UA113252680000000002600477437,current,18.83,Бориславський міський Палац культ.,25261121,юридична особа
УГП,"Львівська область, Львів, вулиця Сербська, 1",70,2020-04-16,340827,Банківські послуги,Інші витрати,257060,Львівська обласна організація,40014820,Львівська область,"Сплата комісії за переказ коштів з поточного рахунку до 17:00 за межі Банку за допомогою системи Клієнт-Банк по документу №423, від 16.04.2020. Без ПДВ",UA113252680000000002600477437,current,5.00,"АТ ""АКБ ""Львів""",09801546,юридична особа
УГП,"Львівська область, Львів, вулиця Сербська, 1",70,2020-04-16,350897,Банківські послуги,Інші витрати,257059,Львівська обласна організація,40014820,Львівська область,"Сплата комісії за переказ коштів з поточного рахунку до 17:00 за межі Банку за допомогою системи Клієнт-Банк по документу №426, від 16.04.2020. Без ПДВ",UA113252680000000002600477437,current,5.00,"АТ ""АКБ ""Львів""",09801546,юридична особа
УГП,"Львівська область, Львів, вулиця Сербська, 1",70,2020-04-16,346883,Банківські послуги,Інші витрати,257058,Львівська обласна організація,40014820,Львівська область,"Сплата комісії за переказ коштів з поточного рахунку до 17:00 за межі Банку за допомогою системи Клієнт-Банк по документу №424, від 16.04.2020. Без ПДВ",UA113252680000000002600477437,current,5.00,"АТ ""АКБ ""Львів""",09801546,юридична особа
УГП,"Львівська область, Львів, вулиця Сербська, 1",70,2020-04-16,340114,Банківські послуги,Інші витрати,257057,Львівська обласна організація,40014820,Львівська область,"Сплата комісії за переказ коштів з поточного рахунку до 17:00 за межі Банку за допомогою системи Клієнт-Банк по документу №421, від 16.04.2020. Без ПДВ",UA113252680000000002600477437,current,5.00,"АТ ""АКБ ""Львів""",09801546,юридична особа
УГП,"Львівська область, Львів, вулиця Сербська, 1",70,2020-04-16,347823,Банківські послуги,Інші витрати,257056,Львівська обласна організація,40014820,Львівська область,"Сплата комісії за переказ коштів з поточного рахунку до 17:00 за межі Банку за допомогою системи Клієнт-Банк по документу №425, від 16.04.2020. Без ПДВ",UA113252680000000002600477437,current,5.00,"АТ ""АКБ ""Львів""",09801546,юридична особа
УГП,"Львівська область, Львів, вулиця Сербська, 1",70,2020-04-16,340760,Банківські послуги,Інші витрати,257055,Львівська обласна організація,40014820,Львівська область,"Сплата комісії за переказ коштів з поточного рахунку до 17:00 за межі Банку за допомогою системи Клієнт-Банк по документу №422, від 16.04.2020. Без ПДВ",UA113252680000000002600477437,current,5.00,"АТ ""АКБ ""Львів""",09801546,юридична особа
УГП,"Львівська область, Львів, вулиця Сербська, 1",70,2020-04-16,351825,Банківські послуги,Інші витрати,257054,Львівська обласна організація,40014820,Львівська область,"Сплата комісії за переказ коштів з поточного рахунку до 17:00 за межі Банку за допомогою системи Клієнт-Банк по документу №427, від 16.04.2020. Без ПДВ",UA113252680000000002600477437,current,5.00,"АТ ""АКБ ""Львів""",09801546,юридична особа
УГП,"Львівська область, Львів",84,2020-04-16,351974,"Заробітна плата, премії","Заробітна плата, лікарняні, вагітності, відрядження, компенсації",257029,Львівська обласна організація,40014820,Львівська область,Заробітна плата за 1 половину квітня 2020р.,UA113252680000000002600477437,current,3120.34,Щурко Іван Петрович,,фізична особа
УГП,"Львівська область, Львів",84,2020-04-16,351977,"Заробітна плата, премії","Заробітна плата, лікарняні, вагітності, відрядження, компенсації",257028,Львівська обласна організація,40014820,Львівська область,Заробітна плата за 1 половину квітня 2020р.,UA113252680000000002600477437,current,2614.34,Сало Ірина Володимирівна,,фізична особа
УГП,"Львівська область, Львів",84,2020-04-16,351976,"Заробітна плата, премії","Заробітна плата, лікарняні, вагітності, відрядження, компенсації",257027,Львівська обласна організація,40014820,Львівська область,Заробітна плата за 1 половину квітня 2020р.,UA113252680000000002600477437,current,2614.34,Небельмес Аліна Михайлівна,,фізична особа
УГП,"Львівська область, Львів",84,2020-04-16,351975,"Заробітна плата, премії","Заробітна плата, лікарняні, вагітності, відрядження, компенсації",257026,Львівська обласна організація,40014820,Львівська область,Заробітна плата за 1 половину квітня 2020р.,UA113252680000000002600477437,current,2614.34,Кузько Марʼяна Михайлівна,,фізична особа
УГП,"Львівська область, Львів, вулиця Нечуя-Левицького, 23, 4Б",79,2020-04-16,971,"Оренда будинків і приміщень та експлуатаційні витрати (прибирання, страхування орендованих будинків, охорона, сигналізація, ремонт, вивіз сміття, тощо)",Оренда нерухомості,256741,Центральний офіс,39481037,Україна,"Оплата за оренду арок за квітень 2020р. згідно рахунку №118 від 01.04.2020р.,в т.ч. ПДВ 20% 3400.00 грн.",2600671275,current,20400.00,"ТОВ ""Аврора Адвертайзінг""",38893253,юридична особа
УГП,"Львівська область, Львів, вулиця Стрийська, 35",62,2020-04-16,969,Сплата ЄСВ,Податкові платежі,256739,Центральний офіс,39481037,Україна,"у *;101;39481037; нарах.єдиного внеску на зароб.плату за 1 пол.квітня 2020р. - 22,0%, 8.41% - 4152,56 грн.;;;",2600671275,current,4152.56,ГОЛОВНЕ УПРАВЛІННЯ ДФС У ЛЬВІВСЬКІЙ ОБЛАСТІ,43143039,юридична особа
УГП,"Львівська область, Львів, вулиця Конотопська, 6",63,2020-04-16,968,Податок на доходи,Податкові платежі,256738,Центральний офіс,39481037,Україна,"*;101;39481037; податок на доходи фізичних осіб із зароб.плати за за 1 пол.квітня 2020р., 18% - 3875,14 грн.;;;",2600671275,current,3875.14,УДКСУ у Франківському районі м. Львова,37965138,юридична особа
УГП,"Львівська область, Львів, вулиця Конотопська, 6",61,2020-04-16,967,Військовий збір,Податкові платежі,256737,Центральний офіс,39481037,Україна,"*;101;39481037; утриманий військовий збір із зароб.плати за 1 пол.квітня 2020р., 1,5% - 322,93 грн.;;;",2600671275,current,322.93,УДКСУ у Франківському районі м. Львова,37965138,юридична особа
УГП,"Львівська область, Львів, вулиця Сербська, 1",70,2020-04-16,338811,Банківські послуги,Інші витрати,256736,Центральний офіс,39481037,Україна,"Сплата комісії за зарахуванню коштів на рахунки фізичних осіб підприємства по зарплатному проекту по документу №338810, від 16.04.2020. Без ПДВ",2600671275,current,103.98,"АТ ""АКБ ""Львів""",09801546,юридична особа
УГП,"Львівська область, Львів, вулиця Сербська, 1",70,2020-04-16,338614,Банківські послуги,Інші витрати,256735,Центральний офіс,39481037,Україна,"Сплата комісії за переказ коштів з поточного рахунку до 17:00 за межі Банку за допомогою системи Клієнт-Банк по документу №968, від 16.04.2020. Без ПДВ",2600671275,current,5.00,"АТ ""АКБ ""Львів""",09801546,юридична особа
УГП,"Львівська область, Львів, вулиця Сербська, 1",70,2020-04-16,338504,Банківські послуги,Інші витрати,256734,Центральний офіс,39481037,Україна,"Сплата комісії за переказ коштів з поточного рахунку до 17:00 за межі Банку за допомогою системи Клієнт-Банк по документу №967, від 16.04.2020. Без ПДВ",2600671275,current,5.00,"АТ ""АКБ ""Львів""",09801546,юридична особа
УГП,"Львівська область, Львів, вулиця Сербська, 1",70,2020-04-16,354826,Банківські послуги,Інші витрати,256733,Центральний офіс,39481037,Україна,"Сплата комісії за переказ коштів з поточного рахунку до 17:00 за межі Банку за допомогою системи Клієнт-Банк по документу №972, від 16.04.2020. Без ПДВ",2600671275,current,5.00,"АТ ""АКБ ""Львів""",09801546,юридична особа
УГП,"Львівська область, Львів, вулиця Сербська, 1",70,2020-04-16,338276,Банківські послуги,Інші витрати,256732,Центральний офіс,39481037,Україна,"Сплата комісії за переказ коштів з поточного рахунку до 17:00 за межі Банку за допомогою системи Клієнт-Банк по документу №969, від 16.04.2020. Без ПДВ",2600671275,current,5.00,"АТ ""АКБ ""Львів""",09801546,юридична особа
УГП,"Львівська область, Львів, вулиця Сербська, 1",70,2020-04-16,354717,Банківські послуги,Інші витрати,256731,Центральний офіс,39481037,Україна,"Сплата комісії за переказ коштів з поточного рахунку до 17:00 за межі Банку за допомогою системи Клієнт-Банк по документу №971, від 16.04.2020. Без ПДВ",2600671275,current,5.00,"АТ ""АКБ ""Львів""",09801546,юридична особа
УГП,"Львівська область, Львів, вулиця Сербська, 1",70,2020-04-16,338798,Банківські послуги,Інші витрати,256730,Центральний офіс,39481037,Україна,"Сплата комісії за переказ коштів з поточного рахунку до 17:00 в межах системи Банку за допомогою системи Клієнт-Банк по документу №970, від 16.04.2020. Без ПДВ",2600671275,current,3.00,"АТ ""АКБ ""Львів""",09801546,юридична особа
УГП,Львівська область,84,2020-04-16,338812,"Заробітна плата, премії","Заробітна плата, лікарняні, вагітності, відрядження, компенсації",256676,Центральний офіс,39481037,Україна,Заробітна плата за 1 половину квітня 2020р.,2600671275,current,4596.17,Моряк Ірина Миколаївна,,фізична особа
УГП,"Івано-Франківська область, Івано-Франківськ",84,2020-04-16,338814,"Заробітна плата, премії","Заробітна плата, лікарняні, вагітності, відрядження, компенсації",256675,Центральний офіс,39481037,Україна,Заробітна плата за 1 половину квітня 2020р.,2600671275,current,3542.00,Романчук Любомир Петрович,,фізична особа
УГП,Тернопільська область,84,2020-04-16,338813,"Заробітна плата, премії","Заробітна плата, лікарняні, вагітності, відрядження, компенсації",256674,Центральний офіс,39481037,Україна,Заробітна плата за 1 половину квітня 2020р.,2600671275,current,3542.00,Яремчук Ірина Романівна,,фізична особа
УГП,"Львівська область, Львів",84,2020-04-16,338816,"Заробітна плата, премії","Заробітна плата, лікарняні, вагітності, відрядження, компенсації",256673,Центральний офіс,39481037,Україна,Заробітна плата за 1 половину квітня 2020р.,2600671275,current,3457.67,Дякович Ігор Володимирович,,фізична особа
УГП,"Львівська область, Львів",84,2020-04-16,338815,"Заробітна плата, премії","Заробітна плата, лікарняні, вагітності, відрядження, компенсації",256672,Центральний офіс,39481037,Україна,Заробітна плата за 1 половину квітня 2020р.,2600671275,current,2192.66,Хрущак Світлана Іванівна,,фізична особа
УГП,"Львівська область, Пустомитівський район",53,2020-04-16,972,Витрати на розміщення зовнішньої реклами,Зовнішня реклама,256671,Центральний офіс,39481037,Україна,"Оплата за оренду рекламних площин у квітні 2020 року згідно рахунку-фактури № СФ-0000044 від 06.04.2020 р., без ПДВ",2600671275,current,67980.00,Біб Юрій Мирославович,,фізична особа
УГП,"Харківська область, Харків, вулиця Космічна, 21А",79,2020-04-14,966,"Оренда будинків і приміщень та експлуатаційні витрати (прибирання, страхування орендованих будинків, охорона, сигналізація, ремонт, вивіз сміття, тощо)",Оренда нерухомості,256729,Центральний офіс,39481037,Україна,"Оплата за оренду приміщення за квітень зг. рах.№31 від 13.04.2020р. зг. договору суборенди №1-05/19 від 15.05.2019р., без ПДВ",2600671275,current,26839.60,"ТОВ ""Елліко""",40310575,юридична особа
УГП,"Харківська область, Харків, вулиця Космічна, 21А",79,2020-04-14,965,"Оренда будинків і приміщень та експлуатаційні витрати (прибирання, страхування орендованих будинків, охорона, сигналізація, ремонт, вивіз сміття, тощо)",Оренда нерухомості,256728,Центральний офіс,39481037,Україна,"Оплата за тех.обсл., електроенерг., водопостач. і газ за березень 2020р. зг. рах. №33 від 13.04.2020р.,зг. договору суборенди №1-05/19 від 15.05.2019р, без ПДВ",2600671275,current,3825.26,"ТОВ ""Елліко""",40310575,юридична особа
УГП,"Львівська область, Львів, вулиця Сербська, 1",70,2020-04-14,299776,Банківські послуги,Інші витрати,256727,Центральний офіс,39481037,Україна,"Сплата комісії за переказ коштів з поточного рахунку до 17:00 за межі Банку за допомогою системи Клієнт-Банк по документу №966, від 14.04.2020. Без ПДВ",2600671275,current,5.00,"АТ ""АКБ ""Львів""",09801546,юридична особа
УГП,"Львівська область, Львів, вулиця Сербська, 1",70,2020-04-14,299724,Банківські послуги,Інші витрати,256726,Центральний офіс,39481037,Україна,"Сплата комісії за переказ коштів з поточного рахунку до 17:00 за межі Банку за допомогою системи Клієнт-Банк по документу №965, від 14.04.2020. Без ПДВ",2600671275,current,5.00,"АТ ""АКБ ""Львів""",09801546,юридична особа
УГП,"Львівська область, Львів, вулиця Сербська, 1",70,2020-04-10,229198,Банківські послуги,Інші витрати,256725,Центральний офіс,39481037,Україна,"Сплата комісії за переказ коштів з поточного рахунку до 17:00 за межі Банку за допомогою системи Клієнт-Банк по документу №964, від 10.04.2020. Без ПДВ",2600671275,current,5.00,"АТ ""АКБ ""Львів""",09801546,юридична особа
УГП,"Львівська область, Львів",53,2020-04-10,964,Витрати на розміщення зовнішньої реклами,Зовнішня реклама,256670,Центральний офіс,39481037,Україна,"Оплата за послуги розміщ. реклами на рекламоносії зг. рах.-факт. №СФ-0000059 від 09.04.2020р., зг.договору№11-11-01 від 11.11.2019р.,без ПДВ",2600671275,current,27000.00,Хома Віктор Ярославович,,фізична особа
УГП,"Київ, Повітрофлотський проспект, 19А",72,2020-04-08,420,"Придбання, ремонт офісної техніки та програмного забезпечення (Бухгалтерські програми, Ліга.закон, домени)",Придбання офісної техніки та програмного забезпечення,257053,Львівська обласна організація,40014820,Львівська область,"А/ЕД/3/8.4.20 Оплата за Ліцензію КП ""Арт-Звіт Pro"" згідно рахунку від 8 квітня 2020 р., без ПДВ",UA113252680000000002600477437,current,712.50,"ТОВ ""Есенсі""",41564358,юридична особа
УГП,"Львівська область, Львів, вулиця Сербська, 1",70,2020-04-08,179270,Банківські послуги,Інші витрати,257052,Львівська обласна організація,40014820,Львівська область,"Сплата комісії за переказ коштів з поточного рахунку до 17:00 за межі Банку за допомогою системи Клієнт-Банк по документу №420, від 08.04.2020. Без ПДВ",UA113252680000000002600477437,current,5.00,"АТ ""АКБ ""Львів""",09801546,юридична особа
УГП,"Тернопільська область, Тернопіль, проспект Степана Бандери, 38",70,2020-04-07,DT0473D8KP,Банківські послуги,Інші витрати,257194,Тернопільська обласна організація,40011526,Тернопільська область,"Комiсiя за проведення платежу вiд 07.04.2020, згiдно договору банкiвського рахунку вiд 21.09.2015, без ПДВ",UA263387830000026006055117228,current,9.00,"ПАТ КБ ""Приватбанк""",14360570,юридична особа
УГП,"Тернопільська область, Тернопіль, вулиця Листопадова, 3",61,2020-04-07,505,Військовий збір,Податкові платежі,257193,Тернопільська обласна організація,40011526,Тернопільська область,*;101;40011526;11011000 / Вiйськовий збiр з оренди офiсу згiдно договору вiд 22.02.2019 року за березень 2020р.;;;,UA263387830000026006055117228,current,111.81,УДКСУ у м. Тернопіль,37977726,юридична особа
УГП,"Тернопільська область, Тернопіль, проспект Степана Бандери, 38",70,2020-04-07,47O379RBHY,Банківські послуги,Інші витрати,257192,Тернопільська обласна організація,40011526,Тернопільська область,"Комiсiя за виконання платежiв в нацiональнiй валютi, згiдно з вiдкритою офертою банку N б/н вiд 21.09.2015 та тарифiв банку, без ПДВ",UA263387830000026006055117228,current,3.00,"ПАТ КБ ""Приватбанк""",14360570,юридична особа
УГП,"Тернопільська область, Тернопіль, вулиця Листопадова, 3",63,2020-04-07,506,Податок на доходи,Податкові платежі,257191,Тернопільська обласна організація,40011526,Тернопільська область,*;101;40011526;11010400 / ПДФО з оренди офiсу згiдно договору вiд 22.02.2019 року за березень 2020р.;;;,UA263387830000026006055117228,current,1341.72,УДКСУ у м. Тернопіль,37977726,юридична особа
УГП,"Тернопільська область, Тернопіль, проспект Степана Бандери, 38",70,2020-04-07,47O379RBXY,Банківські послуги,Інші витрати,257190,Тернопільська обласна організація,40011526,Тернопільська область,"Комiсiя за виконання платежiв в нацiональнiй валютi, згiдно з вiдкритою офертою банку N б/н вiд 21.09.2015 та тарифiв банку, без ПДВ",UA263387830000026006055117228,current,3.00,"ПАТ КБ ""Приватбанк""",14360570,юридична особа
УГП,"Тернопільська область, Тернопіль, вулиця Білецька, 1",62,2020-04-07,K47O0OKHNG,Сплата ЄСВ,Податкові платежі,257189,Тернопільська обласна організація,40011526,Тернопільська область,ЄСВ за березень 2020р.,UA263387830000026006055117228,current,4400.00,ГУ ДПС у Тернопільській області,43142763,юридична особа
УГП,"Тернопільська область, Тернопіль, вулиця Листопадова, 3",61,2020-04-07,K47O0OKHNH,Військовий збір,Податкові платежі,257188,Тернопільська обласна організація,40011526,Тернопільська область,Вiйськовий збiр за березень 2020р.,UA263387830000026006055117228,current,300.00,УДКСУ у м. Тернопіль,37977726,юридична особа
УГП,"Тернопільська область, Тернопіль, вулиця Листопадова, 3",63,2020-04-07,K47O0OKHNI,Податок на доходи,Податкові платежі,257187,Тернопільська обласна організація,40011526,Тернопільська область,ПДФО за березень 2020р.,UA263387830000026006055117228,current,3600.00,УДКСУ у м. Тернопіль,37977726,юридична особа
УГП,"Тернопільська область, Тернопіль, проспект Степана Бандери, 38",70,2020-04-07,K47O0OKHNJ,Банківські послуги,Інші витрати,257186,Тернопільська обласна організація,40011526,Тернопільська область,Сплата комiсiї за касове обслуговуванняберезень 2020р.,UA263387830000026006055117228,current,40.25,"ПАТ КБ ""Приватбанк""",14360570,юридична особа
УГП,"Тернопільська область, Збаразький район, Збараж",79,2020-04-07,507,"Оренда будинків і приміщень та експлуатаційні витрати (прибирання, страхування орендованих будинків, охорона, сигналізація, ремонт, вивіз сміття, тощо)",Оренда нерухомості,257147,Тернопільська обласна організація,40011526,Тернопільська область,Оплата за оренду офiсу згiдно договору вiд 22.02.2019 року за березень 2020р.,UA263387830000026006055117228,current,6000.47,Лучка Андрій Володимирович,,фізична особа
УГП,"Тернопільська область, Тернопіль",84,2020-04-07,1,"Заробітна плата, премії","Заробітна плата, лікарняні, вагітності, відрядження, компенсації",257146,Тернопільська обласна організація,40011526,Тернопільська область,Заробітна плата за березень 2020р.,UA263387830000026006055117228,current,2012.50,Фірман Ольга Ярославівна,,фізична особа
УГП,"Тернопільська область, Тернопіль",84,2020-04-07,1,"Заробітна плата, премії","Заробітна плата, лікарняні, вагітності, відрядження, компенсації",257145,Тернопільська обласна організація,40011526,Тернопільська область,Заробітна плата за березень 2020р.,UA263387830000026006055117228,current,2616.25,Сукач Анастасія Святославівна,,фізична особа
УГП,"Тернопільська область, Бучацький район",84,2020-04-07,1,"Заробітна плата, премії","Заробітна плата, лікарняні, вагітності, відрядження, компенсації",257144,Тернопільська обласна організація,40011526,Тернопільська область,Заробітна плата за березень 2020р.,UA263387830000026006055117228,current,3018.75,Кізюк Іван Йосипович,,фізична особа
УГП,"Тернопільська область, Теребовлянський район",84,2020-04-07,1,"Заробітна плата, премії","Заробітна плата, лікарняні, вагітності, відрядження, компенсації",257143,Тернопільська обласна організація,40011526,Тернопільська область,Заробітна плата за березень 2020р.,UA263387830000026006055117228,current,3018.75,Вітвіцький Олег Іванович,,фізична особа
УГП,"Тернопільська область, Тернопіль",84,2020-04-07,1,"Заробітна плата, премії","Заробітна плата, лікарняні, вагітності, відрядження, компенсації",257142,Тернопільська обласна організація,40011526,Тернопільська область,Заробітна плата за березень 2020р.,UA263387830000026006055117228,current,3220.00,Войтович Анна Вʼячеславівна,,фізична особа
УГП,"Тернопільська область, Тернопіль",84,2020-04-07,1,"Заробітна плата, премії","Заробітна плата, лікарняні, вагітності, відрядження, компенсації",257141,Тернопільська обласна організація,40011526,Тернопільська область,Заробітна плата за березень 2020р.,UA263387830000026006055117228,current,2213.75,Богун Андрій Ігорович,,фізична особа
УГП,"Львівська область, Борислав, вулиця Коваліва, 52",79,2020-04-07,419,"Оренда будинків і приміщень та експлуатаційні витрати (прибирання, страхування орендованих будинків, охорона, сигналізація, ремонт, вивіз сміття, тощо)",Оренда нерухомості,257051,Львівська обласна організація,40014820,Львівська область,"Оплата за теплову енергію за березень 2020р. згідно рахунку-фактури № СФ-0000405 від 06.04.2020р., в т.ч. ПДВ 57,29 грн.",UA113252680000000002600477437,current,343.75,"КП ""Бориславтеплоенерго""",13809128,юридична особа
УГП,"Львівська область, Львів, вулиця Сербська, 1",70,2020-04-07,155868,Банківські послуги,Інші витрати,257050,Львівська обласна організація,40014820,Львівська область,"Сплата комісії за переказ коштів з поточного рахунку до 17:00 за межі Банку за допомогою системи Клієнт-Банк по документу №419, від 07.04.2020. Без ПДВ",UA113252680000000002600477437,current,5.00,"АТ ""АКБ ""Львів""",09801546,юридична особа
УГП,"Львівська область, Львів, вулиця Петра Дорошенка, 43",76,2020-04-03,963,Послуги зв’язку,Послуги зв’язку,256724,Центральний офіс,39481037,Україна,"Оплата за телеком.посл.за березень 2020р. зг.дог.№ 4600000000017884 від 26.10.16, зг. рах. №4600000000017884.3.2020 від 31.03.2020, в т.ч.ПДВ 46,91 грн.",2600671275,current,281.90,"ПАТ ""Укртелеком""",21560766,юридична особа
УГП,"Київ, вулиця Смоленська, 31/33",76,2020-04-03,962,Послуги зв’язку,Послуги зв’язку,256723,Центральний офіс,39481037,Україна,"01002112851489; оплата за телекомун.послуги за березень 2020 зг. рах. №0800218956/А364*4215229 від 01.04.20, дог. №0800218956/А364 від 26.11.18,в т.ч. ПДВ 8.74 грн",2600671275,current,52.45,"ПрАТ ""Датагруп""",31720260,юридична особа
УГП,"Львівська область, Львів, вулиця Сербська, 1",70,2020-04-03,85156,Банківські послуги,Інші витрати,256722,Центральний офіс,39481037,Україна,"Сплата комісії за переказ коштів з поточного рахунку до 17:00 за межі Банку за допомогою системи Клієнт-Банк по документу №962, від 03.04.2020. Без ПДВ",2600671275,current,5.00,"АТ ""АКБ ""Львів""",09801546,юридична особа
